Capital or Revenue,Directorate,Transaction Number,Date,Service Area,Expenses Type,Amount,Supplier Name
Revenue,Managing Director & Head of Paid Service,5105682019,01.08.2014,Strengthening Families,Payments to Voluntary and Other Associations,25.00,SPOTLIGHT BOUTIQUE
Revenue,Head of ASC & Community Wellbeing,5105682814,06.08.2014,Local Safeguarding Adults Board,Professional Services,"2,250.00",REDACTED PERSONAL DATA
Revenue,Director of Childrens Services,5105682858,06.08.2014,Workshop Initiative Support in Education,Cleaning Contracts,160.00,SEECLEAR
Revenue,Managing Director & Head of Paid Service,5105683837,13.08.2014,Public Health Core,Consultants Fees,"5,600.00",REDACTED PERSONAL DATA
Revenue,Head of Planning & Regulatory Services,5105686895,08.08.2014,Trading Standards,Training,199.00,ALLIANCE IP TRAINING
Revenue,Director of Childrens Services,5105682842,06.08.2014,Adult Social Care - Workforce Development,Training,150.00,REDACTED PERSONAL DATA
Revenue,Director of Childrens Services,5105686336,22.08.2014,Statutory Assessment and Review Team,Professional Services,590.30,REDACTED PERSONAL DATA
Revenue,Director of Childrens Services,5105682759,06.08.2014,Clatterford Pupil Referral Unit (PRU),Security of Buildings,40.00,REDACTED PERSONAL DATA
Revenue,Director of Childrens Services,5105682764,06.08.2014,Old Cowes Enterprise College,Security of Buildings,"1,200.00",REDACTED PERSONAL DATA
Revenue,Director of Childrens Services,5105682759,06.08.2014,Old Cowes Enterprise College,Security of Buildings,"1,240.00",REDACTED PERSONAL DATA
Revenue,Director of Childrens Services,5105682759,06.08.2014,Gatten & Lake Primary School Disposal,Security of Buildings,155.00,REDACTED PERSONAL DATA
Revenue,Director of Childrens Services,5105682759,06.08.2014,Gatten & Lake Primary School Disposal,Minor Works,100.00,REDACTED PERSONAL DATA
Revenue,Director of Childrens Services,5105682764,06.08.2014,Gatten & Lake Primary School Disposal,Security of Buildings,150.00,REDACTED PERSONAL DATA
Revenue,Director of Childrens Services,5105682764,06.08.2014,Hunnyhill Primary School Disposal,Security of Buildings,300.00,REDACTED PERSONAL DATA
Revenue,Director of Childrens Services,5105682759,06.08.2014,Hunnyhill Primary School Disposal,Minor Works,20.00,REDACTED PERSONAL DATA
Revenue,Director of Childrens Services,5105682759,06.08.2014,Hunnyhill Primary School Disposal,Security of Buildings,310.00,REDACTED PERSONAL DATA
Revenue,Director of Childrens Services,5105682759,06.08.2014,The Bay Primary School Disposal,Minor Works,40.00,REDACTED PERSONAL DATA
Revenue,Director of Childrens Services,5105685737,20.08.2014,Short Breaks,Charges from Independent Providers,525.00,REDACTED PERSONAL DATA
Revenue,Head of Corp Gov & Monitoring Officer,5105685447,15.08.2014,Coroner,Post Mortem Fees,234.00,REDACTED PERSONAL DATA
Revenue,Head of Corp Gov & Monitoring Officer,5105685447,15.08.2014,Coroner,Post Mortem Fees,89.00,REDACTED PERSONAL DATA
Revenue,Head of Corp Gov & Monitoring Officer,5105685447,15.08.2014,Coroner,Post Mortem Fees,88.20,REDACTED PERSONAL DATA
Revenue,Director of Childrens Services,5105683127,08.08.2014,Adoption Team,Professional Services,80.00,REDACTED PERSONAL DATA
Capital,Head of Economy & Tourism,5105686686,29.08.2014,Rights Of Way Capital Programme,Payment to Contractors - Capital,950.00,FAITHFULL QUALITY TIMBER WORK
Revenue,Director of Childrens Services,5105682775,06.08.2014,Pool Cars,Vehicle Maintenance Costs,245.55,ISLANDWIDE WINDSCREENS
Revenue,Director of Childrens Services,5105686377,27.08.2014,Complaints (Children & Families),Professional Services,"1,729.30",REDACTED PERSONAL DATA
Revenue,Director of Childrens Services,5105684550,13.08.2014,Complaints (Children & Families),Professional Services,588.25,REDACTED PERSONAL DATA
Revenue,Head of Economy & Tourism,5105686409,27.08.2014,Arts Projects,Professional Services,50.00,REDACTED PERSONAL DATA
Revenue,Director of Childrens Services,5105685602,20.08.2014,Complaints (Children & Families),Professional Services,286.62,REDACTED PERSONAL DATA
Revenue,Director of Childrens Services,5105686901,08.08.2014,Behaviour & Parenting Team,Training,315.00,KIN SUPPORT SERVICES
Revenue,Director of Childrens Services,5105684038,22.08.2014,Special Educational Needs Reforms Grant,Agency staff,"2,018.60",REDACTED PERSONAL DATA
Revenue,Director of Childrens Services,5105684038,22.08.2014,Special Educational Needs Reforms Grant,Agency staff,141.90,REDACTED PERSONAL DATA
Revenue,Director of Childrens Services,5105685828,22.08.2014,Education Participation Team,Cleaning Contracts,8.00,REDACTED PERSONAL DATA
Revenue,Director of Childrens Services,5105685479,20.08.2014,Short Breaks,Charges from Independent Providers,345.28,REDACTED PERSONAL DATA
Revenue,Head of Planning & Regulatory Services,5105685587,20.08.2014,A.O.N.B.,Consultants Fees,380.00,REDACTED PERSONAL DATA
Revenue,Head of Planning & Regulatory Services,5105686103,22.08.2014,A.O.N.B.,Consultants Fees,15.36,REDACTED PERSONAL DATA
Revenue,Head of Planning & Regulatory Services,5105685830,22.08.2014,A.O.N.B.,Consultants Fees,89.55,REDACTED PERSONAL DATA
Capital,Head of Economy & Tourism,5105685391,15.08.2014,Rights Of Way Capital Programme,Payment to Contractors - Capital,980.00,REDACTED PERSONAL DATA
Revenue,Head of ASC & Community Wellbeing,5105686161,22.08.2014,Leaseholds by LA,Accommodation Costs - Leaseholder Payments,695.89,REDACTED PERSONAL DATA
Revenue,Head of ASC & Community Wellbeing,5105686161,22.08.2014,Leaseholds by LA,Accommodation Costs - Leaseholder Payments,695.89,REDACTED PERSONAL DATA
Revenue,Head of ASC & Community Wellbeing,5105686161,22.08.2014,Leaseholds by LA,Accommodation Costs - Leaseholder Payments,695.89,REDACTED PERSONAL DATA
Revenue,Head of ASC & Community Wellbeing,5105686161,22.08.2014,Leaseholds by LA,Accommodation Costs - Leaseholder Payments,695.89,REDACTED PERSONAL DATA
Revenue,Head of ASC & Community Wellbeing,5105686161,22.08.2014,Leaseholds by LA,Accommodation Costs - Leaseholder Payments,695.89,REDACTED PERSONAL DATA
Revenue,Director of Childrens Services,5105685350,15.08.2014,Short Breaks,Charges from Independent Providers,150.00,RYDE EXTREME PERFORMERS
Revenue,Head of ASC & Community Wellbeing,5105682693,01.08.2014,Homelessness,Client Expenses,165.00,REDACTED PERSONAL DATA
Revenue,Director of Childrens Services,5105683852,20.08.2014,LSCB (Local Safeguarding Childrens Board),Training,500.00,REDACTED PERSONAL DATA
Revenue,Director of Childrens Services,5105683852,20.08.2014,LSCB (Local Safeguarding Childrens Board),Training,500.00,REDACTED PERSONAL DATA
Revenue,Director of Childrens Services,5105683852,20.08.2014,LSCB (Local Safeguarding Childrens Board),Training,322.96,REDACTED PERSONAL DATA
Revenue,Director of Childrens Services,5105685794,20.08.2014,Complaints (Children & Families),Professional Services,524.32,REDACTED PERSONAL DATA
Revenue,Head of ASC & Community Wellbeing,5105686181,22.08.2014,Leaseholds by LA,Accommodation Costs - Leaseholder Payments,866.67,2K PROPERTY
Revenue,Head of ASC & Community Wellbeing,5105682066,01.08.2014,Adelaide Resource Centre,Catering Purchases,463.75,3663 (BFS GROUP LTD)
Revenue,Head of ASC & Community Wellbeing,5105682067,01.08.2014,Adelaide Resource Centre,Catering Purchases,174.49,3663 (BFS GROUP LTD)
Revenue,Head of ASC & Community Wellbeing,5105682067,01.08.2014,Adelaide Resource Centre,Catering Purchases,7.71,3663 (BFS GROUP LTD)
Revenue,Head of ASC & Community Wellbeing,5105682066,01.08.2014,Adelaide Resource Centre,Catering Purchases,74.37,3663 (BFS GROUP LTD)
Revenue,Head of ASC & Community Wellbeing,5105686853,29.08.2014,Adelaide Resource Centre,Catering Purchases,185.56,3663 (BFS GROUP LTD)
Revenue,Head of ASC & Community Wellbeing,5105686888,29.08.2014,Adelaide Resource Centre,Catering Purchases,300.22,3663 (BFS GROUP LTD)
Revenue,Head of ASC & Community Wellbeing,5105686888,29.08.2014,Adelaide Resource Centre,Catering Purchases,8.77,3663 (BFS GROUP LTD)
Revenue,Head of ASC & Community Wellbeing,5105686853,29.08.2014,Adelaide Resource Centre,Catering Purchases,7.71,3663 (BFS GROUP LTD)
Revenue,Head of ASC & Community Wellbeing,5105685343,15.08.2014,Adelaide Resource Centre,Catering Purchases,464.74,3663 (BFS GROUP LTD)
Revenue,Head of ASC & Community Wellbeing,5105685343,15.08.2014,Adelaide Resource Centre,Catering Purchases,33.61,3663 (BFS GROUP LTD)
Revenue,Head of ASC & Community Wellbeing,5105686292,22.08.2014,Adelaide Resource Centre,Catering Purchases,123.43,3663 (BFS GROUP LTD)
Revenue,Head of ASC & Community Wellbeing,5105686294,22.08.2014,Adelaide Resource Centre,Catering Purchases,182.82,3663 (BFS GROUP LTD)
Revenue,Head of ASC & Community Wellbeing,5105686294,22.08.2014,Adelaide Resource Centre,Catering Purchases,24.00,3663 (BFS GROUP LTD)
Revenue,Head of ASC & Community Wellbeing,5105686292,22.08.2014,Adelaide Resource Centre,Catering Purchases,7.71,3663 (BFS GROUP LTD)
Revenue,Head of ASC & Community Wellbeing,5105685342,15.08.2014,Adelaide Resource Centre,Catering Purchases,176.50,3663 (BFS GROUP LTD)
Revenue,Head of ASC & Community Wellbeing,5105685341,15.08.2014,Adelaide Resource Centre,Catering Purchases,229.67,3663 (BFS GROUP LTD)
Revenue,Head of ASC & Community Wellbeing,5105685341,15.08.2014,Adelaide Resource Centre,Catering Purchases,50.54,3663 (BFS GROUP LTD)
Revenue,Head of ASC & Community Wellbeing,5105685342,15.08.2014,Adelaide Resource Centre,Catering Purchases,24.00,3663 (BFS GROUP LTD)
Revenue,Head of ASC & Community Wellbeing,5105683836,13.08.2014,Gouldings Resource Centre,Catering Purchases,391.09,3663 (BFS GROUP LTD)
Revenue,Head of ASC & Community Wellbeing,5105683836,13.08.2014,Gouldings Resource Centre,Catering Purchases,35.31,3663 (BFS GROUP LTD)
Revenue,Head of ASC & Community Wellbeing,5105685539,20.08.2014,Gouldings Resource Centre,Catering Purchases,719.70,3663 (BFS GROUP LTD)
Revenue,Head of ASC & Community Wellbeing,5105685547,20.08.2014,Gouldings Resource Centre,Catering Purchases,201.38,3663 (BFS GROUP LTD)
Revenue,Head of ASC & Community Wellbeing,5105685539,20.08.2014,Gouldings Resource Centre,Catering Purchases,16.77,3663 (BFS GROUP LTD)
Revenue,Head of ASC & Community Wellbeing,5105686753,29.08.2014,Gouldings Resource Centre,Catering Purchases,335.11,3663 (BFS GROUP LTD)
Revenue,Head of ASC & Community Wellbeing,5105686753,29.08.2014,Gouldings Resource Centre,Catering Purchases,9.78,3663 (BFS GROUP LTD)
Revenue,Head of ASC & Community Wellbeing,5105686722,29.08.2014,Westminster House,Catering Purchases,144.93,3663 (BFS GROUP LTD)
Revenue,Head of ASC & Community Wellbeing,5105686723,29.08.2014,Westminster House,Catering Purchases,103.01,3663 (BFS GROUP LTD)
Revenue,Head of ASC & Community Wellbeing,5105686724,29.08.2014,Westminster House,Catering Purchases,83.15,3663 (BFS GROUP LTD)
Revenue,Head of Economy & Tourism,5105683997,13.08.2014,Fairway Sports Complex,Stock Purchases,198.14,3663 (BFS GROUP LTD)
Revenue,Head of Economy & Tourism,5105683835,13.08.2014,The Heights,Stock Purchases,56.75,3663 (BFS GROUP LTD)
Revenue,Head of Economy & Tourism,5105683835,13.08.2014,The Heights,Stock Purchases,53.57,3663 (BFS GROUP LTD)
Revenue,Head of Economy & Tourism,5105682531,01.08.2014,The Heights,Stock Purchases,49.58,3663 (BFS GROUP LTD)
Revenue,Head of Economy & Tourism,5105682531,01.08.2014,The Heights,Stock Purchases,36.66,3663 (BFS GROUP LTD)
Revenue,Head of Economy & Tourism,5105682525,01.08.2014,The Heights,Stock Purchases,170.36,3663 (BFS GROUP LTD)
Revenue,Head of Economy & Tourism,5105685700,20.08.2014,The Heights,Stock Purchases,54.66,3663 (BFS GROUP LTD)
Revenue,Head of Economy & Tourism,5105685700,20.08.2014,The Heights,Stock Purchases,74.91,3663 (BFS GROUP LTD)
Revenue,Head of Economy & Tourism,5105684535,13.08.2014,The Heights,Stock Purchases,257.16,3663 (BFS GROUP LTD)
Revenue,Head of Economy & Tourism,5105685622,20.08.2014,The Heights,Stock Purchases,321.07,3663 (BFS GROUP LTD)
Revenue,Head of Economy & Tourism,5105685624,20.08.2014,Medina Leisure Centre,Stock Purchases,220.72,3663 (BFS GROUP LTD)
Revenue,Head of Economy & Tourism,5105685627,20.08.2014,Medina Leisure Centre,Stock Purchases,14.79,3663 (BFS GROUP LTD)
Revenue,Head of Economy & Tourism,5105685627,20.08.2014,Medina Leisure Centre,Stock Purchases,32.84,3663 (BFS GROUP LTD)
Revenue,Head of Economy & Tourism,5105685701,20.08.2014,Medina Leisure Centre,Stock Purchases,37.66,3663 (BFS GROUP LTD)
Revenue,Head of Economy & Tourism,5105685704,20.08.2014,Medina Leisure Centre,Stock Purchases,794.40,3663 (BFS GROUP LTD)
Revenue,Head of Economy & Tourism,5105685706,20.08.2014,Medina Leisure Centre,Stock Purchases,223.14,3663 (BFS GROUP LTD)
Revenue,Head of Economy & Tourism,5105684555,13.08.2014,Medina Leisure Centre,Stock Purchases,14.92,3663 (BFS GROUP LTD)
Revenue,Head of Economy & Tourism,5105684536,13.08.2014,Medina Leisure Centre,Stock Purchases,39.65,3663 (BFS GROUP LTD)
Revenue,Head of Economy & Tourism,5105684536,13.08.2014,Medina Leisure Centre,Stock Purchases,16.85,3663 (BFS GROUP LTD)
Revenue,Head of Economy & Tourism,5105684555,13.08.2014,Medina Leisure Centre,Stock Purchases,14.27,3663 (BFS GROUP LTD)
Revenue,Head of Economy & Tourism,5105686715,29.08.2014,Medina Leisure Centre,Stock Purchases,249.67,3663 (BFS GROUP LTD)
Revenue,Head of Economy & Tourism,5105686762,29.08.2014,Medina Leisure Centre,Stock Purchases,396.53,3663 (BFS GROUP LTD)
Revenue,Head of Economy & Tourism,5105686763,29.08.2014,Medina Leisure Centre,Stock Purchases,20.15,3663 (BFS GROUP LTD)
Revenue,Head of Economy & Tourism,5105686763,29.08.2014,Medina Leisure Centre,Stock Purchases,83.79,3663 (BFS GROUP LTD)
Revenue,Head of Economy & Tourism,5105686672,29.08.2014,Westridge Squash Courts,Stock Purchases,96.15,3663 (BFS GROUP LTD)
Revenue,Head of Finance & S151 Officer,5105686306,22.08.2014,Project Manager Waste Strategy,Computer Software & Consumables,461.25,4 PROJECTS LIMITED
Revenue,Head of ASC & Community Wellbeing,5105686288,22.08.2014,Adelaide Resource Centre,Consumable Cleaning Materials,216.00,A & M APPLIANCE CARE
Revenue,Head of ASC & Community Wellbeing,5105686286,22.08.2014,Gouldings Resource Centre,Consumable Cleaning Materials,186.00,A & M APPLIANCE CARE
Capital,Head of ASC & Community Wellbeing,5105682537,01.08.2014,Adelaide & Gouldings Fixtures & Fittings,Payment to Contractors - Capital,"2,600.00",A & M APPLIANCE CARE
Revenue,Director of Childrens Services,5105683051,08.08.2014,S17 Child Protection,Support Children,40.00,REDACTED PERSONAL DATA
Revenue,Director of Childrens Services,5105686645,29.08.2014,S17 Child Protection,Support Children,40.00,REDACTED PERSONAL DATA
Revenue,Director of Childrens Services,5105684783,15.08.2014,S17 Child Protection,Support Children,40.00,REDACTED PERSONAL DATA
Revenue,Director of Childrens Services,5105686006,22.08.2014,S17 Child Protection,Support Children,40.00,REDACTED PERSONAL DATA
Revenue,Head of Economy & Tourism,5105684520,13.08.2014,IW Festival of Cycling,Advertising & Publicity,438.75,A & N MEDIA FINANCE SERVICES LTD
Revenue,Head of Economy & Tourism,5105682541,01.08.2014,IW Festival of Cycling,Advertising & Publicity,630.00,A & N MEDIA FINANCE SERVICES LTD
Revenue,Director of Childrens Services,5105682976,08.08.2014,Children placed with Family&Friends,Boarding Out Allowances,159.85,REDACTED PERSONAL DATA
Revenue,Head of ASC & Community Wellbeing,5105686167,22.08.2014,Leaseholds by LA,Accommodation Costs - Leaseholder Payments,780.00,REDACTED PERSONAL DATA
Revenue,Director of Childrens Services,5105684657,15.08.2014,Special Guardianship Order Costs,Support Children,132.69,REDACTED PERSONAL DATA
Revenue,Director of Childrens Services,5105684657,15.08.2014,Special Guardianship Order Costs,Support Children,168.39,REDACTED PERSONAL DATA
Revenue,Director of Childrens Services,5105682923,08.08.2014,Special Guardianship Order Costs,Support Children,132.69,REDACTED PERSONAL DATA
Revenue,Director of Childrens Services,5105682923,08.08.2014,Special Guardianship Order Costs,Support Children,168.39,REDACTED PERSONAL DATA
Revenue,Director of Childrens Services,5105686519,29.08.2014,Special Guardianship Order Costs,Support Children,132.69,REDACTED PERSONAL DATA
Revenue,Director of Childrens Services,5105686519,29.08.2014,Special Guardianship Order Costs,Support Children,168.39,REDACTED PERSONAL DATA
Revenue,Director of Childrens Services,5105685880,22.08.2014,Special Guardianship Order Costs,Support Children,132.69,REDACTED PERSONAL DATA
Revenue,Director of Childrens Services,5105685880,22.08.2014,Special Guardianship Order Costs,Support Children,168.39,REDACTED PERSONAL DATA
Revenue,Director of Childrens Services,5105682996,08.08.2014,Leaving Care Costs,Support Children,120.89,REDACTED PERSONAL DATA
Revenue,Director of Childrens Services,5105684730,15.08.2014,Leaving Care Costs,Support Children,120.89,REDACTED PERSONAL DATA
Revenue,Director of Childrens Services,5105685954,22.08.2014,Leaving Care Costs,Support Children,120.89,REDACTED PERSONAL DATA
Revenue,Director of Childrens Services,5105686593,29.08.2014,Leaving Care Costs,Support Children,120.89,REDACTED PERSONAL DATA
Revenue,Director of Childrens Services,5105682996,08.08.2014,Leaving Care Costs,Accommodation Costs - Service Users,57.50,REDACTED PERSONAL DATA
Revenue,Director of Childrens Services,5105684730,15.08.2014,Leaving Care Costs,Accommodation Costs - Service Users,57.50,REDACTED PERSONAL DATA
Revenue,Director of Childrens Services,5105685954,22.08.2014,Leaving Care Costs,Accommodation Costs - Service Users,57.50,REDACTED PERSONAL DATA
Revenue,Director of Childrens Services,5105686593,29.08.2014,Leaving Care Costs,Accommodation Costs - Service Users,57.50,REDACTED PERSONAL DATA
Revenue,Head of ASC & Community Wellbeing,5105686176,22.08.2014,Leaseholds by LA,Accommodation Costs - Leaseholder Payments,510.25,REDACTED PERSONAL DATA
Revenue,Head of ASC & Community Wellbeing,5105686176,22.08.2014,Leaseholds by LA,Accommodation Costs - Leaseholder Payments,510.25,REDACTED PERSONAL DATA
Revenue,Head of ASC & Community Wellbeing,5105686176,22.08.2014,Leaseholds by LA,Accommodation Costs - Leaseholder Payments,510.25,REDACTED PERSONAL DATA
Revenue,Head of ASC & Community Wellbeing,5105686176,22.08.2014,Leaseholds by LA,Accommodation Costs - Leaseholder Payments,510.25,REDACTED PERSONAL DATA
Revenue,Head of ASC & Community Wellbeing,5105686176,22.08.2014,Leaseholds by LA,Accommodation Costs - Leaseholder Payments,510.25,REDACTED PERSONAL DATA
Revenue,Head of ASC & Community Wellbeing,5105686176,22.08.2014,Leaseholds by LA,Accommodation Costs - Leaseholder Payments,510.25,REDACTED PERSONAL DATA
Revenue,Director of Childrens Services,5105682900,08.08.2014,Adoption Costs,Support Children,186.49,REDACTED PERSONAL DATA
Revenue,Director of Childrens Services,5105686496,29.08.2014,Adoption Costs,Support Children,186.49,REDACTED PERSONAL DATA
Revenue,Director of Childrens Services,5105685857,22.08.2014,Adoption Costs,Support Children,186.49,REDACTED PERSONAL DATA
Revenue,Director of Childrens Services,5105684634,15.08.2014,Adoption Costs,Support Children,186.49,REDACTED PERSONAL DATA
Revenue,Director of Childrens Services,5105684695,15.08.2014,In-house Fostering,Boarding Out Allowances,242.08,REDACTED PERSONAL DATA
Revenue,Director of Childrens Services,5105684695,15.08.2014,In-house Fostering,Boarding Out Allowances,199.00,REDACTED PERSONAL DATA
Revenue,Director of Childrens Services,5105684695,15.08.2014,In-house Fostering,Boarding Out Allowances,200.00,REDACTED PERSONAL DATA
Revenue,Director of Childrens Services,5105682961,08.08.2014,In-house Fostering,Boarding Out Allowances,242.08,REDACTED PERSONAL DATA
Revenue,Director of Childrens Services,5105682961,08.08.2014,In-house Fostering,Boarding Out Allowances,199.00,REDACTED PERSONAL DATA
Revenue,Director of Childrens Services,5105685919,22.08.2014,In-house Fostering,Boarding Out Allowances,199.00,REDACTED PERSONAL DATA
Revenue,Director of Childrens Services,5105685919,22.08.2014,In-house Fostering,Boarding Out Allowances,200.00,REDACTED PERSONAL DATA
Revenue,Director of Childrens Services,5105685919,22.08.2014,In-house Fostering,Boarding Out Allowances,242.08,REDACTED PERSONAL DATA
Revenue,Director of Childrens Services,5105686558,29.08.2014,In-house Fostering,Boarding Out Allowances,199.00,REDACTED PERSONAL DATA
Revenue,Director of Childrens Services,5105686558,29.08.2014,In-house Fostering,Boarding Out Allowances,200.00,REDACTED PERSONAL DATA
Revenue,Director of Childrens Services,5105686558,29.08.2014,In-house Fostering,Boarding Out Allowances,242.08,REDACTED PERSONAL DATA
Revenue,Head of ASC & Community Wellbeing,5105686178,22.08.2014,Leaseholds by LA,Accommodation Costs - Leaseholder Payments,780.00,REDACTED PERSONAL DATA
Revenue,Head of ASC & Community Wellbeing,5105686165,22.08.2014,Leaseholds by LA,Accommodation Costs - Leaseholder Payments,649.83,REDACTED PERSONAL DATA
Revenue,Head of ASC & Community Wellbeing,5105686165,22.08.2014,Leaseholds by LA,Accommodation Costs - Leaseholder Payments,789.01,REDACTED PERSONAL DATA
Revenue,Head of ASC & Community Wellbeing,5105686165,22.08.2014,Leaseholds by LA,Accommodation Costs - Leaseholder Payments,835.08,REDACTED PERSONAL DATA
Revenue,Director of Childrens Services,5105682896,08.08.2014,Adoption Costs,Support Children,87.15,REDACTED PERSONAL DATA
Revenue,Director of Childrens Services,5105686492,29.08.2014,Adoption Costs,Support Children,87.15,REDACTED PERSONAL DATA
Revenue,Director of Childrens Services,5105685853,22.08.2014,Adoption Costs,Support Children,87.15,REDACTED PERSONAL DATA
Revenue,Director of Childrens Services,5105684630,15.08.2014,Adoption Costs,Support Children,87.15,REDACTED PERSONAL DATA
Revenue,Head of ASC & Community Wellbeing,5105682488,01.08.2014,Supporting People Older Persons,Payment to Private Contractors,"1,059.34",ABBEYFIELD WEST WIGHT SOCIETY
Revenue,Head of ASC & Community Wellbeing,5105686802,29.08.2014,Supporting People Older Persons,Payment to Private Contractors,"1,267.80",ABBEYFIELD WEST WIGHT SOCIETY
Revenue,Head of ASC & Community Wellbeing,5105683307,13.08.2014,Elderly Frail Residential Care,Charges from Independent Providers,"1,622.60",ACACIA CARE HOME
Revenue,Head of ASC & Community Wellbeing,5105683307,13.08.2014,Elderly Frail Residential Care,Charges from Independent Providers,"1,622.60",ACACIA CARE HOME
Revenue,Head of ASC & Community Wellbeing,5105683307,13.08.2014,Elderly Frail Residential Care,Charges from Independent Providers,"1,622.60",ACACIA CARE HOME
Revenue,Head of ASC & Community Wellbeing,5105683307,13.08.2014,Elderly Frail Residential Care,Charges from Independent Providers,"1,622.60",ACACIA CARE HOME
Revenue,Head of ASC & Community Wellbeing,5105683307,13.08.2014,Elderly Frail Residential Care,Charges from Independent Providers,"1,622.60",ACACIA CARE HOME
Revenue,Head of Planning & Regulatory Services,5105685298,15.08.2014,Licensing Services,Interview & recruitment expenses,616.00,ACCESS PERSONAL CHECKING SERVICES LTD
Revenue,Head of Planning & Regulatory Services,5105685298,15.08.2014,Licensing Services,Professional Services,84.00,ACCESS PERSONAL CHECKING SERVICES LTD
Revenue,Chief Fire Officer,5105682728,01.08.2014,Fire Technical Support,Maintenance of Operational Equipment,"1,000.00",ACCESS RESCUE CONSULTANTS
Revenue,Head of ASC & Community Wellbeing,5105681625,13.08.2014,Integrated Community Equipment Service,Operational Equipment,"1,186.00",ACCORA  LIMITED
Revenue,Head of ASC & Community Wellbeing,5105684174,13.08.2014,Elderly Frail Homecare,Charges from Independent Providers,534.24,ACORN CARE SERVICE LTD
Revenue,Head of ASC & Community Wellbeing,5105684175,13.08.2014,Elderly Frail Homecare,Charges from Independent Providers,716.03,ACORN CARE SERVICE LTD
Revenue,Head of ASC & Community Wellbeing,5105684176,13.08.2014,Elderly Frail Homecare,Charges from Independent Providers,103.88,ACORN CARE SERVICE LTD
Revenue,Head of ASC & Community Wellbeing,5105684177,13.08.2014,Elderly Frail Homecare,Charges from Independent Providers,44.52,ACORN CARE SERVICE LTD
Revenue,Head of ASC & Community Wellbeing,5105684178,13.08.2014,Elderly Frail Homecare,Charges from Independent Providers,163.24,ACORN CARE SERVICE LTD
Revenue,Head of ASC & Community Wellbeing,5105684179,13.08.2014,Elderly Frail Homecare,Charges from Independent Providers,103.88,ACORN CARE SERVICE LTD
Revenue,Head of ASC & Community Wellbeing,5105684180,13.08.2014,Elderly Frail Homecare,Charges from Independent Providers,786.52,ACORN CARE SERVICE LTD
Revenue,Head of ASC & Community Wellbeing,5105684166,13.08.2014,Elderly Frail Homecare,Charges from Independent Providers,"2,344.72",ACORN CARE SERVICE LTD
Revenue,Head of ASC & Community Wellbeing,5105684167,13.08.2014,Elderly Frail Homecare,Charges from Independent Providers,296.80,ACORN CARE SERVICE LTD
Revenue,Head of ASC & Community Wellbeing,5105684168,13.08.2014,Elderly Frail Homecare,Charges from Independent Providers,"1,554.49",ACORN CARE SERVICE LTD
Revenue,Head of ASC & Community Wellbeing,5105684169,13.08.2014,Elderly Frail Homecare,Charges from Independent Providers,"1,365.28",ACORN CARE SERVICE LTD
Revenue,Head of ASC & Community Wellbeing,5105684170,13.08.2014,Elderly Frail Homecare,Charges from Independent Providers,371.00,ACORN CARE SERVICE LTD
Revenue,Head of ASC & Community Wellbeing,5105684171,13.08.2014,Elderly Frail Homecare,Charges from Independent Providers,"1,157.52",ACORN CARE SERVICE LTD
Revenue,Head of ASC & Community Wellbeing,5105684172,13.08.2014,Elderly Frail Homecare,Charges from Independent Providers,845.88,ACORN CARE SERVICE LTD
Revenue,Head of ASC & Community Wellbeing,5105684173,13.08.2014,Elderly Frail Homecare,Charges from Independent Providers,207.76,ACORN CARE SERVICE LTD
Revenue,Head of ASC & Community Wellbeing,5105684164,13.08.2014,Elderly Frail Homecare,Charges from Independent Providers,44.52,ACORN CARE SERVICE LTD
Revenue,Head of ASC & Community Wellbeing,5105684165,13.08.2014,Elderly Frail Homecare,Charges from Independent Providers,"2,715.72",ACORN CARE SERVICE LTD
Revenue,Head of ASC & Community Wellbeing,5105684199,13.08.2014,Elderly Frail Homecare,Charges from Independent Providers,411.81,ACORN CARE SERVICE LTD
Revenue,Head of ASC & Community Wellbeing,5105684202,13.08.2014,Elderly Frail Homecare,Charges from Independent Providers,133.56,ACORN CARE SERVICE LTD
Revenue,Head of ASC & Community Wellbeing,5105684203,13.08.2014,Elderly Frail Homecare,Charges from Independent Providers,460.04,ACORN CARE SERVICE LTD
Revenue,Head of ASC & Community Wellbeing,5105684200,13.08.2014,Elderly Frail Homecare,Charges from Independent Providers,378.42,ACORN CARE SERVICE LTD
Revenue,Head of ASC & Community Wellbeing,5105684187,13.08.2014,Elderly Frail Homecare,Charges from Independent Providers,727.16,ACORN CARE SERVICE LTD
Revenue,Head of ASC & Community Wellbeing,5105684185,13.08.2014,Elderly Frail Homecare,Charges from Independent Providers,311.64,ACORN CARE SERVICE LTD
Revenue,Head of ASC & Community Wellbeing,5105684183,13.08.2014,Elderly Frail Homecare,Charges from Independent Providers,571.34,ACORN CARE SERVICE LTD
Revenue,Head of ASC & Community Wellbeing,5105684181,13.08.2014,Elderly Frail Homecare,Charges from Independent Providers,233.73,ACORN CARE SERVICE LTD
Revenue,Head of ASC & Community Wellbeing,5105684188,13.08.2014,Elderly Frail Homecare,Charges from Independent Providers,29.68,ACORN CARE SERVICE LTD
Revenue,Head of ASC & Community Wellbeing,5105684186,13.08.2014,Elderly Frail Homecare,Charges from Independent Providers,404.68,ACORN CARE SERVICE LTD
Revenue,Head of ASC & Community Wellbeing,5105684189,13.08.2014,Elderly Frail Homecare,Charges from Independent Providers,"2,619.26",ACORN CARE SERVICE LTD
Revenue,Head of ASC & Community Wellbeing,5105684191,13.08.2014,Elderly Frail Homecare,Charges from Independent Providers,74.20,ACORN CARE SERVICE LTD
Revenue,Head of ASC & Community Wellbeing,5105684192,13.08.2014,Elderly Frail Homecare,Charges from Independent Providers,660.38,ACORN CARE SERVICE LTD
Revenue,Head of ASC & Community Wellbeing,5105685450,15.08.2014,Elderly Frail Homecare,Charges from Independent Providers,623.28,ACORN CARE SERVICE LTD
Revenue,Head of ASC & Community Wellbeing,5105684205,13.08.2014,Elderly Frail Homecare,Charges from Independent Providers,51.94,ACORN CARE SERVICE LTD
Revenue,Head of ASC & Community Wellbeing,5105684194,13.08.2014,Elderly Frail Homecare,Charges from Independent Providers,511.98,ACORN CARE SERVICE LTD
Revenue,Head of ASC & Community Wellbeing,5105684195,13.08.2014,Elderly Frail Homecare,Charges from Independent Providers,345.03,ACORN CARE SERVICE LTD
Revenue,Head of ASC & Community Wellbeing,5105684197,13.08.2014,Elderly Frail Homecare,Charges from Independent Providers,415.52,ACORN CARE SERVICE LTD
Revenue,Head of ASC & Community Wellbeing,5105684198,13.08.2014,Elderly Frail Homecare,Charges from Independent Providers,467.46,ACORN CARE SERVICE LTD
Revenue,Head of ASC & Community Wellbeing,5105684193,13.08.2014,Elderly Frail Homecare,Regular Respite Care,118.72,ACORN CARE SERVICE LTD
Revenue,Head of ASC & Community Wellbeing,5105684184,13.08.2014,Elderly Frail Homecare,Regular Respite Care,237.44,ACORN CARE SERVICE LTD
Revenue,Head of ASC & Community Wellbeing,5105684182,13.08.2014,Elderly Frail Homecare,Regular Respite Care,89.04,ACORN CARE SERVICE LTD
Revenue,Head of ASC & Community Wellbeing,5105684204,13.08.2014,Elderly Frail Homecare,Regular Respite Care,118.72,ACORN CARE SERVICE LTD
Revenue,Head of ASC & Community Wellbeing,5105684196,13.08.2014,Elderly Frail Homecare,Regular Respite Care,118.72,ACORN CARE SERVICE LTD
Revenue,Head of ASC & Community Wellbeing,5105684190,13.08.2014,Elderly Frail Homecare,Regular Respite Care,118.72,ACORN CARE SERVICE LTD
Revenue,Head of ASC & Community Wellbeing,5105684201,13.08.2014,Elderly Mentally Ill Homecare,Charges from Independent Providers,422.94,ACORN CARE SERVICE LTD
Revenue,Chief Fire Officer,5105682574,01.08.2014,Fire Technical Support,Vehicle Maintenance Costs,14.50,ADAMS MOREY LTD
Revenue,Chief Fire Officer,5105686340,22.08.2014,Fire Technical Support,Vehicle Maintenance Costs,386.88,ADAMS MOREY LTD
Revenue,Chief Fire Officer,5105686340,22.08.2014,Fire Technical Support,Vehicle Maintenance Costs,0.82,ADAMS MOREY LTD
Revenue,Chief Fire Officer,5105686066,22.08.2014,Fire Technical Support,Vehicle Maintenance Costs,14.50,ADAMS MOREY LTD
Revenue,Chief Fire Officer,5105686065,22.08.2014,Fire Technical Support,Vehicle Maintenance Costs,40.00,ADAMS MOREY LTD
Revenue,Chief Fire Officer,5105685556,20.08.2014,Fire Technical Support,Vehicle Maintenance Costs,196.32,ADAMS MOREY LTD
Revenue,Chief Fire Officer,5105684027,13.08.2014,Fire Technical Support,Vehicle Maintenance Costs,3.69,ADAMS MOREY LTD
Revenue,Chief Fire Officer,5105684027,13.08.2014,Fire Technical Support,Vehicle Maintenance Costs,16.60,ADAMS MOREY LTD
Revenue,Chief Fire Officer,5105684018,13.08.2014,Fire Technical Support,Vehicle Maintenance Costs,6.60,ADAMS MOREY LTD
Revenue,Chief Fire Officer,5105684556,13.08.2014,Fire Technical Support,Vehicle Maintenance Costs,59.91,ADAMS MOREY LTD
Revenue,Chief Fire Officer,5105686662,29.08.2014,Fire Technical Support,Vehicle Maintenance Costs,14.50,ADAMS MOREY LTD
Revenue,Chief Fire Officer,5105686764,29.08.2014,Fire Technical Support,Vehicle Maintenance Costs,436.80,ADAMS MOREY LTD
Revenue,Chief Fire Officer,5105686764,29.08.2014,Fire Technical Support,Vehicle Maintenance Costs,19.00,ADAMS MOREY LTD
Revenue,Chief Fire Officer,5105686764,29.08.2014,Fire Technical Support,Vehicle Maintenance Costs,41.25,ADAMS MOREY LTD
Revenue,Head of ASC & Community Wellbeing,5105683185,13.08.2014,Elderly Frail Residential Care,Charges from Independent Providers,"1,812.44",ADIEMUS CARE LTD
Revenue,Director of Childrens Services,5105683177,08.08.2014,Adoption Costs,Advertising & Publicity,685.13,ADOPTION UK
Revenue,Head of ASC & Community Wellbeing,5105683129,08.08.2014,Renewal & Enforcement,Payments to Voluntary and Other Associations,"26,660.00",AGE CONCERN T/A AGE UK
Revenue,Head of ASC & Community Wellbeing,5105685800,20.08.2014,Learning Disability Homes Management & Admin,Publications,49.96,AGORA BUSINESS PUBLICATIONS LLP
Revenue,Head of ASC & Community Wellbeing,5105683772,13.08.2014,Elderly Frail Residential Care,Charges from Independent Providers,"1,837.08",REDACTED PERSONAL DATA
Revenue,Director of Childrens Services,5105685339,15.08.2014,LSCB (Local Safeguarding Childrens Board),Professional Services,"8,781.15",ALAN BEDFORD CONSULTING
Revenue,Head of ASC & Community Wellbeing,5105681956,01.08.2014,Homelessness,Medical Fees and Staff Welfare,25.15,ALBERT STREET PRACTICE
Revenue,Managing Director & Head of Paid Service,5105682685,01.08.2014,STI Tests & Treatment,Payment to Private Contractors,50.00,ALBERT STREET PRACTICE
Revenue,Managing Director & Head of Paid Service,5105682685,01.08.2014,Stop Smoking Services & Interventions,Payment to Private Contractors,320.00,ALBERT STREET PRACTICE
Revenue,Head of Planning & Regulatory Services,5105683966,13.08.2014,Development Control,Advertising & Publicity,449.80,ALEXANDER ADVERTISING (INT) LTD
Revenue,Head of Planning & Regulatory Services,5105686435,27.08.2014,Development Control,Advertising & Publicity,251.05,ALEXANDER ADVERTISING (INT) LTD
Revenue,Head of Planning & Regulatory Services,5105686726,29.08.2014,Development Control,Advertising & Publicity,387.04,ALEXANDER ADVERTISING (INT) LTD
Revenue,Head of Planning & Regulatory Services,5105686091,22.08.2014,Development Control,Advertising & Publicity,496.87,ALEXANDER ADVERTISING (INT) LTD
Revenue,Head of Planning & Regulatory Services,5105685815,22.08.2014,Development Control,Advertising & Publicity,376.58,ALEXANDER ADVERTISING (INT) LTD
Revenue,Director of Childrens Services,5105681246,29.08.2014,Complaints (Children & Families),Professional Services,"2,581.50",ALISON CAMPBELL LTD
Revenue,Director of Childrens Services,5105686084,27.08.2014,Disabled Childrens Team,Transport of Clients,44.70,ALPHA (IOW) LTD
Revenue,Director of Childrens Services,5105682260,13.08.2014,Agency Domiciliary Care,Charges from Independent Providers,73.35,ALPHA (IOW) LTD
Revenue,Director of Childrens Services,5105686084,27.08.2014,Agency Domiciliary Care,Charges from Independent Providers,36.00,ALPHA (IOW) LTD
Revenue,Director of Childrens Services,5105686084,27.08.2014,Support for Looked After Children - Disabled Childrens Team,Transport of Clients,"1,200.00",ALPHA (IOW) LTD
Revenue,Director of Childrens Services,5105682260,13.08.2014,Support for Looked After Children - Disabled Childrens Team,Transport of Clients,600.00,ALPHA (IOW) LTD
Revenue,Director of Childrens Services,5105682260,13.08.2014,Support for Looked After Children - Disabled Childrens Team,Professional Services,133.50,ALPHA (IOW) LTD
Revenue,Director of Childrens Services,5105682260,13.08.2014,Independ. & Non-Maint. Special Schls & Independ. Specialist Provision,Transport of Clients,600.00,ALPHA (IOW) LTD
Revenue,Director of Childrens Services,5105682260,13.08.2014,Independ. & Non-Maint. Special Schls & Independ. Specialist Provision,Transport of Clients,133.50,ALPHA (IOW) LTD
Revenue,Director of Childrens Services,5105683896,13.08.2014,Special Educational Needs Transport,Taxis - Contract Hire,189.84,ALPHA (IOW) LTD
Revenue,Director of Childrens Services,5105683896,13.08.2014,Special Educational Needs Transport,Taxis - Contract Hire,158.22,ALPHA (IOW) LTD
Revenue,Director of Childrens Services,5105683896,13.08.2014,Special Educational Needs Transport,Taxis - Contract Hire,270.00,ALPHA (IOW) LTD
Revenue,Director of Childrens Services,5105683896,13.08.2014,Special Educational Needs Transport,Taxis - Contract Hire,185.04,ALPHA (IOW) LTD
Revenue,Director of Childrens Services,5105683896,13.08.2014,Special Educational Needs Transport,Taxis - Contract Hire,243.39,ALPHA (IOW) LTD
Revenue,Director of Childrens Services,5105683896,13.08.2014,Special Educational Needs Transport,Taxis - Contract Hire,74.01,ALPHA (IOW) LTD
Revenue,Director of Childrens Services,5105683896,13.08.2014,Special Educational Needs Transport,Taxis - Contract Hire,240.00,ALPHA (IOW) LTD
Revenue,Director of Childrens Services,5105683896,13.08.2014,Special Educational Needs Transport,Taxis - Contract Hire,180.00,ALPHA (IOW) LTD
Revenue,Director of Childrens Services,5105683896,13.08.2014,Special Educational Needs Transport,Taxis - Contract Hire,222.06,ALPHA (IOW) LTD
Revenue,Director of Childrens Services,5105683896,13.08.2014,Special Educational Needs Transport,Taxis - Contract Hire,320.70,ALPHA (IOW) LTD
Revenue,Director of Childrens Services,5105681864,06.08.2014,Special Educational Needs Transport,Taxis - Contract Hire,84.40,ALPHA (IOW) LTD
Revenue,Director of Childrens Services,5105681864,06.08.2014,Special Educational Needs Transport,Taxis - Contract Hire,300.00,ALPHA (IOW) LTD
Revenue,Director of Childrens Services,5105681864,06.08.2014,Special Educational Needs Transport,Taxis - Contract Hire,185.05,ALPHA (IOW) LTD
Revenue,Director of Childrens Services,5105681864,06.08.2014,Special Educational Needs Transport,Taxis - Contract Hire,263.70,ALPHA (IOW) LTD
Revenue,Director of Childrens Services,5105681864,06.08.2014,Special Educational Needs Transport,Taxis - Contract Hire,450.00,ALPHA (IOW) LTD
Revenue,Director of Childrens Services,5105681864,06.08.2014,Special Educational Needs Transport,Taxis - Contract Hire,308.40,ALPHA (IOW) LTD
Revenue,Director of Childrens Services,5105681864,06.08.2014,Special Educational Needs Transport,Taxis - Contract Hire,405.65,ALPHA (IOW) LTD
Revenue,Director of Childrens Services,5105681864,06.08.2014,Special Educational Needs Transport,Taxis - Contract Hire,123.35,ALPHA (IOW) LTD
Revenue,Director of Childrens Services,5105681864,06.08.2014,Special Educational Needs Transport,Taxis - Contract Hire,316.40,ALPHA (IOW) LTD
Revenue,Director of Childrens Services,5105681864,06.08.2014,Special Educational Needs Transport,Taxis - Contract Hire,400.00,ALPHA (IOW) LTD
Revenue,Director of Childrens Services,5105681864,06.08.2014,Special Educational Needs Transport,Taxis - Contract Hire,300.00,ALPHA (IOW) LTD
Revenue,Director of Childrens Services,5105681864,06.08.2014,Special Educational Needs Transport,Taxis - Contract Hire,370.10,ALPHA (IOW) LTD
Revenue,Director of Childrens Services,5105681864,06.08.2014,Special Educational Needs Transport,Taxis - Contract Hire,534.50,ALPHA (IOW) LTD
Revenue,Director of Childrens Services,5105683896,13.08.2014,Special Educational Needs Transport,Taxis - Contract Hire,50.64,ALPHA (IOW) LTD
Revenue,Director of Childrens Services,5105683896,13.08.2014,Special Educational Needs Transport,Taxis - Contract Hire,180.00,ALPHA (IOW) LTD
Revenue,Director of Childrens Services,5105683896,13.08.2014,Special Educational Needs Transport,Taxis - Contract Hire,111.03,ALPHA (IOW) LTD
Revenue,Director of Childrens Services,5105683896,13.08.2014,Home to School Transport,Taxis - Contract Hire,252.90,ALPHA (IOW) LTD
Revenue,Director of Childrens Services,5105683896,13.08.2014,Home to School Transport,Taxis - Contract Hire,186.00,ALPHA (IOW) LTD
Revenue,Director of Childrens Services,5105683896,13.08.2014,Home to School Transport,Taxis - Contract Hire,165.00,ALPHA (IOW) LTD
Revenue,Director of Childrens Services,5105681864,06.08.2014,Home to School Transport,Taxis - Contract Hire,11.31,ALPHA (IOW) LTD
Revenue,Director of Childrens Services,5105681864,06.08.2014,Home to School Transport,Taxis - Contract Hire,158.20,ALPHA (IOW) LTD
Revenue,Director of Childrens Services,5105681864,06.08.2014,Home to School Transport,Taxis - Contract Hire,408.95,ALPHA (IOW) LTD
Revenue,Director of Childrens Services,5105681864,06.08.2014,Home to School Transport,Taxis - Contract Hire,390.65,ALPHA (IOW) LTD
Revenue,Director of Childrens Services,5105681864,06.08.2014,Home to School Transport,Taxis - Contract Hire,128.50,ALPHA (IOW) LTD
Revenue,Director of Childrens Services,5105681864,06.08.2014,Home to School Transport,Taxis - Contract Hire,421.50,ALPHA (IOW) LTD
Revenue,Director of Childrens Services,5105681864,06.08.2014,Home to School Transport,Taxis - Contract Hire,310.00,ALPHA (IOW) LTD
Revenue,Director of Childrens Services,5105681864,06.08.2014,Home to School Transport,Taxis - Contract Hire,275.00,ALPHA (IOW) LTD
Revenue,Director of Childrens Services,5105683896,13.08.2014,Home to School Transport,Taxis - Contract Hire,94.92,ALPHA (IOW) LTD
Revenue,Director of Childrens Services,5105683896,13.08.2014,Home to School Transport,Taxis - Contract Hire,77.10,ALPHA (IOW) LTD
Revenue,Director of Childrens Services,5105683896,13.08.2014,Home to School Transport,Taxis - Contract Hire,245.37,ALPHA (IOW) LTD
Revenue,Director of Childrens Services,5105683896,13.08.2014,Home to School Transport,Taxis - Contract Hire,234.39,ALPHA (IOW) LTD
Revenue,Head of ASC & Community Wellbeing,5105683225,13.08.2014,Learning Disability Residential Care,Charges from Independent Providers,"3,836.84",ALPHAGRANGE LTD
Revenue,Head of Economy & Tourism,5105686436,27.08.2014,Crematorium,Professional Services,557.14,ALS ENVIRONMENTAL LTD
Revenue,Head of Economy & Tourism,5105685697,20.08.2014,Crematorium,Professional Services,657.64,ALS ENVIRONMENTAL LTD
Revenue,Director of Childrens Services,5105685352,15.08.2014,Home to School Transport,Taxis - Contract Hire,308.00,AMAR CABS OF NEWPORT
Revenue,Director of Childrens Services,5105685354,15.08.2014,Thompson House Tuition Centre (PRU),Transport of Clients,49.50,AMAR EXCLUSIVES
Revenue,Head of Finance & S151 Officer,5105684591,13.08.2014,Project Manager Waste Strategy,Consultants Fees,"3,830.64",AMEC ENVIRONMENT AND INFRASTRUCTURE UK LTD
Revenue,Head of Finance & S151 Officer,5105684591,13.08.2014,Project Manager Waste Strategy,Professional Services,"1,247.00",AMEC ENVIRONMENT AND INFRASTRUCTURE UK LTD
Revenue,Head of ASC & Community Wellbeing,5105683227,13.08.2014,Elderly Frail Residential Care,Charges from Independent Providers,"1,699.88",ANCONA CARE HOME
Revenue,Head of ASC & Community Wellbeing,5105683227,13.08.2014,Elderly Frail Residential Care,Charges from Independent Providers,"1,998.08",ANCONA CARE HOME
Revenue,Head of ASC & Community Wellbeing,5105684608,13.08.2014,Elderly Mentally Ill Residential Care,Charges from Independent Providers,"1,699.88",ANCONA CARE HOME
Revenue,Head of ASC & Community Wellbeing,5105683227,13.08.2014,Elderly Mentally Ill Residential Care,Charges from Independent Providers,"1,699.88",ANCONA CARE HOME
Revenue,Head of ASC & Community Wellbeing,5105683227,13.08.2014,REDACTED PERSONAL DATA,Order Settlement to Bal Sht GL,"1,998.08",ANCONA CARE HOME
Revenue,Head of Economy & Tourism,5105682752,06.08.2014,Print Unit,Printing Costs,58.40,ANTALIS MCNAUGHTON
Revenue,Head of Economy & Tourism,5105682752,06.08.2014,Print Unit,Printing Costs,122.64,ANTALIS MCNAUGHTON
Revenue,Head of Economy & Tourism,5105683075,08.08.2014,Print Unit,Printing Costs,106.49,ANTALIS MCNAUGHTON
Revenue,Head of Economy & Tourism,5105683076,08.08.2014,Print Unit,Printing Costs,-106.49,ANTALIS MCNAUGHTON
Revenue,Head of Economy & Tourism,5105683076,08.08.2014,Print Unit,Printing Costs,-94.87,ANTALIS MCNAUGHTON
Revenue,Head of Economy & Tourism,5105683075,08.08.2014,Print Unit,Printing Costs,94.87,ANTALIS MCNAUGHTON
Revenue,Head of Economy & Tourism,5105683838,13.08.2014,Print Unit,Printing Costs,230.70,ANTALIS MCNAUGHTON
Revenue,Head of Economy & Tourism,5105683839,13.08.2014,Print Unit,Printing Costs,93.20,ANTALIS MCNAUGHTON
Revenue,Head of Economy & Tourism,5105684518,13.08.2014,Print Unit,Printing Costs,63.48,ANTALIS MCNAUGHTON
Revenue,Head of Economy & Tourism,5105684518,13.08.2014,Print Unit,Printing Costs,42.18,ANTALIS MCNAUGHTON
Revenue,Head of Economy & Tourism,5105684518,13.08.2014,Print Unit,Printing Costs,45.00,ANTALIS MCNAUGHTON
Revenue,Head of Economy & Tourism,5105686711,29.08.2014,Print Unit,Printing Costs,118.80,ANTALIS MCNAUGHTON
Revenue,Head of ASC & Community Wellbeing,5105685297,15.08.2014,Integrated Community Equipment Service,Operational Equipment,"1,999.50",APOLLO HEALTHCARE TECHNOLOGIES
Revenue,Head of HR & Organisational Change,5105686871,29.08.2014,Human Resources,Operational Equipment,7.12,ARCO LTD
Revenue,Head of HR & Organisational Change,5105686871,29.08.2014,Human Resources,Operational Equipment,7.12,ARCO LTD
Revenue,Head of HR & Organisational Change,5105686893,08.08.2014,Human Resources,Operational Equipment,15.12,ARCO LTD
Revenue,Head of HR & Organisational Change,5105686893,08.08.2014,Human Resources,Operational Equipment,20.35,ARCO LTD
Revenue,Head of HR & Organisational Change,5105686893,08.08.2014,Human Resources,Operational Equipment,15.82,ARCO LTD
Revenue,Head of HR & Organisational Change,5105686893,08.08.2014,Human Resources,Operational Equipment,55.49,ARCO LTD
Revenue,Head of HR & Organisational Change,5105686893,08.08.2014,Human Resources,Operational Equipment,20.25,ARCO LTD
Revenue,Head of Economy & Tourism,5105682536,01.08.2014,Leisure Management & Admin,Clothing & Laundry,17.25,ARCO LTD
Revenue,Head of Economy & Tourism,5105682536,01.08.2014,The Heights,Clothing & Laundry,260.95,ARCO LTD
Revenue,Head of Economy & Tourism,5105682552,01.08.2014,Ferry Operation,Clothing & Laundry,13.76,ARCO LTD
Revenue,Head of Economy & Tourism,5105682552,01.08.2014,Ferry Operation,Clothing & Laundry,13.76,ARCO LTD
Revenue,Head of Economy & Tourism,5105686289,22.08.2014,Ferry Operation,Clothing & Laundry,7.20,ARCO LTD
Revenue,Head of Economy & Tourism,5105686289,22.08.2014,Ferry Operation,Clothing & Laundry,10.16,ARCO LTD
Revenue,Head of Economy & Tourism,5105686289,22.08.2014,Ferry Operation,Clothing & Laundry,10.16,ARCO LTD
Revenue,Managing Director & Head of Paid Service,5105682866,06.08.2014,Contraception,Payment to Private Contractors,180.00,ARGYLL HOUSE SURGERY
Revenue,Managing Director & Head of Paid Service,5105682866,06.08.2014,NHS Health Check Programme,Payment to Private Contractors,397.00,ARGYLL HOUSE SURGERY
Revenue,Managing Director & Head of Paid Service,5105682866,06.08.2014,STI Tests & Treatment,Payment to Private Contractors,10.00,ARGYLL HOUSE SURGERY
Revenue,Managing Director & Head of Paid Service,5105682866,06.08.2014,Stop Smoking Services & Interventions,Payment to Private Contractors,400.00,ARGYLL HOUSE SURGERY
Revenue,Head of ASC & Community Wellbeing,5105682716,01.08.2014,Plean Dene,Maintenance of Operational Equipment,454.80,ARJO MED AB LTD
Capital,Head of ASC & Community Wellbeing,5105682612,01.08.2014,Adelaide & Gouldings Fixtures & Fittings,"Plant, Equipment & Furniture - Capital","10,635.00",ARJO MED AB LTD
Revenue,Head of HR & Organisational Change,5105685419,15.08.2014,"County Hall,Newport",Prop Svs only - Day to day mtce,"1,221.55",ASSA ABLOY ENTRANCE SYSTEMS LTD
Revenue,Head of HR & Organisational Change,5105685676,20.08.2014,"Seaclose Offices, Newport",Prop Svs only - Day to day mtce,11.40,ASSA ABLOY ENTRANCE SYSTEMS LTD
Revenue,Head of HR & Organisational Change,5105681456,29.08.2014,"Seaclose Offices, Newport",Prop Svs only - Day to day mtce,426.97,ASSA ABLOY ENTRANCE SYSTEMS LTD
Revenue,Head of Economy & Tourism,5105685836,27.08.2014,Ferry Maintenance,Maintenance of Operational Equipment,54.18,ASSOCIATED BRITISH PORTS
Revenue,Director of Childrens Services,5105684001,13.08.2014,Adult Community Learning,Licences,420.00,ASSOCIATION OF ADULT EDUCATION
Revenue,Chief Fire Officer,5105682745,06.08.2014,Fire Operations,Agency staff,"8,075.00",ASTRIUM LTD
Revenue,Director of Childrens Services,5105685668,20.08.2014,Branstone Farm Studies Centre,Vehicle Maintenance Costs,87.00,ATS EUROMASTER LTD
Revenue,Chief Fire Officer,5105686406,27.08.2014,Fire Technical Support,Vehicle Maintenance Costs,110.45,ATS EUROMASTER LTD
Revenue,Chief Fire Officer,5105686406,27.08.2014,Fire Technical Support,Vehicle Maintenance Costs,4.35,ATS EUROMASTER LTD
Revenue,Chief Fire Officer,5105686406,27.08.2014,Fire Technical Support,Vehicle Maintenance Costs,1.16,ATS EUROMASTER LTD
Revenue,Chief Fire Officer,5105686406,27.08.2014,Fire Technical Support,Vehicle Maintenance Costs,1.86,ATS EUROMASTER LTD
Revenue,Chief Fire Officer,5105686406,27.08.2014,Fire Technical Support,Vehicle Maintenance Costs,220.91,ATS EUROMASTER LTD
Revenue,Chief Fire Officer,5105686406,27.08.2014,Fire Technical Support,Vehicle Maintenance Costs,8.70,ATS EUROMASTER LTD
Revenue,Chief Fire Officer,5105686406,27.08.2014,Fire Technical Support,Vehicle Maintenance Costs,2.32,ATS EUROMASTER LTD
Revenue,Chief Fire Officer,5105686406,27.08.2014,Fire Technical Support,Vehicle Maintenance Costs,3.72,ATS EUROMASTER LTD
Revenue,Head of Economy & Tourism,5105681958,01.08.2014,Medina Leisure Centre,Operational Equipment,"2,542.05",AUDIENCE SYSTEMS LTD
Revenue,Director of Childrens Services,5105686683,29.08.2014,Purchased Residential,Charges from Independent Providers,"31,716.74",AUTISM WESSEX
Revenue,Director of Childrens Services,5105686681,29.08.2014,Purchased Residential,Charges from Independent Providers,"23,124.42",AUTISM WESSEX
Revenue,Director of Childrens Services,5105686681,29.08.2014,NHS Funded Placements,Charges from Independent Providers,"2,566.47",AUTISM WESSEX
Revenue,Director of Childrens Services,5105686683,29.08.2014,NHS Funded Placements,Charges from Independent Providers,"3,524.68",AUTISM WESSEX
Revenue,Director of Childrens Services,5105686683,29.08.2014,Independ. & Non-Maint. Special Schls & Independ. Specialist Provision,Charges from Independent Providers,"17,841.00",AUTISM WESSEX
Revenue,Director of Childrens Services,5105686681,29.08.2014,Independ. & Non-Maint. Special Schls & Independ. Specialist Provision,Charges from Independent Providers,"11,721.21",AUTISM WESSEX
Revenue,Head of Exchequer Services,5105685317,15.08.2014,Creditor Payments Shared Service Centre,Stationery,813.60,AUTOMAIL ENVELOPES LTD
Revenue,Head of ASC & Community Wellbeing,5105683197,13.08.2014,Elderly Frail Residential Care,Charges from Independent Providers,"1,998.08",AUTUMN HOUSE CARE LTD
Revenue,Head of ASC & Community Wellbeing,5105686911,08.08.2014,Elderly Frail Residential Care,Charges from Independent Providers,71.36,AUTUMN HOUSE CARE LTD
Revenue,Head of ASC & Community Wellbeing,5105686424,27.08.2014,Elderly Mentally Ill Residential Care,Charges from Independent Providers,"2,093.84",AUTUMN HOUSE CARE LTD
Revenue,Head of ASC & Community Wellbeing,5105686476,29.08.2014,Elderly Mentally Ill Residential Care,Charges from Independent Providers,224.34,AUTUMN HOUSE CARE LTD
Revenue,Head of ASC & Community Wellbeing,5105686476,29.08.2014,Elderly Mentally Ill Residential Care,Charges from Independent Providers,"2,093.84",AUTUMN HOUSE CARE LTD
Revenue,Head of ASC & Community Wellbeing,5105685464,20.08.2014,Elderly Mentally Ill Residential Care,Regular Respite Care,890.68,AUTUMN HOUSE CARE LTD
Revenue,Head of ASC & Community Wellbeing,5105683197,13.08.2014,Elderly Mentally Ill Residential Care,Charges from Independent Providers,"1,699.88",AUTUMN HOUSE CARE LTD
Revenue,Head of ASC & Community Wellbeing,5105683197,13.08.2014,Elderly Mentally Ill Residential Care,Charges from Independent Providers,"1,998.08",AUTUMN HOUSE CARE LTD
Revenue,Head of ASC & Community Wellbeing,5105683197,13.08.2014,Elderly Mentally Ill Residential Care,Charges from Independent Providers,"1,998.08",AUTUMN HOUSE CARE LTD
Revenue,Head of ASC & Community Wellbeing,5105683197,13.08.2014,Elderly Mentally Ill Residential Care,Charges from Independent Providers,"1,998.08",AUTUMN HOUSE CARE LTD
Revenue,Head of ASC & Community Wellbeing,5105683197,13.08.2014,Elderly Mentally Ill Residential Care,Charges from Independent Providers,"1,998.08",AUTUMN HOUSE CARE LTD
Revenue,Head of ASC & Community Wellbeing,5105683197,13.08.2014,Elderly Mentally Ill Residential Care,Charges from Independent Providers,"1,998.08",AUTUMN HOUSE CARE LTD
Revenue,Head of ASC & Community Wellbeing,5105683197,13.08.2014,Elderly Mentally Ill Residential Care,Charges from Independent Providers,"1,699.88",AUTUMN HOUSE CARE LTD
Revenue,Head of ASC & Community Wellbeing,5105683197,13.08.2014,Elderly Mentally Ill Residential Care,Charges from Independent Providers,"1,998.08",AUTUMN HOUSE CARE LTD
Revenue,Head of ASC & Community Wellbeing,5105683197,13.08.2014,Elderly Mentally Ill Residential Care,Charges from Independent Providers,"1,998.08",AUTUMN HOUSE CARE LTD
Revenue,Head of ASC & Community Wellbeing,5105682738,01.08.2014,Elderly Mentally Ill Residential Care,Charges from Independent Providers,"1,420.82",AUTUMN HOUSE CARE LTD
Revenue,Head of ASC & Community Wellbeing,5105682738,01.08.2014,Elderly Mentally Ill Residential Care,Charges from Independent Providers,"2,093.84",AUTUMN HOUSE CARE LTD
Revenue,Head of ASC & Community Wellbeing,5105683197,13.08.2014,Elderly Mentally Ill Residential Care,Charges from Independent Providers,"1,998.08",AUTUMN HOUSE CARE LTD
Revenue,Head of ASC & Community Wellbeing,5105683197,13.08.2014,Elderly Mentally Ill Residential Care,Charges from Independent Providers,"1,998.08",AUTUMN HOUSE CARE LTD
Revenue,Head of ASC & Community Wellbeing,5105683197,13.08.2014,Elderly Mentally Ill Residential Care,Charges from Independent Providers,"1,998.08",AUTUMN HOUSE CARE LTD
Revenue,Head of ASC & Community Wellbeing,5105683197,13.08.2014,Elderly Mentally Ill Residential Care,Charges from Independent Providers,"1,699.88",AUTUMN HOUSE CARE LTD
Revenue,Head of ASC & Community Wellbeing,5105683197,13.08.2014,Elderly Mentally Ill Residential Care,Charges from Independent Providers,"1,998.08",AUTUMN HOUSE CARE LTD
Revenue,Head of ASC & Community Wellbeing,5105683197,13.08.2014,Elderly Mentally Ill Residential Care,Charges from Independent Providers,"2,093.84",AUTUMN HOUSE CARE LTD
Revenue,Head of ASC & Community Wellbeing,5105683197,13.08.2014,Elderly Mentally Ill Residential Care,Charges from Independent Providers,"1,699.88",AUTUMN HOUSE CARE LTD
Revenue,Head of ASC & Community Wellbeing,5105683197,13.08.2014,Elderly Mentally Ill Residential Care,Charges from Independent Providers,"1,998.08",AUTUMN HOUSE CARE LTD
Revenue,Head of ASC & Community Wellbeing,5105683197,13.08.2014,Elderly Mentally Ill Residential Care,Charges from Independent Providers,"1,998.08",AUTUMN HOUSE CARE LTD
Revenue,Head of ASC & Community Wellbeing,5105683197,13.08.2014,Elderly Mentally Ill Residential Care,Charges from Independent Providers,"1,998.08",AUTUMN HOUSE CARE LTD
Revenue,Head of ASC & Community Wellbeing,5105683197,13.08.2014,Elderly Mentally Ill Residential Care,Charges from Independent Providers,"1,998.08",AUTUMN HOUSE CARE LTD
Revenue,Head of ASC & Community Wellbeing,5105682620,01.08.2014,Mental Health Residential Care,Charges from Independent Providers,"1,032.41",AUTUMN HOUSE CARE LTD
Revenue,Head of ASC & Community Wellbeing,5105682620,01.08.2014,Mental Health Residential Care,Charges from Independent Providers,"5,101.32",AUTUMN HOUSE CARE LTD
Revenue,Head of ASC & Community Wellbeing,5105683197,13.08.2014,Mental Health Residential Care,Charges from Independent Providers,"1,700.44",AUTUMN HOUSE CARE LTD
Revenue,Head of ASC & Community Wellbeing,5105683197,13.08.2014,Physical Disability Residential Care,Charges from Independent Providers,"1,998.08",AUTUMN HOUSE CARE LTD
Revenue,Head of ASC & Community Wellbeing,5105683197,13.08.2014,REDACTED PERSONAL DATA,Order Settlement to Bal Sht GL,"1,998.08",AUTUMN HOUSE CARE LTD
Revenue,Director of Childrens Services,5105682915,08.08.2014,Leaving Care Costs,Support Children,120.89,REDACTED PERSONAL DATA
Revenue,Director of Childrens Services,5105684649,15.08.2014,Leaving Care Costs,Support Children,120.89,REDACTED PERSONAL DATA
Revenue,Director of Childrens Services,5105685872,22.08.2014,Leaving Care Costs,Support Children,120.89,REDACTED PERSONAL DATA
Revenue,Director of Childrens Services,5105686511,29.08.2014,Leaving Care Costs,Support Children,120.89,REDACTED PERSONAL DATA
Revenue,Director of Childrens Services,5105682915,08.08.2014,Leaving Care Costs,Accommodation Costs - Service Users,57.50,REDACTED PERSONAL DATA
Revenue,Director of Childrens Services,5105684649,15.08.2014,Leaving Care Costs,Accommodation Costs - Service Users,57.50,REDACTED PERSONAL DATA
Revenue,Director of Childrens Services,5105685872,22.08.2014,Leaving Care Costs,Accommodation Costs - Service Users,57.50,REDACTED PERSONAL DATA
Revenue,Director of Childrens Services,5105686511,29.08.2014,Leaving Care Costs,Accommodation Costs - Service Users,57.50,REDACTED PERSONAL DATA
Revenue,Head of Economy & Tourism,5105685540,20.08.2014,Fort Victoria,General Materials,58.46,B & Q FINANCIAL SERVICES
Revenue,Director of Childrens Services,5105683043,08.08.2014,Leaving Care Costs,Support Children,7.48,REDACTED PERSONAL DATA
Revenue,Head of ASC & Community Wellbeing,5105683212,13.08.2014,Learning Disability Residential Care,Charges from Independent Providers,"1,811.88",REDACTED PERSONAL DATA
Revenue,Head of ASC & Community Wellbeing,5105683212,13.08.2014,Learning Disability Residential Care,Charges from Independent Providers,"1,811.88",REDACTED PERSONAL DATA
Revenue,Head of ASC & Community Wellbeing,5105683212,13.08.2014,Learning Disability Residential Care,Charges from Independent Providers,"2,625.00",REDACTED PERSONAL DATA
Revenue,Head of ASC & Community Wellbeing,5105686162,22.08.2014,Leaseholds by LA,Accommodation Costs - Leaseholder Payments,815.49,REDACTED PERSONAL DATA
Revenue,Head of Exchequer Services,5105686230,22.08.2014,Staff Benefits,Payment to Private Contractors,243.00,REDACTED PERSONAL DATA
Revenue,Head of Exchequer Services,5105686230,22.08.2014,Staff Benefits,Payment to Private Contractors,100.00,REDACTED PERSONAL DATA
Revenue,Head of Exchequer Services,5105686230,22.08.2014,Staff Benefits,Payment to Private Contractors,243.00,REDACTED PERSONAL DATA
Revenue,Head of ASC & Community Wellbeing,5105686169,22.08.2014,Leaseholds by LA,Accommodation Costs - Leaseholder Payments,799.50,REDACTED PERSONAL DATA
Revenue,Head of ASC & Community Wellbeing,5105686169,22.08.2014,Leaseholds by LA,Accommodation Costs - Leaseholder Payments,866.67,REDACTED PERSONAL DATA
Revenue,Head of ASC & Community Wellbeing,5105686169,22.08.2014,Leaseholds by LA,Accommodation Costs - Leaseholder Payments,866.67,REDACTED PERSONAL DATA
Revenue,Head of ASC & Community Wellbeing,5105686169,22.08.2014,Leaseholds by LA,Accommodation Costs - Leaseholder Payments,888.33,REDACTED PERSONAL DATA
Revenue,Head of ASC & Community Wellbeing,5105686169,22.08.2014,Leaseholds by LA,Accommodation Costs - Leaseholder Payments,799.50,REDACTED PERSONAL DATA
Revenue,Head of Planning & Regulatory Services,5105685330,15.08.2014,Coast Protection,Payment to Private Contractors,"3,883.00",B W MOORING SERVICES LTD
Revenue,Head of Planning & Regulatory Services,5105685401,15.08.2014,Coast Protection,Payment to Private Contractors,"1,943.40",B W MOORING SERVICES LTD
Revenue,Director of Childrens Services,5105682859,06.08.2014,In-house Fostering,Professional Services,554.88,BAAF REGISTERED CHARITY
Revenue,Director of Childrens Services,5105685294,15.08.2014,Purchased Residential,Charges from Independent Providers,"5,134.28",BACK ON TRACK
Capital,Head of HR & Organisational Change,5105681059,29.08.2014,Management of Asbestos,Payment to Contractors - Capital,270.73,BALFOUR BEATTY
Capital,Head of HR & Organisational Change,5105682742,06.08.2014,Strategic Projects,Payment to Contractors - Capital,"61,830.22",BALFOUR BEATTY
Revenue,Chief Fire Officer,5105686730,29.08.2014,Deputy Chief Fire Office,Prop Svs only - Day to day mtce,186.91,BALFOUR BEATTY
Revenue,Chief Fire Officer,5105686685,29.08.2014,Deputy Chief Fire Office,Prop Svs only - Day to day mtce,"1,212.37",BALFOUR BEATTY
Revenue,Chief Fire Officer,5105683925,13.08.2014,Fire Technical Support,Payment to Private Contractors,"6,683.45",BALLYCLARE LTD
Revenue,Chief Fire Officer,5105683923,13.08.2014,Fire Technical Support,Payment to Private Contractors,585.19,BALLYCLARE LTD
Revenue,Chief Fire Officer,5105682524,01.08.2014,Fire Technical Support,Vehicle Maintenance Costs,150.00,BARTLETTS SERVICE STATION
Revenue,Chief Fire Officer,5105686312,22.08.2014,Diversity & Workforce,Operational Equipment,150.00,BARTLETTS SERVICE STATION
Revenue,Chief Fire Officer,5105685558,20.08.2014,Diversity & Workforce,Operational Equipment,150.00,BARTLETTS SERVICE STATION
Revenue,Chief Fire Officer,5105683976,13.08.2014,Diversity & Workforce,Operational Equipment,120.00,BARTLETTS SERVICE STATION
Revenue,Head of Exchequer Services,5105686212,22.08.2014,Staff Benefits,Payment to Private Contractors,50.00,BARTON PRIMARY & EARLY YEARS
Revenue,Head of Exchequer Services,5105686212,22.08.2014,Staff Benefits,Payment to Private Contractors,11.67,BARTON PRIMARY & EARLY YEARS
Revenue,Head of Exchequer Services,5105686212,22.08.2014,Staff Benefits,Payment to Private Contractors,12.00,BARTON PRIMARY & EARLY YEARS
Revenue,Director of Childrens Services,5105686257,22.08.2014,Disabled Childrens Team,Transport of Clients,600.00,BEACON TAXIS
Revenue,Director of Childrens Services,5105686257,22.08.2014,Disabled Childrens Team,Transport of Clients,600.00,BEACON TAXIS
Revenue,Director of Childrens Services,5105686256,22.08.2014,Disabled Childrens Team,Transport of Clients,720.00,BEACON TAXIS
Revenue,Director of Childrens Services,5105686256,22.08.2014,Statutory Assessment and Review Team,Transport of Clients,720.00,BEACON TAXIS
Revenue,Head of ASC & Community Wellbeing,5105683420,13.08.2014,Elderly Mentally Ill Nursing Mainland,Charges from Independent Providers,"2,269.40",BEAUMONT LODGE LTD
Revenue,Managing Director & Head of Paid Service,5105683094,08.08.2014,Contraception,Payment to Private Contractors,190.00,BEECH GROVE SURGERY
Revenue,Managing Director & Head of Paid Service,5105683094,08.08.2014,NHS Health Check Programme,Payment to Private Contractors,"1,622.00",BEECH GROVE SURGERY
Revenue,Managing Director & Head of Paid Service,5105683094,08.08.2014,STI Tests & Treatment,Payment to Private Contractors,60.00,BEECH GROVE SURGERY
Revenue,Managing Director & Head of Paid Service,5105683094,08.08.2014,Stop Smoking Services & Interventions,Payment to Private Contractors,320.00,BEECH GROVE SURGERY
Revenue,Head of Corp Gov & Monitoring Officer,5105686148,22.08.2014,Elections,Rent of Buildings and Rooms,81.00,BEMBRIDGE VILLAGE HALL
Revenue,Head of ASC & Community Wellbeing,5105685665,20.08.2014,B&B Properties,Accommodation Costs - Bed & Breakfast,"1,848.00",BERTRAM LODGE
Revenue,Head of ASC & Community Wellbeing,5105682054,01.08.2014,31 Carter Avenue,Operational Equipment,96.99,BETA PAK LTD
Revenue,Head of ASC & Community Wellbeing,5105682587,01.08.2014,31 Carter Avenue,Operational Equipment,-29.50,BETA PAK LTD
Revenue,Head of ASC & Community Wellbeing,5105683089,08.08.2014,31 Carter Avenue,Operational Equipment,16.50,BETA PAK LTD
Revenue,Head of ASC & Community Wellbeing,5105681863,01.08.2014,31 Carter Avenue,Operational Equipment,29.50,BETA PAK LTD
Revenue,Head of ASC & Community Wellbeing,5105680888,29.08.2014,31 Carter Avenue,Operational Equipment,77.24,BETA PAK LTD
Revenue,Head of ASC & Community Wellbeing,5105686661,29.08.2014,Overbrook,Operational Equipment,29.14,BETA PAK LTD
Revenue,Head of ASC & Community Wellbeing,5105683890,15.08.2014,Seagulls,Operational Equipment,14.29,BETA PAK LTD
Revenue,Head of ASC & Community Wellbeing,5105683133,08.08.2014,Seagulls,Operational Equipment,37.30,BETA PAK LTD
Revenue,Head of ASC & Community Wellbeing,5105681861,01.08.2014,Seagulls,Operational Equipment,14.54,BETA PAK LTD
Revenue,Head of ASC & Community Wellbeing,5105681923,01.08.2014,Seagulls,Operational Equipment,-7.64,BETA PAK LTD
Revenue,Head of ASC & Community Wellbeing,5105682671,01.08.2014,Seagulls,Operational Equipment,44.04,BETA PAK LTD
Revenue,Head of ASC & Community Wellbeing,5105682706,01.08.2014,Plean Dene,Operational Equipment,13.09,BETA PAK LTD
Revenue,Head of ASC & Community Wellbeing,5105682707,01.08.2014,Plean Dene,Operational Equipment,21.42,BETA PAK LTD
Revenue,Head of ASC & Community Wellbeing,5105682711,01.08.2014,Plean Dene,Operational Equipment,3.71,BETA PAK LTD
Revenue,Head of ASC & Community Wellbeing,5105682316,27.08.2014,Plean Dene,Operational Equipment,260.00,BETA PAK LTD
Revenue,Head of ASC & Community Wellbeing,5105683132,08.08.2014,Plean Dene,Operational Equipment,5.50,BETA PAK LTD
Revenue,Head of ASC & Community Wellbeing,5105685589,20.08.2014,Plean Dene,Operational Equipment,45.74,BETA PAK LTD
Revenue,Head of ASC & Community Wellbeing,5105685589,20.08.2014,Plean Dene,Operational Equipment,45.96,BETA PAK LTD
Revenue,Head of ASC & Community Wellbeing,5105686086,22.08.2014,Plean Dene,Operational Equipment,18.92,BETA PAK LTD
Revenue,Head of ASC & Community Wellbeing,5105686389,27.08.2014,Plean Dene,Operational Equipment,-260.00,BETA PAK LTD
Revenue,Head of ASC & Community Wellbeing,5105686865,29.08.2014,Saxonbury,Operational Equipment,14.40,BETA PAK LTD
Revenue,Head of ASC & Community Wellbeing,5105686060,22.08.2014,Saxonbury,Operational Equipment,246.30,BETA PAK LTD
Revenue,Head of ASC & Community Wellbeing,5105683083,08.08.2014,Saxonbury,Operational Equipment,2.92,BETA PAK LTD
Revenue,Head of ASC & Community Wellbeing,5105681679,01.08.2014,Saxonbury,Operational Equipment,17.21,BETA PAK LTD
Revenue,Head of ASC & Community Wellbeing,5105682557,01.08.2014,Saxonbury,Operational Equipment,110.60,BETA PAK LTD
Revenue,Head of ASC & Community Wellbeing,5105682543,01.08.2014,Saxonbury,Operational Equipment,170.55,BETA PAK LTD
Revenue,Head of ASC & Community Wellbeing,5105682549,01.08.2014,Saxonbury,Operational Equipment,11.52,BETA PAK LTD
Revenue,Head of ASC & Community Wellbeing,5105682709,01.08.2014,Saxonbury,Operational Equipment,32.75,BETA PAK LTD
Revenue,Head of ASC & Community Wellbeing,5105682710,01.08.2014,Saxonbury,Operational Equipment,32.75,BETA PAK LTD
Revenue,Head of ASC & Community Wellbeing,5105682554,01.08.2014,Highmead,Operational Equipment,128.44,BETA PAK LTD
Revenue,Head of ASC & Community Wellbeing,5105682698,01.08.2014,Highmead,Operational Equipment,264.17,BETA PAK LTD
Revenue,Head of ASC & Community Wellbeing,5105682701,01.08.2014,Highmead,Operational Equipment,33.00,BETA PAK LTD
Revenue,Head of ASC & Community Wellbeing,5105682697,01.08.2014,Highmead,Operational Equipment,90.00,BETA PAK LTD
Revenue,Head of ASC & Community Wellbeing,5105684531,13.08.2014,Highmead,Operational Equipment,27.50,BETA PAK LTD
Revenue,Head of ASC & Community Wellbeing,5105685306,15.08.2014,Highmead,Operational Equipment,12.30,BETA PAK LTD
Revenue,Head of ASC & Community Wellbeing,5105683892,13.08.2014,The Laurels,Operational Equipment,207.82,BETA PAK LTD
Revenue,Head of ASC & Community Wellbeing,5105685762,20.08.2014,The Laurels,Operational Equipment,128.74,BETA PAK LTD
Revenue,Head of ASC & Community Wellbeing,5105686112,22.08.2014,Wightcare,General Materials,90.66,BETA PAK LTD
Revenue,Head of ASC & Community Wellbeing,5105685356,15.08.2014,Adelaide Resource Centre,Consumable Cleaning Materials,38.55,BETA PAK LTD
Revenue,Head of ASC & Community Wellbeing,5105685310,15.08.2014,Adelaide Resource Centre,Consumable Cleaning Materials,67.86,BETA PAK LTD
Revenue,Head of ASC & Community Wellbeing,5105685417,15.08.2014,Gouldings Resource Centre,Consumable Cleaning Materials,672.84,BETA PAK LTD
Revenue,Head of ASC & Community Wellbeing,5105683065,08.08.2014,Gouldings Resource Centre,Catering Purchases,77.96,BETA PAK LTD
Revenue,Head of ASC & Community Wellbeing,5105686297,22.08.2014,Westminster House,Operational Equipment,6.58,BETA PAK LTD
Revenue,Head of Economy & Tourism,5105685629,20.08.2014,Dinosaur Isle Museum (Sandown Geology),Operational Equipment,29.76,BETA PAK LTD
Revenue,Head of Economy & Tourism,5105685629,20.08.2014,Dinosaur Isle Museum (Sandown Geology),Operational Equipment,37.89,BETA PAK LTD
Revenue,Head of Economy & Tourism,5105685629,20.08.2014,Dinosaur Isle Museum (Sandown Geology),Operational Equipment,143.52,BETA PAK LTD
Revenue,Head of Economy & Tourism,5105685629,20.08.2014,Dinosaur Isle Museum (Sandown Geology),Operational Equipment,48.84,BETA PAK LTD
Revenue,Head of ASC & Community Wellbeing,5105685073,15.08.2014,Elderly Frail Homecare,Charges from Independent Providers,118.72,BETTER AT HOME IOW LTD
Revenue,Head of ASC & Community Wellbeing,5105685074,15.08.2014,Elderly Frail Homecare,Charges from Independent Providers,467.46,BETTER AT HOME IOW LTD
Revenue,Head of ASC & Community Wellbeing,5105685072,15.08.2014,Elderly Frail Homecare,Charges from Independent Providers,178.08,BETTER AT HOME IOW LTD
Revenue,Head of ASC & Community Wellbeing,5105685071,15.08.2014,Elderly Frail Homecare,Charges from Independent Providers,66.78,BETTER AT HOME IOW LTD
Revenue,Head of ASC & Community Wellbeing,5105685070,15.08.2014,Elderly Frail Homecare,Charges from Independent Providers,"1,246.56",BETTER AT HOME IOW LTD
Revenue,Head of ASC & Community Wellbeing,5105685067,15.08.2014,Elderly Frail Homecare,Charges from Independent Providers,44.52,BETTER AT HOME IOW LTD
Revenue,Head of ASC & Community Wellbeing,5105685068,15.08.2014,Elderly Frail Homecare,Charges from Independent Providers,44.52,BETTER AT HOME IOW LTD
Revenue,Head of ASC & Community Wellbeing,5105686252,22.08.2014,Elderly Frail Homecare,Charges from Independent Providers,226.31,BETTER AT HOME IOW LTD
Revenue,Head of ASC & Community Wellbeing,5105685107,15.08.2014,Elderly Frail Homecare,Charges from Independent Providers,59.36,BETTER AT HOME IOW LTD
Revenue,Head of ASC & Community Wellbeing,5105685098,15.08.2014,Elderly Frail Homecare,Charges from Independent Providers,623.28,BETTER AT HOME IOW LTD
Revenue,Head of ASC & Community Wellbeing,5105685099,15.08.2014,Elderly Frail Homecare,Charges from Independent Providers,192.92,BETTER AT HOME IOW LTD
Revenue,Head of ASC & Community Wellbeing,5105685093,15.08.2014,Elderly Frail Homecare,Charges from Independent Providers,281.96,BETTER AT HOME IOW LTD
Revenue,Head of ASC & Community Wellbeing,5105685094,15.08.2014,Elderly Frail Homecare,Charges from Independent Providers,44.52,BETTER AT HOME IOW LTD
Revenue,Head of ASC & Community Wellbeing,5105685104,15.08.2014,Elderly Frail Homecare,Charges from Independent Providers,44.52,BETTER AT HOME IOW LTD
Revenue,Head of ASC & Community Wellbeing,5105685105,15.08.2014,Elderly Frail Homecare,Charges from Independent Providers,300.78,BETTER AT HOME IOW LTD
Revenue,Head of ASC & Community Wellbeing,5105685100,15.08.2014,Elderly Frail Homecare,Charges from Independent Providers,233.73,BETTER AT HOME IOW LTD
Revenue,Head of ASC & Community Wellbeing,5105685095,15.08.2014,Elderly Frail Homecare,Charges from Independent Providers,842.17,BETTER AT HOME IOW LTD
Revenue,Head of ASC & Community Wellbeing,5105685386,15.08.2014,Elderly Frail Homecare,Charges from Independent Providers,831.04,BETTER AT HOME IOW LTD
Revenue,Head of ASC & Community Wellbeing,5105685080,15.08.2014,Elderly Frail Homecare,Charges from Independent Providers,133.56,BETTER AT HOME IOW LTD
Revenue,Head of ASC & Community Wellbeing,5105685081,15.08.2014,Elderly Frail Homecare,Charges from Independent Providers,467.46,BETTER AT HOME IOW LTD
Revenue,Head of ASC & Community Wellbeing,5105685082,15.08.2014,Elderly Frail Homecare,Charges from Independent Providers,207.76,BETTER AT HOME IOW LTD
Revenue,Head of ASC & Community Wellbeing,5105685083,15.08.2014,Elderly Frail Homecare,Charges from Independent Providers,341.32,BETTER AT HOME IOW LTD
Revenue,Head of ASC & Community Wellbeing,5105685085,15.08.2014,Elderly Frail Homecare,Charges from Independent Providers,415.52,BETTER AT HOME IOW LTD
Revenue,Head of ASC & Community Wellbeing,5105685092,15.08.2014,Elderly Frail Homecare,Charges from Independent Providers,545.37,BETTER AT HOME IOW LTD
Revenue,Head of ASC & Community Wellbeing,5105685092,15.08.2014,Elderly Frail Homecare,Charges from Independent Providers,"1,309.63",BETTER AT HOME IOW LTD
Revenue,Head of ASC & Community Wellbeing,5105685062,15.08.2014,Elderly Frail Homecare,Charges from Independent Providers,207.76,BETTER AT HOME IOW LTD
Revenue,Head of ASC & Community Wellbeing,5105685063,15.08.2014,Elderly Frail Homecare,Charges from Independent Providers,14.84,BETTER AT HOME IOW LTD
Revenue,Head of ASC & Community Wellbeing,5105685064,15.08.2014,Elderly Frail Homecare,Charges from Independent Providers,422.94,BETTER AT HOME IOW LTD
Revenue,Head of ASC & Community Wellbeing,5105685053,15.08.2014,Elderly Frail Homecare,Charges from Independent Providers,927.50,BETTER AT HOME IOW LTD
Revenue,Head of ASC & Community Wellbeing,5105685089,15.08.2014,Elderly Frail Homecare,Charges from Independent Providers,103.88,BETTER AT HOME IOW LTD
Revenue,Head of ASC & Community Wellbeing,5105685090,15.08.2014,Elderly Frail Homecare,Charges from Independent Providers,178.08,BETTER AT HOME IOW LTD
Revenue,Head of ASC & Community Wellbeing,5105685091,15.08.2014,Elderly Frail Homecare,Charges from Independent Providers,675.22,BETTER AT HOME IOW LTD
Revenue,Head of ASC & Community Wellbeing,5105685091,15.08.2014,Elderly Frail Homecare,Charges from Independent Providers,103.88,BETTER AT HOME IOW LTD
Revenue,Head of ASC & Community Wellbeing,5105685075,15.08.2014,Elderly Frail Homecare,Charges from Independent Providers,415.52,BETTER AT HOME IOW LTD
Revenue,Head of ASC & Community Wellbeing,5105685076,15.08.2014,Elderly Frail Homecare,Charges from Independent Providers,207.76,BETTER AT HOME IOW LTD
Revenue,Head of ASC & Community Wellbeing,5105685078,15.08.2014,Elderly Frail Homecare,Charges from Independent Providers,248.57,BETTER AT HOME IOW LTD
Revenue,Head of ASC & Community Wellbeing,5105685032,15.08.2014,Elderly Frail Homecare,Charges from Independent Providers,59.36,BETTER AT HOME IOW LTD
Revenue,Head of ASC & Community Wellbeing,5105685033,15.08.2014,Elderly Frail Homecare,Charges from Independent Providers,"1,087.03",BETTER AT HOME IOW LTD
Revenue,Head of ASC & Community Wellbeing,5105685035,15.08.2014,Elderly Frail Homecare,Charges from Independent Providers,259.70,BETTER AT HOME IOW LTD
Revenue,Head of ASC & Community Wellbeing,5105685036,15.08.2014,Elderly Frail Homecare,Charges from Independent Providers,589.89,BETTER AT HOME IOW LTD
Revenue,Head of ASC & Community Wellbeing,5105685037,15.08.2014,Elderly Frail Homecare,Charges from Independent Providers,667.80,BETTER AT HOME IOW LTD
Revenue,Head of ASC & Community Wellbeing,5105685038,15.08.2014,Elderly Frail Homecare,Charges from Independent Providers,994.28,BETTER AT HOME IOW LTD
Revenue,Head of ASC & Community Wellbeing,5105685034,15.08.2014,Elderly Frail Homecare,Charges from Independent Providers,946.05,BETTER AT HOME IOW LTD
Revenue,Head of ASC & Community Wellbeing,5105685039,15.08.2014,Elderly Frail Homecare,Charges from Independent Providers,"1,038.80",BETTER AT HOME IOW LTD
Revenue,Head of ASC & Community Wellbeing,5105685041,15.08.2014,Elderly Frail Homecare,Charges from Independent Providers,415.52,BETTER AT HOME IOW LTD
Revenue,Head of ASC & Community Wellbeing,5105685041,15.08.2014,Elderly Frail Homecare,Charges from Independent Providers,103.88,BETTER AT HOME IOW LTD
Revenue,Head of ASC & Community Wellbeing,5105685042,15.08.2014,Elderly Frail Homecare,Charges from Independent Providers,415.52,BETTER AT HOME IOW LTD
Revenue,Head of ASC & Community Wellbeing,5105685043,15.08.2014,Elderly Frail Homecare,Charges from Independent Providers,155.82,BETTER AT HOME IOW LTD
Revenue,Head of ASC & Community Wellbeing,5105685044,15.08.2014,Elderly Frail Homecare,Charges from Independent Providers,545.37,BETTER AT HOME IOW LTD
Revenue,Head of ASC & Community Wellbeing,5105685045,15.08.2014,Elderly Frail Homecare,Charges from Independent Providers,"1,016.54",BETTER AT HOME IOW LTD
Revenue,Head of ASC & Community Wellbeing,5105685046,15.08.2014,Elderly Frail Homecare,Charges from Independent Providers,415.52,BETTER AT HOME IOW LTD
Revenue,Head of ASC & Community Wellbeing,5105685040,15.08.2014,Elderly Frail Homecare,Charges from Independent Providers,"1,038.80",BETTER AT HOME IOW LTD
Revenue,Head of ASC & Community Wellbeing,5105685047,15.08.2014,Elderly Frail Homecare,Charges from Independent Providers,727.16,BETTER AT HOME IOW LTD
Revenue,Head of ASC & Community Wellbeing,5105685048,15.08.2014,Elderly Frail Homecare,Charges from Independent Providers,415.52,BETTER AT HOME IOW LTD
Revenue,Head of ASC & Community Wellbeing,5105685051,15.08.2014,Elderly Frail Homecare,Charges from Independent Providers,623.28,BETTER AT HOME IOW LTD
Revenue,Head of ASC & Community Wellbeing,5105685049,15.08.2014,Elderly Frail Homecare,Charges from Independent Providers,207.76,BETTER AT HOME IOW LTD
Revenue,Head of ASC & Community Wellbeing,5105685052,15.08.2014,Elderly Frail Homecare,Charges from Independent Providers,415.52,BETTER AT HOME IOW LTD
Revenue,Head of ASC & Community Wellbeing,5105685054,15.08.2014,Elderly Frail Homecare,Charges from Independent Providers,549.08,BETTER AT HOME IOW LTD
Revenue,Head of ASC & Community Wellbeing,5105685055,15.08.2014,Elderly Frail Homecare,Charges from Independent Providers,207.76,BETTER AT HOME IOW LTD
Revenue,Head of ASC & Community Wellbeing,5105685056,15.08.2014,Elderly Frail Homecare,Charges from Independent Providers,59.36,BETTER AT HOME IOW LTD
Revenue,Head of ASC & Community Wellbeing,5105685057,15.08.2014,Elderly Frail Homecare,Charges from Independent Providers,474.88,BETTER AT HOME IOW LTD
Revenue,Head of ASC & Community Wellbeing,5105685058,15.08.2014,Elderly Frail Homecare,Charges from Independent Providers,248.57,BETTER AT HOME IOW LTD
Revenue,Head of ASC & Community Wellbeing,5105685059,15.08.2014,Elderly Frail Homecare,Charges from Independent Providers,623.28,BETTER AT HOME IOW LTD
Revenue,Head of ASC & Community Wellbeing,5105685060,15.08.2014,Elderly Frail Homecare,Charges from Independent Providers,222.60,BETTER AT HOME IOW LTD
Revenue,Head of ASC & Community Wellbeing,5105685069,15.08.2014,Elderly Frail Homecare,Regular Respite Care,118.72,BETTER AT HOME IOW LTD
Revenue,Head of ASC & Community Wellbeing,5105685069,15.08.2014,Elderly Frail Homecare,Regular Respite Care,29.68,BETTER AT HOME IOW LTD
Revenue,Head of ASC & Community Wellbeing,5105685066,15.08.2014,Elderly Frail Homecare,Regular Respite Care,118.72,BETTER AT HOME IOW LTD
Revenue,Head of ASC & Community Wellbeing,5105685097,15.08.2014,Elderly Frail Homecare,Regular Respite Care,237.44,BETTER AT HOME IOW LTD
Revenue,Head of ASC & Community Wellbeing,5105685101,15.08.2014,Elderly Frail Homecare,Regular Respite Care,89.04,BETTER AT HOME IOW LTD
Revenue,Head of ASC & Community Wellbeing,5105685106,15.08.2014,Elderly Frail Homecare,Regular Respite Care,29.68,BETTER AT HOME IOW LTD
Revenue,Head of ASC & Community Wellbeing,5105685077,15.08.2014,Elderly Frail Homecare,Regular Respite Care,298.80,BETTER AT HOME IOW LTD
Revenue,Head of ASC & Community Wellbeing,5105685086,15.08.2014,Elderly Frail Homecare,Regular Respite Care,237.44,BETTER AT HOME IOW LTD
Revenue,Head of ASC & Community Wellbeing,5105685065,15.08.2014,Elderly Frail Homecare,Regular Respite Care,163.24,BETTER AT HOME IOW LTD
Revenue,Head of ASC & Community Wellbeing,5105685061,15.08.2014,Elderly Frail Homecare,Regular Respite Care,118.72,BETTER AT HOME IOW LTD
Revenue,Head of ASC & Community Wellbeing,5105685109,15.08.2014,Elderly Mentally Ill Homecare,Charges from Independent Providers,226.31,BETTER AT HOME IOW LTD
Revenue,Head of ASC & Community Wellbeing,5105685079,15.08.2014,Elderly Mentally Ill Homecare,Charges from Independent Providers,623.28,BETTER AT HOME IOW LTD
Revenue,Head of ASC & Community Wellbeing,5105686253,22.08.2014,Elderly Mentally Ill Homecare,Charges from Independent Providers,-226.31,BETTER AT HOME IOW LTD
Revenue,Head of ASC & Community Wellbeing,5105685108,15.08.2014,Elderly Mentally Ill Homecare,Charges from Independent Providers,0.00,BETTER AT HOME IOW LTD
Revenue,Head of ASC & Community Wellbeing,5105685050,15.08.2014,Mental Health Homecare,Charges from Independent Providers,244.86,BETTER AT HOME IOW LTD
Revenue,Head of ASC & Community Wellbeing,5105685096,15.08.2014,Physical Disability Homecare,Charges from Independent Providers,207.76,BETTER AT HOME IOW LTD
Revenue,Head of ASC & Community Wellbeing,5105685103,15.08.2014,Physical Disability Homecare,Charges from Independent Providers,727.16,BETTER AT HOME IOW LTD
Revenue,Head of ASC & Community Wellbeing,5105685084,15.08.2014,Physical Disability Homecare,Charges from Independent Providers,89.04,BETTER AT HOME IOW LTD
Revenue,Head of ASC & Community Wellbeing,5105685088,15.08.2014,Physical Disability Homecare,Charges from Independent Providers,311.64,BETTER AT HOME IOW LTD
Revenue,Head of ASC & Community Wellbeing,5105685087,15.08.2014,Physical Disability Homecare,Charges from Independent Providers,371.00,BETTER AT HOME IOW LTD
Revenue,Head of ASC & Community Wellbeing,5105685102,15.08.2014,Physical Disability Homecare,Regular Respite Care,59.36,BETTER AT HOME IOW LTD
Revenue,Head of Economy & Tourism,5105686731,29.08.2014,Public Libraries Central,Stationery,163.38,BIBLIOTHECA LTD
Revenue,Head of HR & Organisational Change,5105683983,13.08.2014,"Civic Centre,Sandown","Refuse Collection, Disposal and Recycling Costs",172.48,BIFFA WASTE SERVICES LTD
Revenue,Head of HR & Organisational Change,5105685420,15.08.2014,"Bugle House,Newport","Refuse Collection, Disposal and Recycling Costs",231.64,BIFFA WASTE SERVICES LTD
Revenue,Head of HR & Organisational Change,5105685420,15.08.2014,"Westridge, Ryde","Refuse Collection, Disposal and Recycling Costs",170.32,BIFFA WASTE SERVICES LTD
Revenue,Head of ASC & Community Wellbeing,5105685420,15.08.2014,Integrated Community Equipment Service,"Refuse Collection, Disposal and Recycling Costs",284.44,BIFFA WASTE SERVICES LTD
Revenue,Head of ASC & Community Wellbeing,5105685420,15.08.2014,31 Carter Avenue,"Refuse Collection, Disposal and Recycling Costs",162.60,BIFFA WASTE SERVICES LTD
Revenue,Head of ASC & Community Wellbeing,5105685420,15.08.2014,Overbrook,"Refuse Collection, Disposal and Recycling Costs",193.52,BIFFA WASTE SERVICES LTD
Revenue,Head of ASC & Community Wellbeing,5105685420,15.08.2014,Seagulls,"Refuse Collection, Disposal and Recycling Costs",158.20,BIFFA WASTE SERVICES LTD
Revenue,Head of ASC & Community Wellbeing,5105685420,15.08.2014,Plean Dene,"Refuse Collection, Disposal and Recycling Costs",240.44,BIFFA WASTE SERVICES LTD
Revenue,Head of ASC & Community Wellbeing,5105685420,15.08.2014,Saxonbury,"Refuse Collection, Disposal and Recycling Costs",158.20,BIFFA WASTE SERVICES LTD
Revenue,Head of ASC & Community Wellbeing,5105685420,15.08.2014,40 Venner Avenue,"Refuse Collection, Disposal and Recycling Costs",84.76,BIFFA WASTE SERVICES LTD
Revenue,Head of ASC & Community Wellbeing,5105685420,15.08.2014,Highmead,"Refuse Collection, Disposal and Recycling Costs",93.96,BIFFA WASTE SERVICES LTD
Revenue,Head of ASC & Community Wellbeing,5105685420,15.08.2014,The Laurels,"Refuse Collection, Disposal and Recycling Costs",93.96,BIFFA WASTE SERVICES LTD
Revenue,Head of ASC & Community Wellbeing,5105685316,15.08.2014,Gouldings Resource Centre,"Refuse Collection, Disposal and Recycling Costs",355.20,BIFFA WASTE SERVICES LTD
Revenue,Head of ASC & Community Wellbeing,5105686366,29.08.2014,Gouldings Resource Centre,"Refuse Collection, Disposal and Recycling Costs",171.60,BIFFA WASTE SERVICES LTD
Revenue,Head of ASC & Community Wellbeing,5105686367,29.08.2014,Gouldings Resource Centre,"Refuse Collection, Disposal and Recycling Costs",364.16,BIFFA WASTE SERVICES LTD
Revenue,Head of ASC & Community Wellbeing,5105685420,15.08.2014,Westminster House,"Refuse Collection, Disposal and Recycling Costs",43.68,BIFFA WASTE SERVICES LTD
Revenue,Head of Economy & Tourism,5105685420,15.08.2014,Leisure Management & Admin,"Refuse Collection, Disposal and Recycling Costs",231.64,BIFFA WASTE SERVICES LTD
Revenue,Head of Economy & Tourism,5105685420,15.08.2014,Public Libraries Central,"Refuse Collection, Disposal and Recycling Costs",42.88,BIFFA WASTE SERVICES LTD
Revenue,Director of Childrens Services,5105685420,15.08.2014,Learning & Development Running Costs,"Refuse Collection, Disposal and Recycling Costs",121.48,BIFFA WASTE SERVICES LTD
Revenue,Head of Economy & Tourism,5105685420,15.08.2014,Archives,"Refuse Collection, Disposal and Recycling Costs",184.50,BIFFA WASTE SERVICES LTD
Revenue,Head of Economy & Tourism,5105685420,15.08.2014,Cothey Bottom Store RYDE,"Refuse Collection, Disposal and Recycling Costs",85.16,BIFFA WASTE SERVICES LTD
Revenue,Head of Economy & Tourism,5105685420,15.08.2014,Dinosaur Isle Museum (Sandown Geology),"Refuse Collection, Disposal and Recycling Costs",141.26,BIFFA WASTE SERVICES LTD
Revenue,Head of Economy & Tourism,5105685420,15.08.2014,The Heights,"Refuse Collection, Disposal and Recycling Costs",582.20,BIFFA WASTE SERVICES LTD
Revenue,Head of Economy & Tourism,5105685420,15.08.2014,Medina Leisure Centre,"Refuse Collection, Disposal and Recycling Costs",377.24,BIFFA WASTE SERVICES LTD
Revenue,Head of Economy & Tourism,5105685420,15.08.2014,Westridge Squash Courts,"Refuse Collection, Disposal and Recycling Costs",85.16,BIFFA WASTE SERVICES LTD
Revenue,Head of Economy & Tourism,5105685420,15.08.2014,Ryde Harbour,"Refuse Collection, Disposal and Recycling Costs",226.39,BIFFA WASTE SERVICES LTD
Revenue,Head of Economy & Tourism,5105685420,15.08.2014,Seaclose Amusements,"Refuse Collection, Disposal and Recycling Costs",13.69,BIFFA WASTE SERVICES LTD
Revenue,Director of Childrens Services,5105685420,15.08.2014,Family Information Zone,"Refuse Collection, Disposal and Recycling Costs",16.64,BIFFA WASTE SERVICES LTD
Revenue,Director of Childrens Services,5105685420,15.08.2014,Workshop Initiative Support in Education,"Refuse Collection, Disposal and Recycling Costs",222.02,BIFFA WASTE SERVICES LTD
Revenue,Director of Childrens Services,5105685420,15.08.2014,Specialist Service Business Admin,"Refuse Collection, Disposal and Recycling Costs",236.40,BIFFA WASTE SERVICES LTD
Revenue,Director of Childrens Services,5105685420,15.08.2014,Beaulieu House,"Refuse Collection, Disposal and Recycling Costs",171.70,BIFFA WASTE SERVICES LTD
Revenue,Director of Childrens Services,5105685420,15.08.2014,Parent Partnership,"Refuse Collection, Disposal and Recycling Costs",16.64,BIFFA WASTE SERVICES LTD
Revenue,Director of Childrens Services,5105685420,15.08.2014,Education Participation Team,"Refuse Collection, Disposal and Recycling Costs",154.66,BIFFA WASTE SERVICES LTD
Revenue,Head of Economy & Tourism,5105685420,15.08.2014,Ferry Management,"Refuse Collection, Disposal and Recycling Costs",82.60,BIFFA WASTE SERVICES LTD
Revenue,Head of Economy & Tourism,5105685420,15.08.2014,IOW Festival Costs,Payment to Private Contractors,141.27,BIFFA WASTE SERVICES LTD
Revenue,Head of Economy & Tourism,5105685420,15.08.2014,Fort Victoria,"Refuse Collection, Disposal and Recycling Costs",250.00,BIFFA WASTE SERVICES LTD
Revenue,Head of HR & Organisational Change,5105685420,15.08.2014,Coastal Visitors Centre,"Refuse Collection, Disposal and Recycling Costs",80.44,BIFFA WASTE SERVICES LTD
Revenue,Head of Economy & Tourism,5105685420,15.08.2014,Newport Harbour Account,"Refuse Collection, Disposal and Recycling Costs",455.00,BIFFA WASTE SERVICES LTD
Revenue,Head of Economy & Tourism,5105685420,15.08.2014,Newport Harbour Account,"Refuse Collection, Disposal and Recycling Costs",318.28,BIFFA WASTE SERVICES LTD
Revenue,Chief Fire Officer,5105683984,20.08.2014,Fire Operations,"Refuse Collection, Disposal and Recycling Costs",187.20,BIFFA WASTE SERVICES LTD
Revenue,Chief Fire Officer,5105683985,20.08.2014,Fire Operations,"Refuse Collection, Disposal and Recycling Costs",257.80,BIFFA WASTE SERVICES LTD
Revenue,Chief Fire Officer,5105683986,20.08.2014,Fire Operations,"Refuse Collection, Disposal and Recycling Costs",46.55,BIFFA WASTE SERVICES LTD
Revenue,Head of Planning & Regulatory Services,5105685420,15.08.2014,Planning Business Support,"Refuse Collection, Disposal and Recycling Costs",236.40,BIFFA WASTE SERVICES LTD
Revenue,Head of Planning & Regulatory Services,5105685420,15.08.2014,Regulatory Management & Admin Support,"Refuse Collection, Disposal and Recycling Costs",158.20,BIFFA WASTE SERVICES LTD
Revenue,Head of Economy & Tourism,5105685420,15.08.2014,Crematorium,"Refuse Collection, Disposal and Recycling Costs",158.20,BIFFA WASTE SERVICES LTD
Revenue,Director of Childrens Services,5105683016,08.08.2014,Leaving Care Costs,Support Children,65.00,REDACTED PERSONAL DATA
Revenue,Director of Childrens Services,5105684749,15.08.2014,Leaving Care Costs,Support Children,65.00,REDACTED PERSONAL DATA
Revenue,Director of Childrens Services,5105685973,22.08.2014,Leaving Care Costs,Support Children,65.00,REDACTED PERSONAL DATA
Revenue,Director of Childrens Services,5105686612,29.08.2014,Leaving Care Costs,Support Children,65.00,REDACTED PERSONAL DATA
Revenue,Head of Economy & Tourism,5105683135,08.08.2014,SOREC Project ERDF,Consultants Fees,"19,600.00",BIP SOLUTIONS LTD
Revenue,Head of Economy & Tourism,5105683136,08.08.2014,SOREC Project ERDF,Consultants Fees,"-3,600.00",BIP SOLUTIONS LTD
Revenue,Director of Childrens Services,5105683167,08.08.2014,Purchased Fostering,Charges from Independent Providers,"3,230.51",BLUE SKY FOSTERING LTD
Revenue,Director of Childrens Services,5105683113,08.08.2014,Purchased Fostering,Charges from Independent Providers,"3,230.51",BLUE SKY FOSTERING LTD
Revenue,Director of Childrens Services,5105683112,08.08.2014,Purchased Fostering,Charges from Independent Providers,"3,230.51",BLUE SKY FOSTERING LTD
Revenue,Director of Childrens Services,5105672739,06.08.2014,Beaulieu House,General Materials,32.60,BOC LTD
Revenue,Director of Childrens Services,5105683092,08.08.2014,Beaulieu House,Professional Services,33.50,BOC LTD
Revenue,Director of Childrens Services,5105684547,13.08.2014,Short Breaks,Charges from Independent Providers,390.00,BODSTER EQUINE ASSISTED LEARN CIC
Revenue,Head of ASC & Community Wellbeing,5105678711,06.08.2014,Overbrook,Catering Purchases,102.54,BOOKER CASH & CARRY LTD
Revenue,Head of ASC & Community Wellbeing,5105685561,20.08.2014,Overbrook,Catering Purchases,75.53,BOOKER CASH & CARRY LTD
Revenue,Head of ASC & Community Wellbeing,5105683998,13.08.2014,Plean Dene,Catering Purchases,6.91,BOOKER CASH & CARRY LTD
Revenue,Head of ASC & Community Wellbeing,5105682854,06.08.2014,Plean Dene,Catering Purchases,40.44,BOOKER CASH & CARRY LTD
Revenue,Head of ASC & Community Wellbeing,5105682855,06.08.2014,Plean Dene,Catering Purchases,168.98,BOOKER CASH & CARRY LTD
Revenue,Head of ASC & Community Wellbeing,5105682855,06.08.2014,Plean Dene,Catering Purchases,16.46,BOOKER CASH & CARRY LTD
Revenue,Head of ASC & Community Wellbeing,5105682854,06.08.2014,Plean Dene,Catering Purchases,15.25,BOOKER CASH & CARRY LTD
Revenue,Head of ASC & Community Wellbeing,5105682616,01.08.2014,Plean Dene,Catering Purchases,142.21,BOOKER CASH & CARRY LTD
Revenue,Head of ASC & Community Wellbeing,5105682616,01.08.2014,Plean Dene,Catering Purchases,26.97,BOOKER CASH & CARRY LTD
Revenue,Head of ASC & Community Wellbeing,5105685327,15.08.2014,Plean Dene,Catering Purchases,4.50,BOOKER CASH & CARRY LTD
Revenue,Head of ASC & Community Wellbeing,5105685358,15.08.2014,Plean Dene,Catering Purchases,15.54,BOOKER CASH & CARRY LTD
Revenue,Head of ASC & Community Wellbeing,5105685501,20.08.2014,Plean Dene,Catering Purchases,128.14,BOOKER CASH & CARRY LTD
Revenue,Head of ASC & Community Wellbeing,5105685530,20.08.2014,Plean Dene,Catering Purchases,90.18,BOOKER CASH & CARRY LTD
Revenue,Head of ASC & Community Wellbeing,5105685632,20.08.2014,Plean Dene,Catering Purchases,7.18,BOOKER CASH & CARRY LTD
Revenue,Head of ASC & Community Wellbeing,5105685634,20.08.2014,Plean Dene,Catering Purchases,4.50,BOOKER CASH & CARRY LTD
Revenue,Head of ASC & Community Wellbeing,5105685634,20.08.2014,Plean Dene,Catering Purchases,8.97,BOOKER CASH & CARRY LTD
Revenue,Head of ASC & Community Wellbeing,5105685530,20.08.2014,Plean Dene,Catering Purchases,17.96,BOOKER CASH & CARRY LTD
Revenue,Head of ASC & Community Wellbeing,5105685501,20.08.2014,Plean Dene,Catering Purchases,34.90,BOOKER CASH & CARRY LTD
Revenue,Head of ASC & Community Wellbeing,5105684593,13.08.2014,Plean Dene,Catering Purchases,61.83,BOOKER CASH & CARRY LTD
Revenue,Head of ASC & Community Wellbeing,5105684593,13.08.2014,Plean Dene,Catering Purchases,18.00,BOOKER CASH & CARRY LTD
Revenue,Head of ASC & Community Wellbeing,5105686299,22.08.2014,Plean Dene,Catering Purchases,91.00,BOOKER CASH & CARRY LTD
Revenue,Head of ASC & Community Wellbeing,5105686334,22.08.2014,Plean Dene,Catering Purchases,129.95,BOOKER CASH & CARRY LTD
Revenue,Head of ASC & Community Wellbeing,5105686334,22.08.2014,Plean Dene,Catering Purchases,46.51,BOOKER CASH & CARRY LTD
Revenue,Director of Childrens Services,5105682299,13.08.2014,Pre-school Special Educational Needs,Operational Equipment,55.69,BOOKPOINT LTD
Revenue,Managing Director & Head of Paid Service,5105685485,20.08.2014,Contraception,Payment to Private Contractors,473.00,BOOTS THE CHEMIST LTD (Ryde)
Revenue,Managing Director & Head of Paid Service,5105685485,20.08.2014,Contraception,Payment to Private Contractors,98.80,BOOTS THE CHEMIST LTD (Ryde)
Revenue,Managing Director & Head of Paid Service,5105685485,20.08.2014,STI Tests & Treatment,Payment to Private Contractors,15.00,BOOTS THE CHEMIST LTD (Ryde)
Revenue,Managing Director & Head of Paid Service,5105685485,20.08.2014,STI Tests & Treatment,Payment to Private Contractors,30.00,BOOTS THE CHEMIST LTD (Ryde)
Revenue,Managing Director & Head of Paid Service,5105685485,20.08.2014,STI Tests & Treatment,Payment to Private Contractors,8.04,BOOTS THE CHEMIST LTD (Ryde)
Revenue,Managing Director & Head of Paid Service,5105685485,20.08.2014,Drug Misuse - Adults,Payment to Private Contractors,609.00,BOOTS THE CHEMIST LTD (Ryde)
Revenue,Managing Director & Head of Paid Service,5105685485,20.08.2014,Drug Misuse - Adults,Payment to Private Contractors,846.00,BOOTS THE CHEMIST LTD (Ryde)
Revenue,Managing Director & Head of Paid Service,5105685524,20.08.2014,Drug Misuse - Adults,Payment to Private Contractors,28.00,BOOTS UK LTD (107 HIGH ST SANDOWN)
Revenue,Managing Director & Head of Paid Service,5105685612,20.08.2014,Contraception,Payment to Private Contractors,21.50,BOOTS UK LTD (COWES)
Revenue,Managing Director & Head of Paid Service,5105685612,20.08.2014,Contraception,Payment to Private Contractors,5.20,BOOTS UK LTD (COWES)
Revenue,Managing Director & Head of Paid Service,5105685612,20.08.2014,Drug Misuse - Adults,Payment to Private Contractors,87.50,BOOTS UK LTD (COWES)
Revenue,Managing Director & Head of Paid Service,5105685612,20.08.2014,Drug Misuse - Adults,Payment to Private Contractors,94.00,BOOTS UK LTD (COWES)
Revenue,Managing Director & Head of Paid Service,5105685481,20.08.2014,Contraception,Payment to Private Contractors,322.50,BOOTS UK LTD (NEWPORT)
Revenue,Managing Director & Head of Paid Service,5105685481,20.08.2014,Contraception,Payment to Private Contractors,78.00,BOOTS UK LTD (NEWPORT)
Revenue,Managing Director & Head of Paid Service,5105685481,20.08.2014,STI Tests & Treatment,Payment to Private Contractors,5.00,BOOTS UK LTD (NEWPORT)
Revenue,Managing Director & Head of Paid Service,5105685488,20.08.2014,Contraception,Payment to Private Contractors,129.00,BOOTS UK LTD (SANDOWN LARGE STORE)
Revenue,Managing Director & Head of Paid Service,5105685488,20.08.2014,Contraception,Payment to Private Contractors,31.20,BOOTS UK LTD (SANDOWN LARGE STORE)
Revenue,Managing Director & Head of Paid Service,5105685488,20.08.2014,Drug Misuse - Adults,Payment to Private Contractors,63.00,BOOTS UK LTD (SANDOWN LARGE STORE)
Revenue,Managing Director & Head of Paid Service,5105685488,20.08.2014,Drug Misuse - Adults,Payment to Private Contractors,70.00,BOOTS UK LTD (SANDOWN LARGE STORE)
Revenue,Managing Director & Head of Paid Service,5105685557,20.08.2014,Contraception,Payment to Private Contractors,86.00,BOOTS UK LTD (TOWER HOUSE)
Revenue,Managing Director & Head of Paid Service,5105685557,20.08.2014,Contraception,Payment to Private Contractors,15.60,BOOTS UK LTD (TOWER HOUSE)
Revenue,Managing Director & Head of Paid Service,5105685557,20.08.2014,Drug Misuse - Adults,Payment to Private Contractors,21.00,BOOTS UK LTD (TOWER HOUSE)
Revenue,Managing Director & Head of Paid Service,5105685557,20.08.2014,Drug Misuse - Adults,Payment to Private Contractors,64.00,BOOTS UK LTD (TOWER HOUSE)
Revenue,Managing Director & Head of Paid Service,5105685490,20.08.2014,Contraception,Payment to Private Contractors,64.50,BOOTS UK LTD
Revenue,Managing Director & Head of Paid Service,5105685490,20.08.2014,Contraception,Payment to Private Contractors,10.40,BOOTS UK LTD
Revenue,Managing Director & Head of Paid Service,5105685490,20.08.2014,Drug Misuse - Adults,Payment to Private Contractors,143.50,BOOTS UK LTD
Revenue,Managing Director & Head of Paid Service,5105685490,20.08.2014,Drug Misuse - Adults,Payment to Private Contractors,138.00,BOOTS UK LTD
Revenue,Managing Director & Head of Paid Service,5105685525,20.08.2014,Contraception,Payment to Private Contractors,43.00,BOOTS UK LTD (YLB BEMBRIDGE)
Revenue,Managing Director & Head of Paid Service,5105685525,20.08.2014,Contraception,Payment to Private Contractors,10.40,BOOTS UK LTD (YLB BEMBRIDGE)
Revenue,Head of Economy & Tourism,5105682609,01.08.2014,The Heights,Stock Purchases,83.64,BRAKE BROS LTD
Revenue,Head of Economy & Tourism,5105682609,01.08.2014,The Heights,Stock Purchases,14.50,BRAKE BROS LTD
Revenue,Head of Economy & Tourism,5105685709,20.08.2014,The Heights,Stock Purchases,87.98,BRAKE BROS LTD
Revenue,Head of Economy & Tourism,5105685709,20.08.2014,The Heights,Stock Purchases,53.76,BRAKE BROS LTD
Revenue,Head of Economy & Tourism,5105684537,13.08.2014,The Heights,Stock Purchases,66.51,BRAKE BROS LTD
Revenue,Head of Economy & Tourism,5105684537,13.08.2014,The Heights,Stock Purchases,18.65,BRAKE BROS LTD
Revenue,Head of Economy & Tourism,5105686673,29.08.2014,The Heights,Stock Purchases,119.00,BRAKE BROS LTD
Revenue,Head of ASC & Community Wellbeing,5105686193,22.08.2014,Leaseholds by LA,Accommodation Costs - Leaseholder Payments,746.81,BRAMBLE LETTINGS
Revenue,Head of ASC & Community Wellbeing,5105686193,22.08.2014,Leaseholds by LA,Accommodation Costs - Leaseholder Payments,746.81,BRAMBLE LETTINGS
Revenue,Head of ASC & Community Wellbeing,5105686193,22.08.2014,Leaseholds by LA,Accommodation Costs - Leaseholder Payments,746.81,BRAMBLE LETTINGS
Revenue,Head of ASC & Community Wellbeing,5105686193,22.08.2014,Leaseholds by LA,Accommodation Costs - Leaseholder Payments,746.81,BRAMBLE LETTINGS
Revenue,Head of ASC & Community Wellbeing,5105686193,22.08.2014,Leaseholds by LA,Accommodation Costs - Leaseholder Payments,746.81,BRAMBLE LETTINGS
Revenue,Head of ASC & Community Wellbeing,5105686193,22.08.2014,Leaseholds by LA,Accommodation Costs - Leaseholder Payments,588.38,BRAMBLE LETTINGS
Revenue,Head of ASC & Community Wellbeing,5105686193,22.08.2014,Leaseholds by LA,Accommodation Costs - Leaseholder Payments,588.38,BRAMBLE LETTINGS
Revenue,Head of ASC & Community Wellbeing,5105686193,22.08.2014,Leaseholds by LA,Accommodation Costs - Leaseholder Payments,588.38,BRAMBLE LETTINGS
Revenue,Head of ASC & Community Wellbeing,5105686193,22.08.2014,Leaseholds by LA,Accommodation Costs - Leaseholder Payments,588.38,BRAMBLE LETTINGS
Revenue,Head of ASC & Community Wellbeing,5105686193,22.08.2014,Leaseholds by LA,Accommodation Costs - Leaseholder Payments,588.38,BRAMBLE LETTINGS
Revenue,Head of ASC & Community Wellbeing,5105686193,22.08.2014,Leaseholds by LA,Accommodation Costs - Leaseholder Payments,746.81,BRAMBLE LETTINGS
Revenue,Head of ASC & Community Wellbeing,5105686193,22.08.2014,Leaseholds by LA,Accommodation Costs - Leaseholder Payments,588.38,BRAMBLE LETTINGS
Revenue,Head of ASC & Community Wellbeing,5105686193,22.08.2014,Leaseholds by LA,Accommodation Costs - Leaseholder Payments,746.81,BRAMBLE LETTINGS
Revenue,Head of ASC & Community Wellbeing,5105686193,22.08.2014,Leaseholds by LA,Accommodation Costs - Leaseholder Payments,769.43,BRAMBLE LETTINGS
Revenue,Head of ASC & Community Wellbeing,5105686193,22.08.2014,Leaseholds by LA,Accommodation Costs - Leaseholder Payments,746.81,BRAMBLE LETTINGS
Revenue,Head of ASC & Community Wellbeing,5105686193,22.08.2014,Leaseholds by LA,Accommodation Costs - Leaseholder Payments,746.81,BRAMBLE LETTINGS
Revenue,Head of ASC & Community Wellbeing,5105686193,22.08.2014,Leaseholds by LA,Accommodation Costs - Leaseholder Payments,746.81,BRAMBLE LETTINGS
Revenue,Head of ASC & Community Wellbeing,5105686193,22.08.2014,Leaseholds by LA,Accommodation Costs - Leaseholder Payments,746.81,BRAMBLE LETTINGS
Revenue,Head of ASC & Community Wellbeing,5105686193,22.08.2014,Leaseholds by LA,Accommodation Costs - Leaseholder Payments,746.81,BRAMBLE LETTINGS
Revenue,Head of ASC & Community Wellbeing,5105686193,22.08.2014,Leaseholds by LA,Accommodation Costs - Leaseholder Payments,746.81,BRAMBLE LETTINGS
Revenue,Head of ASC & Community Wellbeing,5105686193,22.08.2014,Leaseholds by LA,Accommodation Costs - Leaseholder Payments,746.81,BRAMBLE LETTINGS
Revenue,Head of ASC & Community Wellbeing,5105686193,22.08.2014,Leaseholds by LA,Accommodation Costs - Leaseholder Payments,746.81,BRAMBLE LETTINGS
Revenue,Managing Director & Head of Paid Service,5105682400,06.08.2014,Strengthening Families,Payments to Voluntary and Other Associations,200.00,BRAVEHEART SOCIAL ENTERPRISES LTD
Revenue,Director of Childrens Services,5105685442,15.08.2014,Independ. & Non-Maint. Special Schls & Independ. Specialist Provision,Charges from Independent Providers,"18,483.00",BRECKENBROUGH SCHOOL LTD
Revenue,Head of ASC & Community Wellbeing,5105683706,13.08.2014,Elderly Frail Residential Care,Charges from Independent Providers,"2,048.76",BRENDONCARE FOUNDATION
Revenue,Head of ASC & Community Wellbeing,5105683228,13.08.2014,Elderly Frail Residential Care,Charges from Independent Providers,"1,998.08",BRIGHSTONE CARE LTD
Revenue,Head of ASC & Community Wellbeing,5105683228,13.08.2014,Elderly Frail Residential Care,Charges from Independent Providers,"1,998.08",BRIGHSTONE CARE LTD
Revenue,Head of ASC & Community Wellbeing,5105683228,13.08.2014,Elderly Frail Residential Care,Charges from Independent Providers,"1,622.60",BRIGHSTONE CARE LTD
Revenue,Head of ASC & Community Wellbeing,5105683228,13.08.2014,Elderly Frail Residential Care,Charges from Independent Providers,"1,998.08",BRIGHSTONE CARE LTD
Revenue,Head of ASC & Community Wellbeing,5105683228,13.08.2014,Elderly Mentally Ill Residential Care,Charges from Independent Providers,"1,699.88",BRIGHSTONE CARE LTD
Revenue,Head of ASC & Community Wellbeing,5105683228,13.08.2014,Elderly Mentally Ill Residential Care,Charges from Independent Providers,"1,998.08",BRIGHSTONE CARE LTD
Revenue,Head of ASC & Community Wellbeing,5105683228,13.08.2014,Elderly Mentally Ill Residential Care,Charges from Independent Providers,"1,699.88",BRIGHSTONE CARE LTD
Revenue,Head of ASC & Community Wellbeing,5105683228,13.08.2014,REDACTED PERSONAL DATA,Order Settlement to Bal Sht GL,"1,699.88",BRIGHSTONE CARE LTD
Revenue,Head of ASC & Community Wellbeing,5105683228,13.08.2014,REDACTED PERSONAL DATA,Order Settlement to Bal Sht GL,657.72,BRIGHSTONE CARE LTD
Revenue,Head of ASC & Community Wellbeing,5105684039,15.08.2014,Overbrook,Grounds Maintenance,48.00,BRIGHSTONE LANDSCAPING LTD
Revenue,Head of ASC & Community Wellbeing,5105684039,15.08.2014,Seagulls,Grounds Maintenance,48.00,BRIGHSTONE LANDSCAPING LTD
Revenue,Head of ASC & Community Wellbeing,5105684039,15.08.2014,Plean Dene,Grounds Maintenance,387.49,BRIGHSTONE LANDSCAPING LTD
Revenue,Head of ASC & Community Wellbeing,5105684039,15.08.2014,Saxonbury,Grounds Maintenance,48.00,BRIGHSTONE LANDSCAPING LTD
Revenue,Head of ASC & Community Wellbeing,5105684039,15.08.2014,40 Venner Avenue,Grounds Maintenance,48.00,BRIGHSTONE LANDSCAPING LTD
Revenue,Head of ASC & Community Wellbeing,5105684039,15.08.2014,Highmead,Grounds Maintenance,126.00,BRIGHSTONE LANDSCAPING LTD
Revenue,Head of ASC & Community Wellbeing,5105684039,15.08.2014,The Laurels,Grounds Maintenance,126.00,BRIGHSTONE LANDSCAPING LTD
Capital,Director of Childrens Services,5105682521,13.08.2014,One School Pathfinder,"Plant, Equipment & Furniture - Capital",720.00,BRIGHSTONE LANDSCAPING LTD
Capital,Director of Childrens Services,5105682521,13.08.2014,One School Pathfinder,"Plant, Equipment & Furniture - Capital",720.00,BRIGHSTONE LANDSCAPING LTD
Revenue,Head of Planning & Regulatory Services,5105686322,22.08.2014,Highways PFI Contract,Payment to Private Contractors,250.00,BRIGHSTONE LANDSCAPING LTD
Revenue,Head of Economy & Tourism,5105682681,01.08.2014,Play Areas Health & Safety work,Payment to Private Contractors,19.93,BRIGHSTONE LANDSCAPING LTD
Revenue,Head of Economy & Tourism,5105682681,01.08.2014,Beach Cleaning,Payment to Private Contractors,125.87,BRIGHSTONE LANDSCAPING LTD
Revenue,Head of Economy & Tourism,5105685407,15.08.2014,Beach Cleaning,Payment to Private Contractors,85.00,BRIGHSTONE LANDSCAPING LTD
Revenue,Head of Economy & Tourism,5105685331,15.08.2014,Beach Cleaning,Beach Cleansing Contractors,"24,988.01",BRIGHSTONE LANDSCAPING LTD
Revenue,Head of Economy & Tourism,5105686687,29.08.2014,Beach Cleaning,Payment to Private Contractors,240.00,BRIGHSTONE LANDSCAPING LTD
Revenue,Head of Economy & Tourism,5105686887,29.08.2014,Beach Cleaning,Payment to Private Contractors,159.88,BRIGHSTONE LANDSCAPING LTD
Revenue,Head of Economy & Tourism,5105682681,01.08.2014,Beach Safety & Inspection / Beach Awards,Payment to Private Contractors,340.20,BRIGHSTONE LANDSCAPING LTD
Revenue,Head of Economy & Tourism,5105686887,29.08.2014,Beach Safety & Inspection / Beach Awards,Payment to Private Contractors,120.12,BRIGHSTONE LANDSCAPING LTD
Revenue,Head of Economy & Tourism,5105686854,29.08.2014,Slipways & Steps (Beaches),Payment to Private Contractors,75.00,BRIGHSTONE LANDSCAPING LTD
Revenue,Managing Director & Head of Paid Service,5105684025,22.08.2014,Drug Misuse - Adults,Payment to Private Contractors,"3,077.86",BROADREACH HOUSE
Revenue,Managing Director & Head of Paid Service,5105684026,13.08.2014,Drug Misuse - Adults,Payment to Private Contractors,198.57,BROADREACH HOUSE
Revenue,Managing Director & Head of Paid Service,5105684026,13.08.2014,Drug Misuse - Adults,Payment to Private Contractors,"3,475.00",BROADREACH HOUSE
Revenue,Managing Director & Head of Paid Service,5105684028,13.08.2014,Drug Misuse - Adults,Payment to Private Contractors,"3,077.86",BROADREACH HOUSE
Revenue,Managing Director & Head of Paid Service,5105681226,29.08.2014,Drug Misuse - Adults,Payment to Private Contractors,"2,184.28",BROADREACH HOUSE
Revenue,Managing Director & Head of Paid Service,5105681226,29.08.2014,Drug Misuse - Adults,Payment to Private Contractors,794.29,BROADREACH HOUSE
Revenue,Managing Director & Head of Paid Service,5105685340,15.08.2014,NHS Health Check Programme,Payment to Private Contractors,"2,097.00",BROOKSIDE HEALTH CENTRE
Revenue,Managing Director & Head of Paid Service,5105685340,15.08.2014,STI Tests & Treatment,Payment to Private Contractors,10.00,BROOKSIDE HEALTH CENTRE
Revenue,Managing Director & Head of Paid Service,5105685340,15.08.2014,Stop Smoking Services & Interventions,Payment to Private Contractors,640.00,BROOKSIDE HEALTH CENTRE
Revenue,Head of Economy & Tourism,5105682056,01.08.2014,Play Development,Operational Equipment,37.20,BROXAP LTD
Revenue,Head of Economy & Tourism,5105682056,01.08.2014,Play Development,Operational Equipment,3.81,BROXAP LTD
Revenue,Head of Economy & Tourism,5105682860,06.08.2014,Play Areas Health & Safety work,Operational Equipment,37.50,BROXAP LTD
Revenue,Head of Economy & Tourism,5105685636,20.08.2014,IOW Festival Costs,Payment to Private Contractors,338.95,BROXAP LTD
Capital,Head of Planning & Regulatory Services,5105682607,01.08.2014,Highways transport capital,Payment to Contractors - Capital,"22,970.50",BROXAP LTD
Capital,Head of Planning & Regulatory Services,5105682596,01.08.2014,Highways transport capital,Payment to Contractors - Capital,75.00,BROXAP LTD
Revenue,Head of HR & Organisational Change,5105683841,13.08.2014,ICT Service Support Manager,Training,"2,520.00",BSI ASSURANCE
Revenue,Head of HR & Organisational Change,5105682070,01.08.2014,Telephones,Fixed Telephones,629.30,BT FINANCE
Revenue,Head of ASC & Community Wellbeing,5105683249,13.08.2014,Elderly Frail Residential Care,Charges from Independent Providers,"1,998.08",BUCKLAND CARE LTD
Revenue,Head of ASC & Community Wellbeing,5105683249,13.08.2014,Elderly Frail Residential Care,Charges from Independent Providers,"1,998.08",BUCKLAND CARE LTD
Revenue,Head of ASC & Community Wellbeing,5105683249,13.08.2014,Elderly Frail Residential Care,Charges from Independent Providers,"1,998.08",BUCKLAND CARE LTD
Revenue,Head of ASC & Community Wellbeing,5105683249,13.08.2014,Elderly Frail Residential Care,Charges from Independent Providers,"1,998.08",BUCKLAND CARE LTD
Revenue,Head of ASC & Community Wellbeing,5105683249,13.08.2014,Elderly Frail Residential Care,Charges from Independent Providers,"1,622.60",BUCKLAND CARE LTD
Revenue,Head of ASC & Community Wellbeing,5105683249,13.08.2014,Elderly Frail Residential Care,Charges from Independent Providers,"1,622.60",BUCKLAND CARE LTD
Revenue,Head of ASC & Community Wellbeing,5105683249,13.08.2014,Elderly Frail Residential Care,Charges from Independent Providers,"1,622.60",BUCKLAND CARE LTD
Revenue,Head of ASC & Community Wellbeing,5105683249,13.08.2014,Elderly Frail Residential Care,Charges from Independent Providers,"1,622.60",BUCKLAND CARE LTD
Revenue,Head of ASC & Community Wellbeing,5105683249,13.08.2014,Elderly Frail Residential Care,Charges from Independent Providers,"1,622.60",BUCKLAND CARE LTD
Revenue,Head of ASC & Community Wellbeing,5105683249,13.08.2014,Elderly Frail Residential Care,Charges from Independent Providers,"1,622.60",BUCKLAND CARE LTD
Revenue,Head of ASC & Community Wellbeing,5105683249,13.08.2014,Elderly Frail Residential Care,Charges from Independent Providers,"1,998.08",BUCKLAND CARE LTD
Revenue,Head of ASC & Community Wellbeing,5105683249,13.08.2014,Elderly Mentally Ill Residential Care,Charges from Independent Providers,"1,998.08",BUCKLAND CARE LTD
Revenue,Head of ASC & Community Wellbeing,5105683249,13.08.2014,Elderly Mentally Ill Residential Care,Charges from Independent Providers,"1,998.08",BUCKLAND CARE LTD
Revenue,Head of ASC & Community Wellbeing,5105683249,13.08.2014,Elderly Mentally Ill Residential Care,Charges from Independent Providers,"1,699.88",BUCKLAND CARE LTD
Revenue,Head of ASC & Community Wellbeing,5105683249,13.08.2014,Elderly Mentally Ill Residential Care,Charges from Independent Providers,"1,998.08",BUCKLAND CARE LTD
Revenue,Head of ASC & Community Wellbeing,5105683249,13.08.2014,Elderly Mentally Ill Residential Care,Charges from Independent Providers,"1,998.08",BUCKLAND CARE LTD
Revenue,Head of ASC & Community Wellbeing,5105683249,13.08.2014,Elderly Mentally Ill Residential Care,Charges from Independent Providers,"1,699.88",BUCKLAND CARE LTD
Revenue,Head of ASC & Community Wellbeing,5105683249,13.08.2014,Elderly Mentally Ill Residential Care,Charges from Independent Providers,"1,699.88",BUCKLAND CARE LTD
Revenue,Head of ASC & Community Wellbeing,5105683249,13.08.2014,Elderly Mentally Ill Residential Care,Charges from Independent Providers,"1,699.88",BUCKLAND CARE LTD
Revenue,Head of ASC & Community Wellbeing,5105686478,29.08.2014,Elderly Mentally Ill Residential Care,Charges from Independent Providers,"6,281.52",BUCKLAND CARE LTD
Revenue,Head of ASC & Community Wellbeing,5105683141,08.08.2014,Elderly Mentally Ill Residential Care,Charges from Independent Providers,"1,998.08",BUCKLAND CARE LTD
Revenue,Head of ASC & Community Wellbeing,5105683249,13.08.2014,Elderly Mentally Ill Residential Care,Charges from Independent Providers,"1,699.88",BUCKLAND CARE LTD
Revenue,Head of ASC & Community Wellbeing,5105683249,13.08.2014,Elderly Mentally Ill Residential Care,Charges from Independent Providers,"1,699.88",BUCKLAND CARE LTD
Revenue,Head of ASC & Community Wellbeing,5105683249,13.08.2014,REDACTED PERSONAL DATA,Order Settlement to Bal Sht GL,"1,699.88",BUCKLAND CARE LTD
Revenue,Head of ASC & Community Wellbeing,5105685467,20.08.2014,REDACTED PERSONAL DATA,Order Settlement to Bal Sht GL,999.04,BUCKLAND CARE LTD
Revenue,Head of ASC & Community Wellbeing,5105682827,06.08.2014,Elderly Frail Nursing Island,Charges from Independent Providers,"1,390.20",BUCKLAND CARE LTD
Revenue,Head of ASC & Community Wellbeing,5105682453,06.08.2014,Elderly Frail Nursing Island,Charges from Independent Providers,"1,886.70",BUCKLAND CARE LTD
Revenue,Head of ASC & Community Wellbeing,5105683235,13.08.2014,Elderly Frail Nursing Island,Charges from Independent Providers,"2,676.80",BUCKLAND CARE LTD
Revenue,Head of ASC & Community Wellbeing,5105683235,13.08.2014,Elderly Frail Nursing Island,Charges from Independent Providers,"2,676.80",BUCKLAND CARE LTD
Revenue,Head of ASC & Community Wellbeing,5105683235,13.08.2014,Elderly Frail Nursing Island,Charges from Independent Providers,"2,676.80",BUCKLAND CARE LTD
Revenue,Head of ASC & Community Wellbeing,5105683235,13.08.2014,Elderly Frail Nursing Island,Charges from Independent Providers,"2,676.80",BUCKLAND CARE LTD
Revenue,Head of ASC & Community Wellbeing,5105683235,13.08.2014,Elderly Frail Nursing Island,Charges from Independent Providers,"2,676.80",BUCKLAND CARE LTD
Revenue,Head of ASC & Community Wellbeing,5105683235,13.08.2014,Elderly Frail Nursing Island,Charges from Independent Providers,"2,676.80",BUCKLAND CARE LTD
Revenue,Head of ASC & Community Wellbeing,5105683235,13.08.2014,Elderly Frail Nursing Island,Charges from Independent Providers,"2,676.80",BUCKLAND CARE LTD
Revenue,Head of ASC & Community Wellbeing,5105683235,13.08.2014,Elderly Frail Nursing Island,Charges from Independent Providers,"2,676.80",BUCKLAND CARE LTD
Revenue,Head of ASC & Community Wellbeing,5105683235,13.08.2014,Elderly Frail Nursing Island,Charges from Independent Providers,"2,676.80",BUCKLAND CARE LTD
Revenue,Head of ASC & Community Wellbeing,5105683235,13.08.2014,Elderly Frail Nursing Island,Charges from Independent Providers,"2,780.40",BUCKLAND CARE LTD
Revenue,Head of ASC & Community Wellbeing,5105683235,13.08.2014,Elderly Frail Nursing Island,Charges from Independent Providers,"2,780.40",BUCKLAND CARE LTD
Revenue,Head of ASC & Community Wellbeing,5105683235,13.08.2014,Elderly Frail Nursing Island,Charges from Independent Providers,"2,676.80",BUCKLAND CARE LTD
Revenue,Head of ASC & Community Wellbeing,5105686359,27.08.2014,Elderly Frail Nursing Island,Charges from Independent Providers,"2,482.50",BUCKLAND CARE LTD
Revenue,Head of ASC & Community Wellbeing,5105686359,27.08.2014,Elderly Frail Nursing Island,Charges from Independent Providers,993.00,BUCKLAND CARE LTD
Revenue,Head of ASC & Community Wellbeing,5105686359,27.08.2014,Elderly Frail Nursing Island,Charges from Independent Providers,"2,780.40",BUCKLAND CARE LTD
Revenue,Head of ASC & Community Wellbeing,5105686430,27.08.2014,Elderly Frail Nursing Island,Charges from Independent Providers,"2,482.50",BUCKLAND CARE LTD
Revenue,Head of ASC & Community Wellbeing,5105685364,15.08.2014,Elderly Frail Nursing Island,Charges from Independent Providers,"3,919.60",BUCKLAND CARE LTD
Revenue,Head of ASC & Community Wellbeing,5105683235,13.08.2014,Elderly Mentally Ill Nursing Island,Charges from Independent Providers,"2,676.80",BUCKLAND CARE LTD
Revenue,Head of ASC & Community Wellbeing,5105683235,13.08.2014,Elderly Mentally Ill Nursing Island,Regular Respite Care,"2,780.40",BUCKLAND CARE LTD
Revenue,Head of ASC & Community Wellbeing,5105683235,13.08.2014,Funded Nursing Care Island,Charges from Independent Providers,443.80,BUCKLAND CARE LTD
Revenue,Head of ASC & Community Wellbeing,5105683235,13.08.2014,Funded Nursing Care Island,Charges from Independent Providers,443.80,BUCKLAND CARE LTD
Revenue,Head of ASC & Community Wellbeing,5105683235,13.08.2014,Funded Nursing Care Island,Charges from Independent Providers,443.80,BUCKLAND CARE LTD
Revenue,Head of ASC & Community Wellbeing,5105683235,13.08.2014,Funded Nursing Care Island,Charges from Independent Providers,443.80,BUCKLAND CARE LTD
Revenue,Head of ASC & Community Wellbeing,5105683235,13.08.2014,Funded Nursing Care Island,Charges from Independent Providers,443.80,BUCKLAND CARE LTD
Revenue,Head of ASC & Community Wellbeing,5105683235,13.08.2014,Funded Nursing Care Island,Charges from Independent Providers,443.80,BUCKLAND CARE LTD
Revenue,Head of ASC & Community Wellbeing,5105683235,13.08.2014,Funded Nursing Care Island,Charges from Independent Providers,443.80,BUCKLAND CARE LTD
Revenue,Head of ASC & Community Wellbeing,5105683235,13.08.2014,Funded Nursing Care Island,Charges from Independent Providers,443.80,BUCKLAND CARE LTD
Revenue,Head of ASC & Community Wellbeing,5105683235,13.08.2014,Funded Nursing Care Island,Charges from Independent Providers,443.80,BUCKLAND CARE LTD
Revenue,Head of ASC & Community Wellbeing,5105683235,13.08.2014,Funded Nursing Care Island,Charges from Independent Providers,443.80,BUCKLAND CARE LTD
Revenue,Head of ASC & Community Wellbeing,5105683235,13.08.2014,Funded Nursing Care Island,Charges from Independent Providers,443.80,BUCKLAND CARE LTD
Revenue,Head of ASC & Community Wellbeing,5105683235,13.08.2014,Funded Nursing Care Island,Charges from Independent Providers,443.80,BUCKLAND CARE LTD
Revenue,Head of ASC & Community Wellbeing,5105683235,13.08.2014,Funded Nursing Care Island,Charges from Independent Providers,443.80,BUCKLAND CARE LTD
Revenue,Head of ASC & Community Wellbeing,5105685750,20.08.2014,Funded Nursing Care Island,Charges from Independent Providers,142.65,BUCKLAND CARE LTD
Revenue,Head of ASC & Community Wellbeing,5105683235,13.08.2014,REDACTED PERSONAL DATA,Order Settlement to Bal Sht GL,"2,233.00",BUCKLAND CARE LTD
Revenue,Head of ASC & Community Wellbeing,5105683235,13.08.2014,REDACTED PERSONAL DATA,Order Settlement to Bal Sht GL,"2,233.00",BUCKLAND CARE LTD
Revenue,Head of ASC & Community Wellbeing,5105683235,13.08.2014,REDACTED PERSONAL DATA,Order Settlement to Bal Sht GL,"2,233.00",BUCKLAND CARE LTD
Revenue,Head of ASC & Community Wellbeing,5105683235,13.08.2014,REDACTED PERSONAL DATA,Order Settlement to Bal Sht GL,732.20,BUCKLAND CARE LTD
Revenue,Head of ASC & Community Wellbeing,5105684029,20.08.2014,Plean Dene,Consumable Cleaning Materials,27.76,BUNZL CLEANING & HYGIENE SUPPLIES LTD
Revenue,Head of ASC & Community Wellbeing,5105683538,13.08.2014,Elderly Frail Nursing Mainland,Charges from Independent Providers,"1,841.84",BUPA CARE HOME (BNH) LTD
Revenue,Head of Finance & S151 Officer,5105682610,01.08.2014,Project Manager Waste Strategy,Consultants Fees,"18,785.60",BURGES SALMON LLP
Revenue,Director of Childrens Services,5105682795,06.08.2014,Purchased Fostering,Charges from Independent Providers,"4,406.43",BY THE BRIDGE LTD
Revenue,Director of Childrens Services,5105684585,13.08.2014,Purchased Fostering,Charges from Independent Providers,"4,432.43",BY THE BRIDGE LTD
Revenue,Head of HR & Organisational Change,5105685421,15.08.2014,"Civic Centre,Sandown",Grounds Maintenance,227.00,C & J GROUND MAINTENANCE
Revenue,Head of HR & Organisational Change,5105685500,20.08.2014,Shared Ownership,Grounds Maintenance,201.20,C & J GROUND MAINTENANCE
Revenue,Head of HR & Organisational Change,5105686664,29.08.2014,Shared Ownership,Grounds Maintenance,325.00,C & J GROUND MAINTENANCE
Revenue,Head of HR & Organisational Change,5105686665,29.08.2014,Somerton Industrial Park,Grounds Maintenance,200.00,C & J GROUND MAINTENANCE
Revenue,Head of HR & Organisational Change,5105685494,20.08.2014,Properties  - Other Properties,Grounds Maintenance,25.20,C & J GROUND MAINTENANCE
Revenue,Head of HR & Organisational Change,5105685416,15.08.2014,Properties  - Other Properties,Grounds Maintenance,30.00,C & J GROUND MAINTENANCE
Revenue,Head of HR & Organisational Change,5105685496,20.08.2014,Properties  - Other Properties,Grounds Maintenance,40.00,C & J GROUND MAINTENANCE
Revenue,Head of HR & Organisational Change,5105685497,20.08.2014,Properties  - Other Properties,Grounds Maintenance,40.00,C & J GROUND MAINTENANCE
Revenue,Head of HR & Organisational Change,5105682864,06.08.2014,"Westridge, Ryde",Grounds Maintenance,890.00,C & J GROUND MAINTENANCE
Revenue,Head of ASC & Community Wellbeing,5105685491,20.08.2014,40 Venner Avenue,Minor Works,265.00,C & J GROUND MAINTENANCE
Revenue,Head of HR & Organisational Change,5105685511,20.08.2014,17 Fairlee Road,Grounds Maintenance,81.00,C & J GROUND MAINTENANCE
Revenue,Head of ASC & Community Wellbeing,5105686701,29.08.2014,Mental Health Day Services,Professional Services,75.00,C & J GROUND MAINTENANCE
Revenue,Director of Childrens Services,5105682999,08.08.2014,In-house Fostering,Boarding Out Allowances,16.50,REDACTED PERSONAL DATA
Revenue,Director of Childrens Services,5105684733,15.08.2014,In-house Fostering,Boarding Out Allowances,16.50,REDACTED PERSONAL DATA
Revenue,Director of Childrens Services,5105685957,22.08.2014,In-house Fostering,Boarding Out Allowances,16.50,REDACTED PERSONAL DATA
Revenue,Director of Childrens Services,5105686596,29.08.2014,In-house Fostering,Boarding Out Allowances,16.50,REDACTED PERSONAL DATA
Revenue,Director of Childrens Services,5105685931,22.08.2014,Children placed with Family&Friends,Boarding Out Allowances,278.50,REDACTED PERSONAL DATA
Revenue,Director of Childrens Services,5105684707,15.08.2014,Children placed with Family&Friends,Boarding Out Allowances,278.50,REDACTED PERSONAL DATA
Revenue,Director of Childrens Services,5105682973,08.08.2014,Children placed with Family&Friends,Boarding Out Allowances,278.50,REDACTED PERSONAL DATA
Revenue,Director of Childrens Services,5105686570,29.08.2014,Children placed with Family&Friends,Boarding Out Allowances,278.50,REDACTED PERSONAL DATA
Revenue,Director of Childrens Services,5105684685,15.08.2014,Special Guardianship Order Costs,Support Children,125.79,REDACTED PERSONAL DATA
Revenue,Director of Childrens Services,5105682951,08.08.2014,Special Guardianship Order Costs,Support Children,125.79,REDACTED PERSONAL DATA
Revenue,Director of Childrens Services,5105686547,29.08.2014,Special Guardianship Order Costs,Support Children,125.79,REDACTED PERSONAL DATA
Revenue,Director of Childrens Services,5105685909,22.08.2014,Special Guardianship Order Costs,Support Children,125.79,REDACTED PERSONAL DATA
Revenue,Head of ASC & Community Wellbeing,5105686333,22.08.2014,Adelaide Resource Centre,Maintenance of Operational Equipment,96.55,C BREWER & SONS LTD
Revenue,Head of Economy & Tourism,5105681746,15.08.2014,Public Seats  (incl.Dedicated Seats),General Materials,11.66,C BREWER & SONS LTD
Revenue,Chief Fire Officer,5105686335,22.08.2014,Fire Technical Support,Vehicle Maintenance Costs,41.57,C BREWER & SONS LTD
Revenue,Chief Fire Officer,5105686335,22.08.2014,Fire Technical Support,Vehicle Maintenance Costs,3.17,C BREWER & SONS LTD
Revenue,Chief Fire Officer,5105686335,22.08.2014,Fire Technical Support,Vehicle Maintenance Costs,7.17,C BREWER & SONS LTD
Revenue,Chief Fire Officer,5105686335,22.08.2014,Fire Technical Support,Vehicle Maintenance Costs,5.48,C BREWER & SONS LTD
Revenue,Chief Fire Officer,5105685432,15.08.2014,Fire Technical Support,Vehicle Maintenance Costs,78.75,C BREWER & SONS LTD
Revenue,Chief Fire Officer,5105685432,15.08.2014,Fire Technical Support,Vehicle Maintenance Costs,22.34,C BREWER & SONS LTD
Revenue,Chief Fire Officer,5105685432,15.08.2014,Fire Technical Support,Vehicle Maintenance Costs,11.00,C BREWER & SONS LTD
Revenue,Chief Fire Officer,5105685432,15.08.2014,Fire Technical Support,Vehicle Maintenance Costs,4.94,C BREWER & SONS LTD
Revenue,Chief Fire Officer,5105685433,15.08.2014,Fire Technical Support,Vehicle Maintenance Costs,8.89,C BREWER & SONS LTD
Revenue,Director of Childrens Services,5105685963,22.08.2014,Leaving Care Costs,Transport of Clients,6.00,REDACTED PERSONAL DATA
Revenue,Director of Childrens Services,5105686602,29.08.2014,Leaving Care Costs,Transport of Clients,6.00,REDACTED PERSONAL DATA
Revenue,Director of Childrens Services,5105685963,22.08.2014,Children placed with Family&Friends,Boarding Out Allowances,140.33,REDACTED PERSONAL DATA
Revenue,Director of Childrens Services,5105684739,15.08.2014,Children placed with Family&Friends,Boarding Out Allowances,140.33,REDACTED PERSONAL DATA
Revenue,Director of Childrens Services,5105683006,08.08.2014,Children placed with Family&Friends,Boarding Out Allowances,140.33,REDACTED PERSONAL DATA
Revenue,Director of Childrens Services,5105686602,29.08.2014,Children placed with Family&Friends,Boarding Out Allowances,140.33,REDACTED PERSONAL DATA
Revenue,Head of ASC & Community Wellbeing,5105684053,13.08.2014,No-Barriers,Training,160.00,REDACTED PERSONAL DATA
Revenue,Director of Childrens Services,5105682986,08.08.2014,Adoption Costs,Support Children,125.79,REDACTED PERSONAL DATA
Revenue,Director of Childrens Services,5105682986,08.08.2014,Adoption Costs,Support Children,132.69,REDACTED PERSONAL DATA
Revenue,Director of Childrens Services,5105686582,29.08.2014,Adoption Costs,Support Children,125.79,REDACTED PERSONAL DATA
Revenue,Director of Childrens Services,5105686582,29.08.2014,Adoption Costs,Support Children,132.69,REDACTED PERSONAL DATA
Revenue,Director of Childrens Services,5105685943,22.08.2014,Adoption Costs,Support Children,125.79,REDACTED PERSONAL DATA
Revenue,Director of Childrens Services,5105685943,22.08.2014,Adoption Costs,Support Children,132.69,REDACTED PERSONAL DATA
Revenue,Director of Childrens Services,5105684719,15.08.2014,Adoption Costs,Support Children,125.79,REDACTED PERSONAL DATA
Revenue,Director of Childrens Services,5105684719,15.08.2014,Adoption Costs,Support Children,132.69,REDACTED PERSONAL DATA
Revenue,Head of Exchequer Services,5105686236,22.08.2014,Staff Benefits,Payment to Private Contractors,148.72,REDACTED PERSONAL DATA
Revenue,Director of Childrens Services,5105685995,22.08.2014,Children placed with Family&Friends,Boarding Out Allowances,199.00,REDACTED PERSONAL DATA
Revenue,Director of Childrens Services,5105684771,15.08.2014,Children placed with Family&Friends,Boarding Out Allowances,199.00,REDACTED PERSONAL DATA
Revenue,Director of Childrens Services,5105683039,08.08.2014,Children placed with Family&Friends,Boarding Out Allowances,199.00,REDACTED PERSONAL DATA
Revenue,Director of Childrens Services,5105686634,29.08.2014,Children placed with Family&Friends,Boarding Out Allowances,199.00,REDACTED PERSONAL DATA
Revenue,Director of Childrens Services,5105684699,15.08.2014,Special Guardianship Order Costs,Support Children,125.79,REDACTED PERSONAL DATA
Revenue,Director of Childrens Services,5105682965,08.08.2014,Special Guardianship Order Costs,Support Children,125.79,REDACTED PERSONAL DATA
Revenue,Director of Childrens Services,5105686562,29.08.2014,Special Guardianship Order Costs,Support Children,125.79,REDACTED PERSONAL DATA
Revenue,Director of Childrens Services,5105685923,22.08.2014,Special Guardianship Order Costs,Support Children,125.79,REDACTED PERSONAL DATA
Revenue,Director of Childrens Services,5105682954,08.08.2014,Adoption Costs,Support Children,168.39,REDACTED PERSONAL DATA
Revenue,Director of Childrens Services,5105682954,08.08.2014,Adoption Costs,Support Children,168.39,REDACTED PERSONAL DATA
Revenue,Director of Childrens Services,5105686551,29.08.2014,Adoption Costs,Support Children,168.39,REDACTED PERSONAL DATA
Revenue,Director of Childrens Services,5105686551,29.08.2014,Adoption Costs,Support Children,168.39,REDACTED PERSONAL DATA
Revenue,Director of Childrens Services,5105685912,22.08.2014,Adoption Costs,Support Children,168.39,REDACTED PERSONAL DATA
Revenue,Director of Childrens Services,5105685912,22.08.2014,Adoption Costs,Support Children,168.39,REDACTED PERSONAL DATA
Revenue,Director of Childrens Services,5105684688,15.08.2014,Adoption Costs,Support Children,168.39,REDACTED PERSONAL DATA
Revenue,Director of Childrens Services,5105684688,15.08.2014,Adoption Costs,Support Children,168.39,REDACTED PERSONAL DATA
Revenue,Director of Childrens Services,5105683025,08.08.2014,Special Guardianship Order Costs,Support Children,116.80,REDACTED PERSONAL DATA
Revenue,Director of Childrens Services,5105686621,29.08.2014,Special Guardianship Order Costs,Support Children,116.80,REDACTED PERSONAL DATA
Revenue,Director of Childrens Services,5105684758,15.08.2014,Special Guardianship Order Costs,Support Children,116.80,REDACTED PERSONAL DATA
Revenue,Director of Childrens Services,5105685982,22.08.2014,Special Guardianship Order Costs,Support Children,116.80,REDACTED PERSONAL DATA
Revenue,Director of Childrens Services,5105682948,08.08.2014,In-house Fostering,Boarding Out Allowances,10.00,REDACTED PERSONAL DATA
Revenue,Director of Childrens Services,5105684682,15.08.2014,In-house Fostering,Boarding Out Allowances,10.00,REDACTED PERSONAL DATA
Revenue,Director of Childrens Services,5105684682,15.08.2014,In-house Fostering,Boarding Out Allowances,242.08,REDACTED PERSONAL DATA
Revenue,Director of Childrens Services,5105684682,15.08.2014,In-house Fostering,Boarding Out Allowances,250.00,REDACTED PERSONAL DATA
Revenue,Director of Childrens Services,5105684682,15.08.2014,In-house Fostering,Boarding Out Allowances,199.00,REDACTED PERSONAL DATA
Revenue,Director of Childrens Services,5105684682,15.08.2014,In-house Fostering,Boarding Out Allowances,245.00,REDACTED PERSONAL DATA
Revenue,Director of Childrens Services,5105682948,08.08.2014,In-house Fostering,Boarding Out Allowances,242.08,REDACTED PERSONAL DATA
Revenue,Director of Childrens Services,5105682948,08.08.2014,In-house Fostering,Boarding Out Allowances,200.00,REDACTED PERSONAL DATA
Revenue,Director of Childrens Services,5105685906,22.08.2014,In-house Fostering,Boarding Out Allowances,242.08,REDACTED PERSONAL DATA
Revenue,Director of Childrens Services,5105685906,22.08.2014,In-house Fostering,Boarding Out Allowances,250.00,REDACTED PERSONAL DATA
Revenue,Director of Childrens Services,5105685906,22.08.2014,In-house Fostering,Boarding Out Allowances,199.00,REDACTED PERSONAL DATA
Revenue,Director of Childrens Services,5105685906,22.08.2014,In-house Fostering,Boarding Out Allowances,245.00,REDACTED PERSONAL DATA
Revenue,Director of Childrens Services,5105685906,22.08.2014,In-house Fostering,Boarding Out Allowances,10.00,REDACTED PERSONAL DATA
Revenue,Director of Childrens Services,5105686544,29.08.2014,In-house Fostering,Boarding Out Allowances,242.08,REDACTED PERSONAL DATA
Revenue,Director of Childrens Services,5105686544,29.08.2014,In-house Fostering,Boarding Out Allowances,250.00,REDACTED PERSONAL DATA
Revenue,Director of Childrens Services,5105686544,29.08.2014,In-house Fostering,Boarding Out Allowances,199.00,REDACTED PERSONAL DATA
Revenue,Director of Childrens Services,5105686544,29.08.2014,In-house Fostering,Boarding Out Allowances,245.00,REDACTED PERSONAL DATA
Revenue,Director of Childrens Services,5105686544,29.08.2014,In-house Fostering,Boarding Out Allowances,10.00,REDACTED PERSONAL DATA
Revenue,Director of Childrens Services,5105682924,08.08.2014,In-house Fostering,Boarding Out Allowances,15.00,REDACTED PERSONAL DATA
Revenue,Director of Childrens Services,5105682924,08.08.2014,In-house Fostering,Boarding Out Allowances,180.45,REDACTED PERSONAL DATA
Revenue,Director of Childrens Services,5105682924,08.08.2014,In-house Fostering,Boarding Out Allowances,311.31,REDACTED PERSONAL DATA
Revenue,Director of Childrens Services,5105682924,08.08.2014,In-house Fostering,Boarding Out Allowances,242.08,REDACTED PERSONAL DATA
Revenue,Director of Childrens Services,5105682924,08.08.2014,In-house Fostering,Boarding Out Allowances,25.00,REDACTED PERSONAL DATA
Revenue,Director of Childrens Services,5105684658,15.08.2014,In-house Fostering,Boarding Out Allowances,15.00,REDACTED PERSONAL DATA
Revenue,Director of Childrens Services,5105684658,15.08.2014,In-house Fostering,Boarding Out Allowances,225.58,REDACTED PERSONAL DATA
Revenue,Director of Childrens Services,5105684658,15.08.2014,In-house Fostering,Boarding Out Allowances,140.33,REDACTED PERSONAL DATA
Revenue,Director of Childrens Services,5105684658,15.08.2014,In-house Fostering,Boarding Out Allowances,242.08,REDACTED PERSONAL DATA
Revenue,Director of Childrens Services,5105685881,22.08.2014,In-house Fostering,Boarding Out Allowances,140.33,REDACTED PERSONAL DATA
Revenue,Director of Childrens Services,5105685881,22.08.2014,In-house Fostering,Boarding Out Allowances,242.08,REDACTED PERSONAL DATA
Revenue,Director of Childrens Services,5105685881,22.08.2014,In-house Fostering,Boarding Out Allowances,15.00,REDACTED PERSONAL DATA
Revenue,Director of Childrens Services,5105686520,29.08.2014,In-house Fostering,Boarding Out Allowances,140.33,REDACTED PERSONAL DATA
Revenue,Director of Childrens Services,5105686520,29.08.2014,In-house Fostering,Boarding Out Allowances,242.08,REDACTED PERSONAL DATA
Revenue,Director of Childrens Services,5105686520,29.08.2014,In-house Fostering,Boarding Out Allowances,15.00,REDACTED PERSONAL DATA
Revenue,Director of Childrens Services,5105682943,08.08.2014,Children placed with Family&Friends,Boarding Out Allowances,199.00,REDACTED PERSONAL DATA
Revenue,Director of Childrens Services,5105682943,08.08.2014,Children placed with Family&Friends,Boarding Out Allowances,100.00,REDACTED PERSONAL DATA
Revenue,Director of Childrens Services,5105686539,29.08.2014,Children placed with Family&Friends,Boarding Out Allowances,199.00,REDACTED PERSONAL DATA
Revenue,Director of Childrens Services,5105686539,29.08.2014,Children placed with Family&Friends,Boarding Out Allowances,100.00,REDACTED PERSONAL DATA
Revenue,Director of Childrens Services,5105684677,15.08.2014,Children placed with Family&Friends,Boarding Out Allowances,199.00,REDACTED PERSONAL DATA
Revenue,Director of Childrens Services,5105684677,15.08.2014,Children placed with Family&Friends,Boarding Out Allowances,100.00,REDACTED PERSONAL DATA
Revenue,Director of Childrens Services,5105685901,22.08.2014,Children placed with Family&Friends,Boarding Out Allowances,199.00,REDACTED PERSONAL DATA
Revenue,Director of Childrens Services,5105685901,22.08.2014,Children placed with Family&Friends,Boarding Out Allowances,100.00,REDACTED PERSONAL DATA
Revenue,Head of Economy & Tourism,5105686688,29.08.2014,Other Grounds Maintenance,Payment to Private Contractors,539.13,C N SERVICES
Revenue,Head of Economy & Tourism,5105686690,29.08.2014,Churchyard-Brading,Payment to Private Contractors,798.00,C N SERVICES
Revenue,Head of Exchequer Services,5105686239,22.08.2014,Staff Benefits,Payment to Private Contractors,243.00,REDACTED PERSONAL DATA
Revenue,Director of Childrens Services,5105686553,29.08.2014,In-house Fostering,Boarding Out Allowances,140.33,REDACTED PERSONAL DATA
Revenue,Director of Childrens Services,5105686553,29.08.2014,In-house Fostering,Boarding Out Allowances,10.00,REDACTED PERSONAL DATA
Revenue,Director of Childrens Services,5105684690,15.08.2014,In-house Fostering,Boarding Out Allowances,140.33,REDACTED PERSONAL DATA
Revenue,Director of Childrens Services,5105684690,15.08.2014,In-house Fostering,Boarding Out Allowances,10.00,REDACTED PERSONAL DATA
Revenue,Director of Childrens Services,5105682956,08.08.2014,In-house Fostering,Boarding Out Allowances,140.33,REDACTED PERSONAL DATA
Revenue,Director of Childrens Services,5105682956,08.08.2014,In-house Fostering,Boarding Out Allowances,10.00,REDACTED PERSONAL DATA
Revenue,Director of Childrens Services,5105685914,22.08.2014,In-house Fostering,Boarding Out Allowances,140.33,REDACTED PERSONAL DATA
Revenue,Director of Childrens Services,5105685914,22.08.2014,In-house Fostering,Boarding Out Allowances,10.00,REDACTED PERSONAL DATA
Revenue,Director of Childrens Services,5105686626,29.08.2014,Children placed with Family&Friends,Boarding Out Allowances,199.00,REDACTED PERSONAL DATA
Revenue,Director of Childrens Services,5105685987,22.08.2014,Children placed with Family&Friends,Boarding Out Allowances,199.00,REDACTED PERSONAL DATA
Revenue,Director of Childrens Services,5105683031,08.08.2014,Children placed with Family&Friends,Boarding Out Allowances,199.00,REDACTED PERSONAL DATA
Revenue,Director of Childrens Services,5105683031,08.08.2014,Children placed with Family&Friends,Boarding Out Allowances,50.00,REDACTED PERSONAL DATA
Revenue,Director of Childrens Services,5105684763,15.08.2014,Children placed with Family&Friends,Boarding Out Allowances,199.00,REDACTED PERSONAL DATA
Revenue,Director of Childrens Services,5105684763,15.08.2014,Children placed with Family&Friends,Boarding Out Allowances,50.00,REDACTED PERSONAL DATA
Revenue,Director of Childrens Services,5105682978,08.08.2014,Special Guardianship Order Costs,Support Children,125.79,REDACTED PERSONAL DATA
Revenue,Director of Childrens Services,5105686574,29.08.2014,Special Guardianship Order Costs,Support Children,125.79,REDACTED PERSONAL DATA
Revenue,Director of Childrens Services,5105684711,15.08.2014,Special Guardianship Order Costs,Support Children,125.79,REDACTED PERSONAL DATA
Revenue,Director of Childrens Services,5105685935,22.08.2014,Special Guardianship Order Costs,Support Children,125.79,REDACTED PERSONAL DATA
Revenue,Head of ASC & Community Wellbeing,5105683190,13.08.2014,Learning Disability Residential Care,Charges from Independent Providers,"1,811.88",REDACTED PERSONAL DATA
Revenue,Director of Childrens Services,5105682949,08.08.2014,Adoption Costs,Support Children,132.69,REDACTED PERSONAL DATA
Revenue,Director of Childrens Services,5105686545,29.08.2014,Adoption Costs,Support Children,132.69,REDACTED PERSONAL DATA
Revenue,Director of Childrens Services,5105685907,22.08.2014,Adoption Costs,Support Children,132.69,REDACTED PERSONAL DATA
Revenue,Director of Childrens Services,5105684683,15.08.2014,Adoption Costs,Support Children,132.69,REDACTED PERSONAL DATA
Revenue,Head of Corp Gov & Monitoring Officer,5105685269,15.08.2014,Elections,Rent of Buildings and Rooms,195.00,CALBOURNE RECREATION CENTRE
Revenue,Head of Economy & Tourism,5105682590,01.08.2014,Transport Administration,Maintenance of Operational Equipment,13.75,CALOR GAS LIMITED
Revenue,Director of Childrens Services,5105686380,27.08.2014,Independ. & Non-Maint. Special Schls & Independ. Specialist Provision,Charges from Independent Providers,868.61,CAMBIAN ASPERGER SYNDROME SERVICES LTD
Revenue,Director of Childrens Services,5105686381,27.08.2014,Independ. & Non-Maint. Special Schls & Independ. Specialist Provision,Charges from Independent Providers,"44,298.94",CAMBIAN ASPERGER SYNDROME SERVICES LTD
Revenue,Director of Childrens Services,5105686382,27.08.2014,Independ. & Non-Maint. Special Schls & Independ. Specialist Provision,Charges from Independent Providers,"43,430.33",CAMBIAN ASPERGER SYNDROME SERVICES LTD
Revenue,Director of Childrens Services,5105685770,27.08.2014,Independ. & Non-Maint. Special Schls & Independ. Specialist Provision,Charges from Independent Providers,"-44,298.94",CAMBIAN ASPERGER SYNDROME SERVICES LTD
Revenue,Director of Childrens Services,5105685768,27.08.2014,Independ. & Non-Maint. Special Schls & Independ. Specialist Provision,Charges from Independent Providers,-868.61,CAMBIAN ASPERGER SYNDROME SERVICES LTD
Revenue,Head of HR & Organisational Change,5105682740,06.08.2014,Shared Services Manager,Cleaning Contracts,5.20,CANNON HYGIENE
Revenue,Head of HR & Organisational Change,5105685765,29.08.2014,Shared Services Manager,Cleaning Contracts,5.20,CANNON HYGIENE
Revenue,Head of HR & Organisational Change,5105685765,29.08.2014,"Enterprise House, Newport",Cleaning Contracts,12.09,CANNON HYGIENE
Revenue,Head of HR & Organisational Change,5105682740,06.08.2014,"Enterprise House, Newport",Cleaning Contracts,12.09,CANNON HYGIENE
Revenue,Head of HR & Organisational Change,5105682741,06.08.2014,"County Hall,Newport",Cleaning Contracts,-11.52,CANNON HYGIENE
Revenue,Head of HR & Organisational Change,5105685765,29.08.2014,"County Hall,Newport",Cleaning Contracts,48.27,CANNON HYGIENE
Revenue,Head of HR & Organisational Change,5105682740,06.08.2014,"County Hall,Newport",Cleaning Contracts,48.27,CANNON HYGIENE
Revenue,Head of HR & Organisational Change,5105685765,29.08.2014,"Civic Centre,Sandown",Cleaning Contracts,11.05,CANNON HYGIENE
Revenue,Head of HR & Organisational Change,5105682740,06.08.2014,"Civic Centre,Sandown",Cleaning Contracts,11.05,CANNON HYGIENE
Revenue,Head of HR & Organisational Change,5105685765,29.08.2014,"Bugle House,Newport",Cleaning Contracts,4.16,CANNON HYGIENE
Revenue,Head of HR & Organisational Change,5105682740,06.08.2014,"Bugle House,Newport",Cleaning Contracts,4.16,CANNON HYGIENE
Revenue,Head of ASC & Community Wellbeing,5105682740,06.08.2014,Downside Community & Learning Centre,Cleaning Contracts,12.35,CANNON HYGIENE
Revenue,Head of ASC & Community Wellbeing,5105685765,29.08.2014,Downside Community & Learning Centre,Cleaning Contracts,12.35,CANNON HYGIENE
Revenue,Head of ASC & Community Wellbeing,5105685765,29.08.2014,31 Carter Avenue,Professional Services,1.04,CANNON HYGIENE
Revenue,Head of ASC & Community Wellbeing,5105685809,22.08.2014,31 Carter Avenue,Professional Services,8.00,CANNON HYGIENE
Revenue,Head of ASC & Community Wellbeing,5105685765,29.08.2014,Overbrook,Professional Services,44.98,CANNON HYGIENE
Revenue,Head of ASC & Community Wellbeing,5105685809,22.08.2014,Seagulls,Professional Services,8.00,CANNON HYGIENE
Revenue,Head of ASC & Community Wellbeing,5105685765,29.08.2014,Seagulls,Professional Services,1.04,CANNON HYGIENE
Revenue,Head of ASC & Community Wellbeing,5105685765,29.08.2014,Plean Dene,Professional Services,109.03,CANNON HYGIENE
Revenue,Head of ASC & Community Wellbeing,5105685809,22.08.2014,Saxonbury,Professional Services,7.20,CANNON HYGIENE
Revenue,Head of ASC & Community Wellbeing,5105685765,29.08.2014,Saxonbury,Professional Services,116.23,CANNON HYGIENE
Revenue,Head of ASC & Community Wellbeing,5105685584,20.08.2014,Saxonbury,Professional Services,-2.08,CANNON HYGIENE
Revenue,Head of ASC & Community Wellbeing,5105685765,29.08.2014,Highmead,Professional Services,29.07,CANNON HYGIENE
Revenue,Head of ASC & Community Wellbeing,5105685765,29.08.2014,The Laurels,Professional Services,29.08,CANNON HYGIENE
Revenue,Head of HR & Organisational Change,5105685765,29.08.2014,"Barrack Block, Sandown",Cleaning Contracts,4.16,CANNON HYGIENE
Revenue,Head of HR & Organisational Change,5105682740,06.08.2014,"Barrack Block, Sandown",Cleaning Contracts,4.16,CANNON HYGIENE
Revenue,Head of ASC & Community Wellbeing,5105685765,29.08.2014,Adelaide Resource Centre,Cleaning Contracts,35.01,CANNON HYGIENE
Revenue,Head of ASC & Community Wellbeing,5105682740,06.08.2014,Adelaide Resource Centre,Cleaning Contracts,35.01,CANNON HYGIENE
Revenue,Head of ASC & Community Wellbeing,5105682740,06.08.2014,Westminster House,Cleaning Contracts,49.22,CANNON HYGIENE
Revenue,Head of ASC & Community Wellbeing,5105685765,29.08.2014,Westminster House,Cleaning Contracts,49.22,CANNON HYGIENE
Revenue,Head of ASC & Community Wellbeing,5105685765,29.08.2014,Mental Health Day Services,Cleaning Contracts,4.16,CANNON HYGIENE
Revenue,Head of ASC & Community Wellbeing,5105682740,06.08.2014,Mental Health Day Services,Cleaning Contracts,4.16,CANNON HYGIENE
Revenue,Head of ASC & Community Wellbeing,5105682740,06.08.2014,Mental Health Day Services,Cleaning Contracts,2.08,CANNON HYGIENE
Revenue,Head of ASC & Community Wellbeing,5105685765,29.08.2014,Mental Health Day Services,Cleaning Contracts,2.08,CANNON HYGIENE
Revenue,Head of Economy & Tourism,5105682740,06.08.2014,Library HQ,Cleaning Contracts,2.08,CANNON HYGIENE
Revenue,Head of Economy & Tourism,5105685765,29.08.2014,Library HQ,Cleaning Contracts,2.08,CANNON HYGIENE
Revenue,Head of Economy & Tourism,5105685765,29.08.2014,Freshwater West Wight Library,Cleaning Contracts,1.04,CANNON HYGIENE
Revenue,Head of Economy & Tourism,5105682740,06.08.2014,Freshwater West Wight Library,Cleaning Contracts,1.04,CANNON HYGIENE
Revenue,Head of Economy & Tourism,5105685765,29.08.2014,Newport Library,Cleaning Contracts,10.96,CANNON HYGIENE
Revenue,Head of Economy & Tourism,5105682740,06.08.2014,Newport Library,Cleaning Contracts,10.96,CANNON HYGIENE
Revenue,Head of Economy & Tourism,5105682740,06.08.2014,Ryde Library,Cleaning Contracts,1.04,CANNON HYGIENE
Revenue,Head of Economy & Tourism,5105685765,29.08.2014,Ryde Library,Cleaning Contracts,1.04,CANNON HYGIENE
Revenue,Head of Economy & Tourism,5105685765,29.08.2014,Sandown Library,Cleaning Contracts,1.04,CANNON HYGIENE
Revenue,Head of Economy & Tourism,5105682740,06.08.2014,Sandown Library,Cleaning Contracts,1.04,CANNON HYGIENE
Revenue,Director of Childrens Services,5105682740,06.08.2014,Learning & Development Running Costs,Cleaning Contracts,5.20,CANNON HYGIENE
Revenue,Director of Childrens Services,5105685765,29.08.2014,Learning & Development Running Costs,Cleaning Contracts,5.20,CANNON HYGIENE
Revenue,Head of Economy & Tourism,5105685765,29.08.2014,Guildhall Museum,Cleaning Contracts,2.08,CANNON HYGIENE
Revenue,Head of Economy & Tourism,5105682740,06.08.2014,Guildhall Museum,Cleaning Contracts,2.08,CANNON HYGIENE
Revenue,Head of Economy & Tourism,5105682740,06.08.2014,Dinosaur Isle Museum (Sandown Geology),Cleaning Contracts,10.88,CANNON HYGIENE
Revenue,Head of Economy & Tourism,5105685765,29.08.2014,Dinosaur Isle Museum (Sandown Geology),Cleaning Contracts,11.53,CANNON HYGIENE
Revenue,Head of Economy & Tourism,5105685765,29.08.2014,The Heights,Cleaning Contracts,78.35,CANNON HYGIENE
Revenue,Head of Economy & Tourism,5105682740,06.08.2014,The Heights,Cleaning Contracts,78.35,CANNON HYGIENE
Revenue,Head of Economy & Tourism,5105685765,29.08.2014,Medina Leisure Centre,Cleaning Contracts,38.91,CANNON HYGIENE
Revenue,Head of Economy & Tourism,5105682740,06.08.2014,Medina Leisure Centre,Cleaning Contracts,38.91,CANNON HYGIENE
Revenue,Head of Economy & Tourism,5105685765,29.08.2014,Westridge Squash Courts,Cleaning Contracts,3.12,CANNON HYGIENE
Revenue,Head of Economy & Tourism,5105682740,06.08.2014,Westridge Squash Courts,Cleaning Contracts,3.12,CANNON HYGIENE
Revenue,Director of Childrens Services,5105682740,06.08.2014,Thompson House Tuition Centre (PRU),Cleaning Contracts,6.56,CANNON HYGIENE
Revenue,Director of Childrens Services,5105682740,06.08.2014,Clatterford Pupil Referral Unit (PRU),Cleaning Contracts,7.28,CANNON HYGIENE
Revenue,Director of Childrens Services,5105685765,29.08.2014,Clatterford Pupil Referral Unit (PRU),Cleaning Contracts,7.28,CANNON HYGIENE
Revenue,Director of Childrens Services,5105682740,06.08.2014,Workshop Initiative Support in Education,Cleaning Contracts,2.08,CANNON HYGIENE
Revenue,Director of Childrens Services,5105685765,29.08.2014,Workshop Initiative Support in Education,Cleaning Contracts,2.08,CANNON HYGIENE
Revenue,Director of Childrens Services,5105682740,06.08.2014,Early Years Team,Cleaning Contracts,6.57,CANNON HYGIENE
Revenue,Director of Childrens Services,5105682740,06.08.2014,Youth Offending Team,Cleaning Contracts,1.04,CANNON HYGIENE
Revenue,Director of Childrens Services,5105685765,29.08.2014,Youth Offending Team,Cleaning Contracts,1.04,CANNON HYGIENE
Revenue,Director of Childrens Services,5105682740,06.08.2014,Specialist Support Service,Cleaning Contracts,8.41,CANNON HYGIENE
Revenue,Director of Childrens Services,5105685765,29.08.2014,Specialist Support Service,Cleaning Contracts,8.41,CANNON HYGIENE
Revenue,Director of Childrens Services,5105685765,29.08.2014,Youth- Brading,Cleaning Contracts,2.08,CANNON HYGIENE
Revenue,Director of Childrens Services,5105682740,06.08.2014,Youth- Brading,Cleaning Contracts,2.08,CANNON HYGIENE
Revenue,Director of Childrens Services,5105682740,06.08.2014,Youth- Cowes,Cleaning Contracts,2.08,CANNON HYGIENE
Revenue,Director of Childrens Services,5105685765,29.08.2014,Youth- Cowes,Cleaning Contracts,2.08,CANNON HYGIENE
Revenue,Director of Childrens Services,5105685765,29.08.2014,Youth- Newport,Cleaning Contracts,2.08,CANNON HYGIENE
Revenue,Director of Childrens Services,5105682740,06.08.2014,Youth- Newport,Cleaning Contracts,2.08,CANNON HYGIENE
Revenue,Director of Childrens Services,5105682740,06.08.2014,Youth- Ryde  (Well St),Cleaning Contracts,2.08,CANNON HYGIENE
Revenue,Director of Childrens Services,5105685765,29.08.2014,Youth- Ryde  (Well St),Cleaning Contracts,2.08,CANNON HYGIENE
Revenue,Director of Childrens Services,5105685765,29.08.2014,Youth- Sandown/Lake,Cleaning Contracts,1.04,CANNON HYGIENE
Revenue,Director of Childrens Services,5105682740,06.08.2014,Youth- Sandown/Lake,Cleaning Contracts,1.04,CANNON HYGIENE
Revenue,Director of Childrens Services,5105682740,06.08.2014,Youth- Ventnor,Cleaning Contracts,2.08,CANNON HYGIENE
Revenue,Director of Childrens Services,5105685765,29.08.2014,Youth- Ventnor,Cleaning Contracts,2.08,CANNON HYGIENE
Revenue,Director of Childrens Services,5105685765,29.08.2014,Youth- West Wight,Cleaning Contracts,3.12,CANNON HYGIENE
Revenue,Director of Childrens Services,5105682740,06.08.2014,Youth- West Wight,Cleaning Contracts,3.12,CANNON HYGIENE
Revenue,Director of Childrens Services,5105685765,29.08.2014,Specialist Service Business Admin,Cleaning Contracts,13.13,CANNON HYGIENE
Revenue,Director of Childrens Services,5105682740,06.08.2014,Beaulieu House,Cleaning Contracts,141.09,CANNON HYGIENE
Revenue,Director of Childrens Services,5105685765,29.08.2014,Beaulieu House,Cleaning Contracts,141.09,CANNON HYGIENE
Revenue,Director of Childrens Services,5105682740,06.08.2014,Branstone Farm Studies Centre,Cleaning Contracts,2.08,CANNON HYGIENE
Revenue,Director of Childrens Services,5105685765,29.08.2014,Branstone Farm Studies Centre,Cleaning Contracts,2.08,CANNON HYGIENE
Revenue,Director of Childrens Services,5105682740,06.08.2014,Education Participation Team,Cleaning Contracts,2.08,CANNON HYGIENE
Revenue,Director of Childrens Services,5105685765,29.08.2014,Education Participation Team,Cleaning Contracts,2.08,CANNON HYGIENE
Revenue,Head of Economy & Tourism,5105682740,06.08.2014,Fort Victoria,Cleaning Contracts,4.51,CANNON HYGIENE
Revenue,Head of Economy & Tourism,5105685765,29.08.2014,Fort Victoria,Cleaning Contracts,4.51,CANNON HYGIENE
Revenue,Chief Fire Officer,5105685765,29.08.2014,Fire Technical Support,Cleaning Contracts,1.04,CANNON HYGIENE
Revenue,Chief Fire Officer,5105685765,29.08.2014,Fire Technical Support,Cleaning Contracts,2.08,CANNON HYGIENE
Revenue,Chief Fire Officer,5105685765,29.08.2014,Fire Technical Support,Cleaning Contracts,1.04,CANNON HYGIENE
Revenue,Chief Fire Officer,5105685765,29.08.2014,Fire Technical Support,Cleaning Contracts,5.20,CANNON HYGIENE
Revenue,Chief Fire Officer,5105685765,29.08.2014,Fire Technical Support,Cleaning Contracts,1.04,CANNON HYGIENE
Revenue,Chief Fire Officer,5105685765,29.08.2014,Fire Technical Support,Cleaning Contracts,1.04,CANNON HYGIENE
Revenue,Chief Fire Officer,5105685765,29.08.2014,Fire Technical Support,Cleaning Contracts,3.12,CANNON HYGIENE
Revenue,Chief Fire Officer,5105682740,06.08.2014,Fire Technical Support,Cleaning Contracts,2.08,CANNON HYGIENE
Revenue,Chief Fire Officer,5105682741,06.08.2014,Fire Technical Support,Cleaning Contracts,-1.04,CANNON HYGIENE
Revenue,Chief Fire Officer,5105682740,06.08.2014,Fire Technical Support,Cleaning Contracts,1.04,CANNON HYGIENE
Revenue,Chief Fire Officer,5105682740,06.08.2014,Fire Technical Support,Cleaning Contracts,1.04,CANNON HYGIENE
Revenue,Chief Fire Officer,5105682740,06.08.2014,Fire Technical Support,Cleaning Contracts,1.04,CANNON HYGIENE
Revenue,Chief Fire Officer,5105682740,06.08.2014,Fire Technical Support,Cleaning Contracts,1.04,CANNON HYGIENE
Revenue,Chief Fire Officer,5105682740,06.08.2014,Fire Technical Support,Cleaning Contracts,3.12,CANNON HYGIENE
Revenue,Chief Fire Officer,5105682740,06.08.2014,Fire Technical Support,Cleaning Contracts,5.20,CANNON HYGIENE
Revenue,Head of Planning & Regulatory Services,5105682740,06.08.2014,Planning Business Support,Cleaning Contracts,22.41,CANNON HYGIENE
Revenue,Head of Planning & Regulatory Services,5105685765,29.08.2014,Planning Business Support,Cleaning Contracts,22.41,CANNON HYGIENE
Revenue,Head of Planning & Regulatory Services,5105685765,29.08.2014,Regulatory Management & Admin Support,Cleaning Contracts,3.12,CANNON HYGIENE
Revenue,Head of Planning & Regulatory Services,5105682740,06.08.2014,Regulatory Management & Admin Support,Cleaning Contracts,3.12,CANNON HYGIENE
Revenue,Head of Economy & Tourism,5105685765,29.08.2014,Crematorium,Cleaning Contracts,3.12,CANNON HYGIENE
Revenue,Head of Economy & Tourism,5105682740,06.08.2014,Crematorium,Cleaning Contracts,3.12,CANNON HYGIENE
Revenue,Head of Economy & Tourism,5105682791,06.08.2014,Print Unit,Photocopying Costs,"2,011.48",CANON (UK) LTD
Revenue,Director of Childrens Services,5105683889,13.08.2014,Purchased Fostering,Charges from Independent Providers,"4,207.01",CAPSTONE FOSTER CARE LTD
Revenue,Head of ASC & Community Wellbeing,5105684385,13.08.2014,Elderly Frail Homecare,Charges from Independent Providers,534.24,CARE FIRST IW LTD
Revenue,Head of ASC & Community Wellbeing,5105684386,13.08.2014,Elderly Frail Homecare,Charges from Independent Providers,207.76,CARE FIRST IW LTD
Revenue,Head of ASC & Community Wellbeing,5105684387,13.08.2014,Elderly Frail Homecare,Charges from Independent Providers,207.76,CARE FIRST IW LTD
Revenue,Head of ASC & Community Wellbeing,5105684388,13.08.2014,Elderly Frail Homecare,Charges from Independent Providers,289.38,CARE FIRST IW LTD
Revenue,Head of ASC & Community Wellbeing,5105684390,13.08.2014,Elderly Frail Homecare,Charges from Independent Providers,207.76,CARE FIRST IW LTD
Revenue,Head of ASC & Community Wellbeing,5105684380,13.08.2014,Elderly Frail Homecare,Charges from Independent Providers,"1,869.84",CARE FIRST IW LTD
Revenue,Head of ASC & Community Wellbeing,5105684381,13.08.2014,Elderly Frail Homecare,Charges from Independent Providers,311.64,CARE FIRST IW LTD
Revenue,Head of ASC & Community Wellbeing,5105684382,13.08.2014,Elderly Frail Homecare,Charges from Independent Providers,178.08,CARE FIRST IW LTD
Revenue,Head of ASC & Community Wellbeing,5105684383,13.08.2014,Elderly Frail Homecare,Charges from Independent Providers,467.46,CARE FIRST IW LTD
Revenue,Head of ASC & Community Wellbeing,5105684391,13.08.2014,Elderly Frail Homecare,Charges from Independent Providers,515.69,CARE FIRST IW LTD
Revenue,Head of ASC & Community Wellbeing,5105684415,13.08.2014,Elderly Frail Homecare,Charges from Independent Providers,385.84,CARE FIRST IW LTD
Revenue,Head of ASC & Community Wellbeing,5105684422,13.08.2014,Elderly Frail Homecare,Charges from Independent Providers,155.82,CARE FIRST IW LTD
Revenue,Head of ASC & Community Wellbeing,5105684421,13.08.2014,Elderly Frail Homecare,Charges from Independent Providers,667.80,CARE FIRST IW LTD
Revenue,Head of ASC & Community Wellbeing,5105684416,13.08.2014,Elderly Frail Homecare,Charges from Independent Providers,"2,055.34",CARE FIRST IW LTD
Revenue,Head of ASC & Community Wellbeing,5105684417,13.08.2014,Elderly Frail Homecare,Charges from Independent Providers,816.20,CARE FIRST IW LTD
Revenue,Head of ASC & Community Wellbeing,5105684420,13.08.2014,Elderly Frail Homecare,Charges from Independent Providers,385.84,CARE FIRST IW LTD
Revenue,Head of ASC & Community Wellbeing,5105684418,13.08.2014,Elderly Frail Homecare,Charges from Independent Providers,"1,023.96",CARE FIRST IW LTD
Revenue,Head of ASC & Community Wellbeing,5105684419,13.08.2014,Elderly Frail Homecare,Charges from Independent Providers,623.28,CARE FIRST IW LTD
Revenue,Head of ASC & Community Wellbeing,5105684392,13.08.2014,Elderly Frail Homecare,Charges from Independent Providers,89.04,CARE FIRST IW LTD
Revenue,Head of ASC & Community Wellbeing,5105684393,13.08.2014,Elderly Frail Homecare,Charges from Independent Providers,400.68,CARE FIRST IW LTD
Revenue,Head of ASC & Community Wellbeing,5105684398,13.08.2014,Elderly Frail Homecare,Charges from Independent Providers,207.76,CARE FIRST IW LTD
Revenue,Head of ASC & Community Wellbeing,5105684399,13.08.2014,Elderly Frail Homecare,Charges from Independent Providers,174.37,CARE FIRST IW LTD
Revenue,Head of ASC & Community Wellbeing,5105684400,13.08.2014,Elderly Frail Homecare,Charges from Independent Providers,519.40,CARE FIRST IW LTD
Revenue,Head of ASC & Community Wellbeing,5105684395,13.08.2014,Elderly Frail Homecare,Charges from Independent Providers,623.28,CARE FIRST IW LTD
Revenue,Head of ASC & Community Wellbeing,5105684401,13.08.2014,Elderly Frail Homecare,Charges from Independent Providers,934.92,CARE FIRST IW LTD
Revenue,Head of ASC & Community Wellbeing,5105684402,13.08.2014,Elderly Frail Homecare,Charges from Independent Providers,103.88,CARE FIRST IW LTD
Revenue,Head of ASC & Community Wellbeing,5105684397,13.08.2014,Elderly Frail Homecare,Charges from Independent Providers,237.44,CARE FIRST IW LTD
Revenue,Head of ASC & Community Wellbeing,5105684404,13.08.2014,Elderly Frail Homecare,Charges from Independent Providers,181.79,CARE FIRST IW LTD
Revenue,Head of ASC & Community Wellbeing,5105684407,13.08.2014,Elderly Frail Homecare,Charges from Independent Providers,983.15,CARE FIRST IW LTD
Revenue,Head of ASC & Community Wellbeing,5105684408,13.08.2014,Elderly Frail Homecare,Charges from Independent Providers,623.28,CARE FIRST IW LTD
Revenue,Head of ASC & Community Wellbeing,5105684408,13.08.2014,Elderly Frail Homecare,Charges from Independent Providers,155.82,CARE FIRST IW LTD
Revenue,Head of ASC & Community Wellbeing,5105684409,13.08.2014,Elderly Frail Homecare,Charges from Independent Providers,615.86,CARE FIRST IW LTD
Revenue,Head of ASC & Community Wellbeing,5105684423,13.08.2014,Elderly Frail Homecare,Charges from Independent Providers,22.26,CARE FIRST IW LTD
Revenue,Head of ASC & Community Wellbeing,5105684406,13.08.2014,Elderly Frail Homecare,Charges from Independent Providers,"1,246.56",CARE FIRST IW LTD
Revenue,Head of ASC & Community Wellbeing,5105684413,13.08.2014,Elderly Frail Homecare,Charges from Independent Providers,"1,246.56",CARE FIRST IW LTD
Revenue,Head of ASC & Community Wellbeing,5105684411,13.08.2014,Elderly Frail Homecare,Charges from Independent Providers,200.34,CARE FIRST IW LTD
Revenue,Head of ASC & Community Wellbeing,5105684412,13.08.2014,Elderly Frail Homecare,Charges from Independent Providers,460.04,CARE FIRST IW LTD
Revenue,Head of ASC & Community Wellbeing,5105685031,15.08.2014,Elderly Frail Homecare,Charges from Independent Providers,103.88,CARE FIRST IW LTD
Revenue,Head of ASC & Community Wellbeing,5105684414,13.08.2014,Elderly Frail Homecare,Regular Respite Care,29.68,CARE FIRST IW LTD
Revenue,Head of ASC & Community Wellbeing,5105684394,13.08.2014,Elderly Mentally Ill Homecare,Charges from Independent Providers,"2,136.96",CARE FIRST IW LTD
Revenue,Head of ASC & Community Wellbeing,5105684403,13.08.2014,Elderly Mentally Ill Homecare,Regular Respite Care,118.72,CARE FIRST IW LTD
Revenue,Head of ASC & Community Wellbeing,5105684384,13.08.2014,Mental Health Homecare,Charges from Independent Providers,155.82,CARE FIRST IW LTD
Revenue,Head of ASC & Community Wellbeing,5105684410,13.08.2014,Physical Disability Homecare,Charges from Independent Providers,"1,869.84",CARE FIRST IW LTD
Revenue,Head of ASC & Community Wellbeing,5105684405,13.08.2014,Physical Disability Homecare,Charges from Independent Providers,122.43,CARE FIRST IW LTD
Revenue,Head of ASC & Community Wellbeing,5105684389,13.08.2014,Physical Disability Homecare,Charges from Independent Providers,"2,196.32",CARE FIRST IW LTD
Revenue,Head of ASC & Community Wellbeing,5105684396,13.08.2014,Physical Disability Homecare,Regular Respite Care,118.72,CARE FIRST IW LTD
Revenue,Head of ASC & Community Wellbeing,5105684838,15.08.2014,Elderly Frail Homecare,Charges from Independent Providers,300.51,CAREWATCH (SOUTHAMPTON NEW FOREST & IOW)
Revenue,Head of ASC & Community Wellbeing,5105684840,15.08.2014,Elderly Frail Homecare,Charges from Independent Providers,415.52,CAREWATCH (SOUTHAMPTON NEW FOREST & IOW)
Revenue,Head of ASC & Community Wellbeing,5105684841,15.08.2014,Elderly Frail Homecare,Charges from Independent Providers,363.58,CAREWATCH (SOUTHAMPTON NEW FOREST & IOW)
Revenue,Head of ASC & Community Wellbeing,5105684847,15.08.2014,Elderly Frail Homecare,Charges from Independent Providers,259.70,CAREWATCH (SOUTHAMPTON NEW FOREST & IOW)
Revenue,Head of ASC & Community Wellbeing,5105684849,15.08.2014,Elderly Frail Homecare,Charges from Independent Providers,311.64,CAREWATCH (SOUTHAMPTON NEW FOREST & IOW)
Revenue,Head of ASC & Community Wellbeing,5105684850,15.08.2014,Elderly Frail Homecare,Charges from Independent Providers,252.28,CAREWATCH (SOUTHAMPTON NEW FOREST & IOW)
Revenue,Head of ASC & Community Wellbeing,5105684851,15.08.2014,Elderly Frail Homecare,Charges from Independent Providers,200.34,CAREWATCH (SOUTHAMPTON NEW FOREST & IOW)
Revenue,Head of ASC & Community Wellbeing,5105684785,15.08.2014,Elderly Frail Homecare,Charges from Independent Providers,189.21,CAREWATCH (SOUTHAMPTON NEW FOREST & IOW)
Revenue,Head of ASC & Community Wellbeing,5105684813,15.08.2014,Elderly Frail Homecare,Charges from Independent Providers,"1,213.17",CAREWATCH (SOUTHAMPTON NEW FOREST & IOW)
Revenue,Head of ASC & Community Wellbeing,5105684811,15.08.2014,Elderly Frail Homecare,Charges from Independent Providers,40.81,CAREWATCH (SOUTHAMPTON NEW FOREST & IOW)
Revenue,Head of ASC & Community Wellbeing,5105684812,15.08.2014,Elderly Frail Homecare,Charges from Independent Providers,831.04,CAREWATCH (SOUTHAMPTON NEW FOREST & IOW)
Revenue,Head of ASC & Community Wellbeing,5105684816,15.08.2014,Elderly Frail Homecare,Charges from Independent Providers,831.04,CAREWATCH (SOUTHAMPTON NEW FOREST & IOW)
Revenue,Head of ASC & Community Wellbeing,5105684823,15.08.2014,Elderly Frail Homecare,Charges from Independent Providers,415.52,CAREWATCH (SOUTHAMPTON NEW FOREST & IOW)
Revenue,Head of ASC & Community Wellbeing,5105684855,15.08.2014,Elderly Frail Homecare,Charges from Independent Providers,"1,662.08",CAREWATCH (SOUTHAMPTON NEW FOREST & IOW)
Revenue,Head of ASC & Community Wellbeing,5105684857,15.08.2014,Elderly Frail Homecare,Charges from Independent Providers,207.76,CAREWATCH (SOUTHAMPTON NEW FOREST & IOW)
Revenue,Head of ASC & Community Wellbeing,5105684842,15.08.2014,Elderly Frail Homecare,Charges from Independent Providers,623.28,CAREWATCH (SOUTHAMPTON NEW FOREST & IOW)
Revenue,Head of ASC & Community Wellbeing,5105684844,15.08.2014,Elderly Frail Homecare,Charges from Independent Providers,207.76,CAREWATCH (SOUTHAMPTON NEW FOREST & IOW)
Revenue,Head of ASC & Community Wellbeing,5105684846,15.08.2014,Elderly Frail Homecare,Charges from Independent Providers,727.16,CAREWATCH (SOUTHAMPTON NEW FOREST & IOW)
Revenue,Head of ASC & Community Wellbeing,5105684862,15.08.2014,Elderly Frail Homecare,Charges from Independent Providers,415.52,CAREWATCH (SOUTHAMPTON NEW FOREST & IOW)
Revenue,Head of ASC & Community Wellbeing,5105684864,15.08.2014,Elderly Frail Homecare,Charges from Independent Providers,456.33,CAREWATCH (SOUTHAMPTON NEW FOREST & IOW)
Revenue,Head of ASC & Community Wellbeing,5105684865,15.08.2014,Elderly Frail Homecare,Charges from Independent Providers,942.34,CAREWATCH (SOUTHAMPTON NEW FOREST & IOW)
Revenue,Head of ASC & Community Wellbeing,5105684866,15.08.2014,Elderly Frail Homecare,Charges from Independent Providers,274.54,CAREWATCH (SOUTHAMPTON NEW FOREST & IOW)
Revenue,Head of ASC & Community Wellbeing,5105684872,15.08.2014,Elderly Frail Homecare,Charges from Independent Providers,293.09,CAREWATCH (SOUTHAMPTON NEW FOREST & IOW)
Revenue,Head of ASC & Community Wellbeing,5105684874,15.08.2014,Elderly Frail Homecare,Charges from Independent Providers,"1,610.14",CAREWATCH (SOUTHAMPTON NEW FOREST & IOW)
Revenue,Head of ASC & Community Wellbeing,5105684798,15.08.2014,Elderly Frail Homecare,Charges from Independent Providers,682.64,CAREWATCH (SOUTHAMPTON NEW FOREST & IOW)
Revenue,Head of ASC & Community Wellbeing,5105684799,15.08.2014,Elderly Frail Homecare,Charges from Independent Providers,207.76,CAREWATCH (SOUTHAMPTON NEW FOREST & IOW)
Revenue,Head of ASC & Community Wellbeing,5105684800,15.08.2014,Elderly Frail Homecare,Charges from Independent Providers,207.76,CAREWATCH (SOUTHAMPTON NEW FOREST & IOW)
Revenue,Head of ASC & Community Wellbeing,5105684801,15.08.2014,Elderly Frail Homecare,Charges from Independent Providers,311.64,CAREWATCH (SOUTHAMPTON NEW FOREST & IOW)
Revenue,Head of ASC & Community Wellbeing,5105684802,15.08.2014,Elderly Frail Homecare,Charges from Independent Providers,682.64,CAREWATCH (SOUTHAMPTON NEW FOREST & IOW)
Revenue,Head of ASC & Community Wellbeing,5105684803,15.08.2014,Elderly Frail Homecare,Charges from Independent Providers,311.64,CAREWATCH (SOUTHAMPTON NEW FOREST & IOW)
Revenue,Head of ASC & Community Wellbeing,5105684804,15.08.2014,Elderly Frail Homecare,Charges from Independent Providers,278.25,CAREWATCH (SOUTHAMPTON NEW FOREST & IOW)
Revenue,Head of ASC & Community Wellbeing,5105684805,15.08.2014,Elderly Frail Homecare,Charges from Independent Providers,593.60,CAREWATCH (SOUTHAMPTON NEW FOREST & IOW)
Revenue,Head of ASC & Community Wellbeing,5105684806,15.08.2014,Elderly Frail Homecare,Charges from Independent Providers,148.40,CAREWATCH (SOUTHAMPTON NEW FOREST & IOW)
Revenue,Head of ASC & Community Wellbeing,5105684807,15.08.2014,Elderly Frail Homecare,Charges from Independent Providers,719.74,CAREWATCH (SOUTHAMPTON NEW FOREST & IOW)
Revenue,Head of ASC & Community Wellbeing,5105684795,15.08.2014,Elderly Frail Homecare,Charges from Independent Providers,148.40,CAREWATCH (SOUTHAMPTON NEW FOREST & IOW)
Revenue,Head of ASC & Community Wellbeing,5105684881,15.08.2014,Elderly Frail Homecare,Charges from Independent Providers,155.82,CAREWATCH (SOUTHAMPTON NEW FOREST & IOW)
Revenue,Head of ASC & Community Wellbeing,5105684790,15.08.2014,Elderly Frail Homecare,Charges from Independent Providers,389.55,CAREWATCH (SOUTHAMPTON NEW FOREST & IOW)
Revenue,Head of ASC & Community Wellbeing,5105684792,15.08.2014,Elderly Frail Homecare,Charges from Independent Providers,452.62,CAREWATCH (SOUTHAMPTON NEW FOREST & IOW)
Revenue,Head of ASC & Community Wellbeing,5105684793,15.08.2014,Elderly Frail Homecare,Charges from Independent Providers,"1,038.80",CAREWATCH (SOUTHAMPTON NEW FOREST & IOW)
Revenue,Head of ASC & Community Wellbeing,5105684794,15.08.2014,Elderly Frail Homecare,Charges from Independent Providers,415.52,CAREWATCH (SOUTHAMPTON NEW FOREST & IOW)
Revenue,Head of ASC & Community Wellbeing,5105684876,15.08.2014,Elderly Frail Homecare,Charges from Independent Providers,22.26,CAREWATCH (SOUTHAMPTON NEW FOREST & IOW)
Revenue,Head of ASC & Community Wellbeing,5105684877,15.08.2014,Elderly Frail Homecare,Charges from Independent Providers,155.82,CAREWATCH (SOUTHAMPTON NEW FOREST & IOW)
Revenue,Head of ASC & Community Wellbeing,5105684878,15.08.2014,Elderly Frail Homecare,Charges from Independent Providers,51.94,CAREWATCH (SOUTHAMPTON NEW FOREST & IOW)
Revenue,Head of ASC & Community Wellbeing,5105684879,15.08.2014,Elderly Frail Homecare,Charges from Independent Providers,"2,070.18",CAREWATCH (SOUTHAMPTON NEW FOREST & IOW)
Revenue,Head of ASC & Community Wellbeing,5105684860,15.08.2014,Elderly Frail Homecare,Charges from Independent Providers,22.26,CAREWATCH (SOUTHAMPTON NEW FOREST & IOW)
Revenue,Head of ASC & Community Wellbeing,5105684882,15.08.2014,Elderly Frail Homecare,Charges from Independent Providers,304.22,CAREWATCH (SOUTHAMPTON NEW FOREST & IOW)
Revenue,Head of ASC & Community Wellbeing,5105684787,15.08.2014,Elderly Frail Homecare,Charges from Independent Providers,207.76,CAREWATCH (SOUTHAMPTON NEW FOREST & IOW)
Revenue,Head of ASC & Community Wellbeing,5105684788,15.08.2014,Elderly Frail Homecare,Charges from Independent Providers,207.76,CAREWATCH (SOUTHAMPTON NEW FOREST & IOW)
Revenue,Head of ASC & Community Wellbeing,5105684827,15.08.2014,Elderly Frail Homecare,Charges from Independent Providers,415.22,CAREWATCH (SOUTHAMPTON NEW FOREST & IOW)
Revenue,Head of ASC & Community Wellbeing,5105684828,15.08.2014,Elderly Frail Homecare,Charges from Independent Providers,311.64,CAREWATCH (SOUTHAMPTON NEW FOREST & IOW)
Revenue,Head of ASC & Community Wellbeing,5105684829,15.08.2014,Elderly Frail Homecare,Charges from Independent Providers,623.28,CAREWATCH (SOUTHAMPTON NEW FOREST & IOW)
Revenue,Head of ASC & Community Wellbeing,5105684822,15.08.2014,Elderly Frail Homecare,Charges from Independent Providers,281.96,CAREWATCH (SOUTHAMPTON NEW FOREST & IOW)
Revenue,Head of ASC & Community Wellbeing,5105684859,15.08.2014,Elderly Frail Homecare,Regular Respite Care,118.72,CAREWATCH (SOUTHAMPTON NEW FOREST & IOW)
Revenue,Head of ASC & Community Wellbeing,5105684845,15.08.2014,Elderly Frail Homecare,Regular Respite Care,356.16,CAREWATCH (SOUTHAMPTON NEW FOREST & IOW)
Revenue,Head of ASC & Community Wellbeing,5105684854,15.08.2014,Elderly Frail Homecare,Regular Respite Care,89.04,CAREWATCH (SOUTHAMPTON NEW FOREST & IOW)
Revenue,Head of ASC & Community Wellbeing,5105684839,15.08.2014,Elderly Frail Homecare,Regular Respite Care,89.04,CAREWATCH (SOUTHAMPTON NEW FOREST & IOW)
Revenue,Head of ASC & Community Wellbeing,5105684835,15.08.2014,Elderly Frail Homecare,Regular Respite Care,118.72,CAREWATCH (SOUTHAMPTON NEW FOREST & IOW)
Revenue,Head of ASC & Community Wellbeing,5105684826,15.08.2014,Elderly Frail Homecare,Regular Respite Care,118.72,CAREWATCH (SOUTHAMPTON NEW FOREST & IOW)
Revenue,Head of ASC & Community Wellbeing,5105684830,15.08.2014,Elderly Frail Homecare,Regular Respite Care,89.04,CAREWATCH (SOUTHAMPTON NEW FOREST & IOW)
Revenue,Head of ASC & Community Wellbeing,5105684831,15.08.2014,Elderly Frail Homecare,Regular Respite Care,356.16,CAREWATCH (SOUTHAMPTON NEW FOREST & IOW)
Revenue,Head of ASC & Community Wellbeing,5105684824,15.08.2014,Elderly Frail Homecare,Regular Respite Care,118.72,CAREWATCH (SOUTHAMPTON NEW FOREST & IOW)
Revenue,Head of ASC & Community Wellbeing,5105684825,15.08.2014,Elderly Frail Homecare,Regular Respite Care,445.20,CAREWATCH (SOUTHAMPTON NEW FOREST & IOW)
Revenue,Head of ASC & Community Wellbeing,5105684820,15.08.2014,Elderly Frail Homecare,Regular Respite Care,430.36,CAREWATCH (SOUTHAMPTON NEW FOREST & IOW)
Revenue,Head of ASC & Community Wellbeing,5105684821,15.08.2014,Elderly Frail Homecare,Regular Respite Care,118.72,CAREWATCH (SOUTHAMPTON NEW FOREST & IOW)
Revenue,Head of ASC & Community Wellbeing,5105684810,15.08.2014,Elderly Frail Homecare,Regular Respite Care,29.68,CAREWATCH (SOUTHAMPTON NEW FOREST & IOW)
Revenue,Head of ASC & Community Wellbeing,5105684808,15.08.2014,Elderly Frail Homecare,Regular Respite Care,118.72,CAREWATCH (SOUTHAMPTON NEW FOREST & IOW)
Revenue,Head of ASC & Community Wellbeing,5105684884,15.08.2014,Elderly Frail Homecare,Regular Respite Care,89.04,CAREWATCH (SOUTHAMPTON NEW FOREST & IOW)
Revenue,Head of ASC & Community Wellbeing,5105684885,15.08.2014,Elderly Frail Homecare,Regular Respite Care,59.36,CAREWATCH (SOUTHAMPTON NEW FOREST & IOW)
Revenue,Head of ASC & Community Wellbeing,5105684869,15.08.2014,Elderly Frail Homecare,Regular Respite Care,118.72,CAREWATCH (SOUTHAMPTON NEW FOREST & IOW)
Revenue,Head of ASC & Community Wellbeing,5105684875,15.08.2014,Elderly Mentally Ill Homecare,Charges from Independent Providers,59.36,CAREWATCH (SOUTHAMPTON NEW FOREST & IOW)
Revenue,Head of ASC & Community Wellbeing,5105684870,15.08.2014,Elderly Mentally Ill Homecare,Charges from Independent Providers,623.28,CAREWATCH (SOUTHAMPTON NEW FOREST & IOW)
Revenue,Head of ASC & Community Wellbeing,5105684867,15.08.2014,Elderly Mentally Ill Homecare,Charges from Independent Providers,118.72,CAREWATCH (SOUTHAMPTON NEW FOREST & IOW)
Revenue,Head of ASC & Community Wellbeing,5105684863,15.08.2014,Elderly Mentally Ill Homecare,Charges from Independent Providers,415.52,CAREWATCH (SOUTHAMPTON NEW FOREST & IOW)
Revenue,Head of ASC & Community Wellbeing,5105684833,15.08.2014,Elderly Mentally Ill Homecare,Charges from Independent Providers,727.16,CAREWATCH (SOUTHAMPTON NEW FOREST & IOW)
Revenue,Head of ASC & Community Wellbeing,5105684848,15.08.2014,Elderly Mentally Ill Homecare,Charges from Independent Providers,623.28,CAREWATCH (SOUTHAMPTON NEW FOREST & IOW)
Revenue,Head of ASC & Community Wellbeing,5105684834,15.08.2014,Elderly Mentally Ill Homecare,Charges from Independent Providers,59.36,CAREWATCH (SOUTHAMPTON NEW FOREST & IOW)
Revenue,Head of ASC & Community Wellbeing,5105684817,15.08.2014,Elderly Mentally Ill Homecare,Charges from Independent Providers,712.32,CAREWATCH (SOUTHAMPTON NEW FOREST & IOW)
Revenue,Head of ASC & Community Wellbeing,5105684815,15.08.2014,Elderly Mentally Ill Homecare,Charges from Independent Providers,452.62,CAREWATCH (SOUTHAMPTON NEW FOREST & IOW)
Revenue,Head of ASC & Community Wellbeing,5105684786,15.08.2014,Elderly Mentally Ill Homecare,Regular Respite Care,118.72,CAREWATCH (SOUTHAMPTON NEW FOREST & IOW)
Revenue,Head of ASC & Community Wellbeing,5105684853,15.08.2014,Learning Disability Homecare,Charges from Independent Providers,118.72,CAREWATCH (SOUTHAMPTON NEW FOREST & IOW)
Revenue,Head of ASC & Community Wellbeing,5105684789,15.08.2014,Mental Health Homecare,Charges from Independent Providers,89.07,CAREWATCH (SOUTHAMPTON NEW FOREST & IOW)
Revenue,Head of ASC & Community Wellbeing,5105685451,15.08.2014,Mental Health Homecare,Charges from Independent Providers,"1,780.80",CAREWATCH (SOUTHAMPTON NEW FOREST & IOW)
Revenue,Head of ASC & Community Wellbeing,5105684809,15.08.2014,Mental Health Homecare,Charges from Independent Providers,263.41,CAREWATCH (SOUTHAMPTON NEW FOREST & IOW)
Revenue,Head of ASC & Community Wellbeing,5105684814,15.08.2014,Mental Health Homecare,Charges from Independent Providers,118.72,CAREWATCH (SOUTHAMPTON NEW FOREST & IOW)
Revenue,Head of ASC & Community Wellbeing,5105684837,15.08.2014,Mental Health Homecare,Charges from Independent Providers,207.76,CAREWATCH (SOUTHAMPTON NEW FOREST & IOW)
Revenue,Head of ASC & Community Wellbeing,5105684796,15.08.2014,Physical Disability Homecare,Charges from Independent Providers,118.72,CAREWATCH (SOUTHAMPTON NEW FOREST & IOW)
Revenue,Head of ASC & Community Wellbeing,5105684797,15.08.2014,Physical Disability Homecare,Charges from Independent Providers,"1,246.56",CAREWATCH (SOUTHAMPTON NEW FOREST & IOW)
Revenue,Head of ASC & Community Wellbeing,5105684791,15.08.2014,Physical Disability Homecare,Charges from Independent Providers,742.00,CAREWATCH (SOUTHAMPTON NEW FOREST & IOW)
Revenue,Head of ASC & Community Wellbeing,5105684883,15.08.2014,Physical Disability Homecare,Charges from Independent Providers,"1,009.12",CAREWATCH (SOUTHAMPTON NEW FOREST & IOW)
Revenue,Head of ASC & Community Wellbeing,5105684880,15.08.2014,Physical Disability Homecare,Charges from Independent Providers,29.68,CAREWATCH (SOUTHAMPTON NEW FOREST & IOW)
Revenue,Head of ASC & Community Wellbeing,5105684861,15.08.2014,Physical Disability Homecare,Charges from Independent Providers,534.24,CAREWATCH (SOUTHAMPTON NEW FOREST & IOW)
Revenue,Head of ASC & Community Wellbeing,5105684868,15.08.2014,Physical Disability Homecare,Charges from Independent Providers,118.72,CAREWATCH (SOUTHAMPTON NEW FOREST & IOW)
Revenue,Head of ASC & Community Wellbeing,5105684843,15.08.2014,Physical Disability Homecare,Charges from Independent Providers,534.24,CAREWATCH (SOUTHAMPTON NEW FOREST & IOW)
Revenue,Head of ASC & Community Wellbeing,5105684858,15.08.2014,Physical Disability Homecare,Charges from Independent Providers,831.04,CAREWATCH (SOUTHAMPTON NEW FOREST & IOW)
Revenue,Head of ASC & Community Wellbeing,5105684871,15.08.2014,Physical Disability Homecare,Charges from Independent Providers,986.86,CAREWATCH (SOUTHAMPTON NEW FOREST & IOW)
Revenue,Head of ASC & Community Wellbeing,5105684873,15.08.2014,Physical Disability Homecare,Charges from Independent Providers,719.74,CAREWATCH (SOUTHAMPTON NEW FOREST & IOW)
Revenue,Head of ASC & Community Wellbeing,5105684856,15.08.2014,Physical Disability Homecare,Charges from Independent Providers,612.15,CAREWATCH (SOUTHAMPTON NEW FOREST & IOW)
Revenue,Head of ASC & Community Wellbeing,5105684819,15.08.2014,Physical Disability Homecare,Charges from Independent Providers,103.88,CAREWATCH (SOUTHAMPTON NEW FOREST & IOW)
Revenue,Head of ASC & Community Wellbeing,5105684818,15.08.2014,Physical Disability Homecare,Charges from Independent Providers,975.73,CAREWATCH (SOUTHAMPTON NEW FOREST & IOW)
Revenue,Head of ASC & Community Wellbeing,5105684832,15.08.2014,Physical Disability Homecare,Charges from Independent Providers,"2,062.76",CAREWATCH (SOUTHAMPTON NEW FOREST & IOW)
Revenue,Head of ASC & Community Wellbeing,5105684836,15.08.2014,Physical Disability Homecare,Charges from Independent Providers,920.08,CAREWATCH (SOUTHAMPTON NEW FOREST & IOW)
Revenue,Head of ASC & Community Wellbeing,5105684852,15.08.2014,Physical Disability Homecare,Charges from Independent Providers,89.04,CAREWATCH (SOUTHAMPTON NEW FOREST & IOW)
Revenue,Director of Childrens Services,5105682634,01.08.2014,S17 Disabled Children,Charges from Independent Providers,22.16,CAREWATCH (SOUTHAMPTON NEW FOREST & IOW)
Revenue,Director of Childrens Services,5105683059,08.08.2014,S17 Disabled Children,Support Children,14.84,CAREWATCH (SOUTHAMPTON NEW FOREST & IOW)
Revenue,Director of Childrens Services,5105682632,01.08.2014,Agency Domiciliary Care,Charges from Independent Providers,407.57,CAREWATCH (SOUTHAMPTON NEW FOREST & IOW)
Revenue,Director of Childrens Services,5105682633,01.08.2014,Agency Domiciliary Care,Charges from Independent Providers,416.58,CAREWATCH (SOUTHAMPTON NEW FOREST & IOW)
Revenue,Director of Childrens Services,5105682623,01.08.2014,Agency Domiciliary Care,Charges from Independent Providers,148.40,CAREWATCH (SOUTHAMPTON NEW FOREST & IOW)
Revenue,Director of Childrens Services,5105682624,01.08.2014,Agency Domiciliary Care,Charges from Independent Providers,188.58,CAREWATCH (SOUTHAMPTON NEW FOREST & IOW)
Revenue,Director of Childrens Services,5105682625,01.08.2014,Agency Domiciliary Care,Charges from Independent Providers,746.80,CAREWATCH (SOUTHAMPTON NEW FOREST & IOW)
Revenue,Director of Childrens Services,5105682626,01.08.2014,Agency Domiciliary Care,Charges from Independent Providers,197.33,CAREWATCH (SOUTHAMPTON NEW FOREST & IOW)
Revenue,Director of Childrens Services,5105682627,01.08.2014,Agency Domiciliary Care,Charges from Independent Providers,7.08,CAREWATCH (SOUTHAMPTON NEW FOREST & IOW)
Revenue,Director of Childrens Services,5105682628,01.08.2014,Agency Domiciliary Care,Charges from Independent Providers,133.56,CAREWATCH (SOUTHAMPTON NEW FOREST & IOW)
Revenue,Director of Childrens Services,5105682629,01.08.2014,Agency Domiciliary Care,Charges from Independent Providers,207.76,CAREWATCH (SOUTHAMPTON NEW FOREST & IOW)
Revenue,Director of Childrens Services,5105682630,01.08.2014,Agency Domiciliary Care,Charges from Independent Providers,200.33,CAREWATCH (SOUTHAMPTON NEW FOREST & IOW)
Revenue,Director of Childrens Services,5105682631,01.08.2014,Agency Domiciliary Care,Charges from Independent Providers,252.78,CAREWATCH (SOUTHAMPTON NEW FOREST & IOW)
Revenue,Director of Childrens Services,5105683057,08.08.2014,Agency Domiciliary Care,Charges from Independent Providers,326.48,CAREWATCH (SOUTHAMPTON NEW FOREST & IOW)
Revenue,Director of Childrens Services,5105683058,08.08.2014,Agency Domiciliary Care,Charges from Independent Providers,608.44,CAREWATCH (SOUTHAMPTON NEW FOREST & IOW)
Revenue,Director of Childrens Services,5105682637,01.08.2014,Agency Domiciliary Care,Support Children,382.47,CAREWATCH (SOUTHAMPTON NEW FOREST & IOW)
Revenue,Director of Childrens Services,5105682636,01.08.2014,Support for Looked After Children - Disabled Childrens Team,Transport of Clients,890.40,CAREWATCH (SOUTHAMPTON NEW FOREST & IOW)
Revenue,Director of Childrens Services,5105682635,01.08.2014,Support for Looked After Children - Disabled Childrens Team,Charges from Independent Providers,311.19,CAREWATCH (SOUTHAMPTON NEW FOREST & IOW)
Revenue,Director of Childrens Services,5105683146,08.08.2014,Support for Looked After Children - Disabled Childrens Team,Support Children,890.40,CAREWATCH (SOUTHAMPTON NEW FOREST & IOW)
Revenue,Head of Corp Gov & Monitoring Officer,5105686900,08.08.2014,Elections,Rent of Buildings and Rooms,180.00,CARISBROOKE AND GUNVILLE METHODIST CHURCH HALL
Revenue,Head of ASC & Community Wellbeing,5105683171,08.08.2014,Homelessness,Medical Fees and Staff Welfare,25.15,CARISBROOKE HEALTH CENTRE
Revenue,Managing Director & Head of Paid Service,5105682847,06.08.2014,Contraception,Payment to Private Contractors,"2,460.00",CARISBROOKE HEALTH CENTRE
Revenue,Managing Director & Head of Paid Service,5105682847,06.08.2014,NHS Health Check Programme,Payment to Private Contractors,947.00,CARISBROOKE HEALTH CENTRE
Revenue,Managing Director & Head of Paid Service,5105682847,06.08.2014,STI Tests & Treatment,Payment to Private Contractors,15.00,CARISBROOKE HEALTH CENTRE
Revenue,Director of Childrens Services,5105686658,29.08.2014,LSCB (Local Safeguarding Childrens Board),Consultants Fees,"2,200.00",CAROL DOUCH CONSULTING LTD
Revenue,Head of Economy & Tourism,5105682800,06.08.2014,Cowes Week,Conference Expenses,"1,800.00",CAROLINE ROSE MANAGEMENT LTD
Revenue,Head of Economy & Tourism,5105681962,01.08.2014,Dinosaur Isle Museum (Sandown Geology),Stock Purchases,164.22,CASA GRANDE LIMITED
Revenue,Head of ASC & Community Wellbeing,5105685418,15.08.2014,Adelaide Resource Centre,Maintenance of Operational Equipment,56.25,CATER WIGHT
Revenue,Head of ASC & Community Wellbeing,5105686457,27.08.2014,Gouldings Resource Centre,Prop Svs only - Day to day mtce,491.48,CATER WIGHT
Capital,Director of Childrens Services,5105683888,13.08.2014,Children Services Early Years,"Plant, Equipment & Furniture - Capital","7,794.00",CATER WIGHT
Capital,Director of Childrens Services,5105683887,13.08.2014,Children Services Early Years,"Plant, Equipment & Furniture - Capital",176.00,CATER WIGHT
Capital,Director of Childrens Services,5105683887,13.08.2014,Children Services Early Years,"Plant, Equipment & Furniture - Capital",234.00,CATER WIGHT
Capital,Director of Childrens Services,5105686116,22.08.2014,Children Services Early Years,"Plant, Equipment & Furniture - Capital","1,850.00",CATER WIGHT
Capital,Director of Childrens Services,5105686118,22.08.2014,Children Services Early Years,"Plant, Equipment & Furniture - Capital","1,850.00",CATER WIGHT
Capital,Director of Childrens Services,5105686118,22.08.2014,Children Services Early Years,"Plant, Equipment & Furniture - Capital",725.00,CATER WIGHT
Revenue,Head of Economy & Tourism,5105686737,29.08.2014,IW Festival of Cycling,Advertising & Publicity,"4,568.67",CELADOR RADIO LTD
Revenue,Head of Economy & Tourism,5105683999,13.08.2014,Shanklin Lift,Operational Equipment,55.02,CHANT LOCK & SECURITY SERVICE
Revenue,Director of Childrens Services,5105682560,01.08.2014,Leaving Care Costs,Payments to/Aid Provided to Clients,116.99,CHANT LOCK & SECURITY SERVICE
Revenue,Director of Childrens Services,5105685703,20.08.2014,School Reorganisation Consultation Costs,Security of Buildings,6.54,CHANT LOCK & SECURITY SERVICE
Revenue,Head of Economy & Tourism,5105684569,13.08.2014,Ferry Maintenance,Maintenance of Operational Equipment,52.80,CHANT LOCK & SECURITY SERVICE
Revenue,Head of Finance & S151 Officer,5105682556,01.08.2014,Public Conveniences - General,Property Services - Planned Maintenance,140.53,CHANT LOCK & SECURITY SERVICE
Revenue,Head of ASC & Community Wellbeing,5105682758,06.08.2014,Plean Dene,Catering Purchases,44.20,CHAPEL NURSERIES
Revenue,Head of ASC & Community Wellbeing,5105685804,20.08.2014,Plean Dene,Catering Purchases,-37.20,CHAPEL NURSERIES
Revenue,Head of ASC & Community Wellbeing,5105685805,20.08.2014,Plean Dene,Catering Purchases,37.20,CHAPEL NURSERIES
Revenue,Head of ASC & Community Wellbeing,5105685806,22.08.2014,Plean Dene,Catering Purchases,37.20,CHAPEL NURSERIES
Revenue,Head of ASC & Community Wellbeing,5105686761,29.08.2014,Plean Dene,Catering Purchases,43.70,CHAPEL NURSERIES
Revenue,Head of ASC & Community Wellbeing,5105686344,22.08.2014,Saxonbury,Catering Purchases,27.00,CHAPEL NURSERIES
Revenue,Head of ASC & Community Wellbeing,5105685273,15.08.2014,Saxonbury,Catering Purchases,41.30,CHAPEL NURSERIES
Revenue,Head of ASC & Community Wellbeing,5105685276,15.08.2014,Saxonbury,Catering Purchases,27.50,CHAPEL NURSERIES
Revenue,Head of Economy & Tourism,5105682553,01.08.2014,Dinosaur Isle Museum (Sandown Geology),Stock Purchases,30.00,REDACTED PERSONAL DATA
Revenue,Head of Economy & Tourism,5105682553,01.08.2014,Dinosaur Isle Museum (Sandown Geology),Stock Purchases,25.00,REDACTED PERSONAL DATA
Revenue,Head of Exchequer Services,5105686235,22.08.2014,Staff Benefits,Payment to Private Contractors,243.00,CHARLOTTE AND EMMA'S CHILDMINDING SERVICE
Revenue,Head of Exchequer Services,5105686235,22.08.2014,Staff Benefits,Payment to Private Contractors,243.00,CHARLOTTE AND EMMA'S CHILDMINDING SERVICE
Revenue,Director of Childrens Services,5105685493,20.08.2014,Thompson House Tuition Centre (PRU),Schools Catering Contract,229.60,CHARTWELLS
Revenue,Director of Childrens Services,5105685493,20.08.2014,Thompson House Tuition Centre (PRU),Schools Catering Contract,129.15,CHARTWELLS
Revenue,Head of Exchequer Services,5105686215,22.08.2014,Staff Benefits,Payment to Private Contractors,236.00,CHATTERBOX NURSERY LTD
Revenue,Head of Exchequer Services,5105686215,22.08.2014,Staff Benefits,Payment to Private Contractors,243.00,CHATTERBOX NURSERY LTD
Revenue,Head of Exchequer Services,5105686215,22.08.2014,Staff Benefits,Payment to Private Contractors,243.00,CHATTERBOX NURSERY LTD
Revenue,Head of Exchequer Services,5105686215,22.08.2014,Staff Benefits,Payment to Private Contractors,125.00,CHATTERBOX NURSERY LTD
Revenue,Head of Exchequer Services,5105686215,22.08.2014,Staff Benefits,Payment to Private Contractors,185.50,CHATTERBOX NURSERY LTD
Revenue,Head of Exchequer Services,5105686215,22.08.2014,Staff Benefits,Payment to Private Contractors,75.80,CHATTERBOX NURSERY LTD
Revenue,Head of Exchequer Services,5105686215,22.08.2014,Staff Benefits,Payment to Private Contractors,200.00,CHATTERBOX NURSERY LTD
Revenue,Head of Exchequer Services,5105686215,22.08.2014,Staff Benefits,Payment to Private Contractors,116.67,CHATTERBOX NURSERY LTD
Revenue,Head of Exchequer Services,5105686215,22.08.2014,Staff Benefits,Payment to Private Contractors,243.00,CHATTERBOX NURSERY LTD
Revenue,Head of Exchequer Services,5105686215,22.08.2014,Staff Benefits,Payment to Private Contractors,243.00,CHATTERBOX NURSERY LTD
Revenue,Director of Childrens Services,5105683148,08.08.2014,Adoption Costs,Professional Services,"1,245.00",CHATTERBOX NURSERY LTD
Revenue,Director of Childrens Services,5105683149,08.08.2014,Adoption Costs,Professional Services,996.00,CHATTERBOX NURSERY LTD
Revenue,Director of Childrens Services,5105683150,08.08.2014,Adoption Costs,Professional Services,996.00,CHATTERBOX NURSERY LTD
Revenue,Director of Childrens Services,5105685817,22.08.2014,Hospital Education,Charges from Independent Providers,"2,712.50",CHEADLE ROYAL HOSPITAL LTD
Revenue,Head of Economy & Tourism,5105682776,06.08.2014,Dinosaur Isle Museum (Sandown Geology),Stock Purchases,24.00,CHEATWELL GAMES
Revenue,Head of Economy & Tourism,5105683859,13.08.2014,Dinosaur Isle Museum (Sandown Geology),Stock Purchases,127.56,CHEATWELL GAMES
Revenue,Head of Exchequer Services,5105686224,22.08.2014,Staff Benefits,Payment to Private Contractors,50.00,CHEEKY CHIMPS CHILDCARE
Revenue,Head of Exchequer Services,5105686224,22.08.2014,Staff Benefits,Payment to Private Contractors,160.00,CHEEKY CHIMPS CHILDCARE
Revenue,Head of Exchequer Services,5105686224,22.08.2014,Staff Benefits,Payment to Private Contractors,83.92,CHEEKY CHIMPS CHILDCARE
Revenue,Head of ASC & Community Wellbeing,5105683196,13.08.2014,Elderly Frail Residential Care,Charges from Independent Providers,"1,998.08",CHERRY TREES I.W. LTD
Revenue,Head of ASC & Community Wellbeing,5105683196,13.08.2014,Elderly Frail Residential Care,Charges from Independent Providers,"1,622.60",CHERRY TREES I.W. LTD
Revenue,Head of ASC & Community Wellbeing,5105683196,13.08.2014,Elderly Frail Residential Care,Charges from Independent Providers,"1,622.60",CHERRY TREES I.W. LTD
Revenue,Head of ASC & Community Wellbeing,5105683196,13.08.2014,Elderly Frail Residential Care,Charges from Independent Providers,"1,622.60",CHERRY TREES I.W. LTD
Revenue,Head of ASC & Community Wellbeing,5105683196,13.08.2014,Elderly Frail Residential Care,Charges from Independent Providers,"1,998.08",CHERRY TREES I.W. LTD
Revenue,Head of ASC & Community Wellbeing,5105683196,13.08.2014,Elderly Frail Residential Care,Charges from Independent Providers,"1,622.60",CHERRY TREES I.W. LTD
Revenue,Head of ASC & Community Wellbeing,5105683196,13.08.2014,Elderly Frail Residential Care,Charges from Independent Providers,"1,622.60",CHERRY TREES I.W. LTD
Revenue,Head of ASC & Community Wellbeing,5105683196,13.08.2014,Elderly Frail Residential Care,Charges from Independent Providers,"1,622.60",CHERRY TREES I.W. LTD
Revenue,Head of ASC & Community Wellbeing,5105683941,13.08.2014,Elderly Frail Residential Care,Charges from Independent Providers,607.30,CHERRY TREES I.W. LTD
Revenue,Head of ASC & Community Wellbeing,5105683941,13.08.2014,Elderly Frail Residential Care,Charges from Independent Providers,"1,700.44",CHERRY TREES I.W. LTD
Revenue,Head of ASC & Community Wellbeing,5105686357,27.08.2014,Elderly Frail Residential Care,Charges from Independent Providers,"1,639.71",CHERRY TREES I.W. LTD
Revenue,Head of ASC & Community Wellbeing,5105683196,13.08.2014,Elderly Mentally Ill Residential Care,Charges from Independent Providers,"1,699.88",CHERRY TREES I.W. LTD
Revenue,Head of ASC & Community Wellbeing,5105683196,13.08.2014,Elderly Mentally Ill Residential Care,Charges from Independent Providers,"1,622.60",CHERRY TREES I.W. LTD
Revenue,Head of ASC & Community Wellbeing,5105683196,13.08.2014,Elderly Mentally Ill Residential Care,Charges from Independent Providers,"1,699.88",CHERRY TREES I.W. LTD
Revenue,Head of ASC & Community Wellbeing,5105683196,13.08.2014,Elderly Mentally Ill Residential Care,Charges from Independent Providers,"1,998.08",CHERRY TREES I.W. LTD
Revenue,Head of ASC & Community Wellbeing,5105683196,13.08.2014,REDACTED PERSONAL DATA,Order Settlement to Bal Sht GL,"1,622.60",CHERRY TREES I.W. LTD
Revenue,Head of ASC & Community Wellbeing,5105683196,13.08.2014,REDACTED PERSONAL DATA,Order Settlement to Bal Sht GL,713.72,CHERRY TREES I.W. LTD
Revenue,Head of Exchequer Services,5105686201,22.08.2014,Staff Benefits,Payment to Private Contractors,185.00,CHILLERTON & ROOKLEY CP SCHOOL
Revenue,Head of Exchequer Services,5105686201,22.08.2014,Staff Benefits,Payment to Private Contractors,237.00,CHILLERTON & ROOKLEY CP SCHOOL
Revenue,Head of Exchequer Services,5105686201,22.08.2014,Staff Benefits,Payment to Private Contractors,50.00,CHILLERTON & ROOKLEY CP SCHOOL
Revenue,Head of ASC & Community Wellbeing,5105683184,13.08.2014,Mental Health Residential Care,Charges from Independent Providers,"2,898.00",CHOICE SUPPORT
Revenue,Head of ASC & Community Wellbeing,5105683184,13.08.2014,Mental Health Residential Care,Charges from Independent Providers,"2,898.00",CHOICE SUPPORT
Revenue,Head of HR & Organisational Change,5105683968,15.08.2014,Corporate Stores,Sundry Office Expenses,565.00,COMMERCIAL & INDUSTRIAL SERVICES
Revenue,Head of HR & Organisational Change,5105683968,15.08.2014,Corporate Stores,Sundry Office Expenses,418.20,COMMERCIAL & INDUSTRIAL SERVICES
Revenue,Head of HR & Organisational Change,5105683968,15.08.2014,Corporate Stores,Sundry Office Expenses,350.00,COMMERCIAL & INDUSTRIAL SERVICES
Revenue,Director of Childrens Services,5105685726,20.08.2014,Adult Skills,General Materials,15.00,CITY AND GUILDS
Revenue,Director of Childrens Services,5105685797,22.08.2014,Adult Skills,General Materials,15.00,CITY AND GUILDS
Revenue,Director of Childrens Services,5105685798,20.08.2014,Core Programmes,Training,60.00,CITY AND GUILDS
Revenue,Director of Childrens Services,5105685725,20.08.2014,Core Programmes,Training,60.00,CITY AND GUILDS
Revenue,Director of Childrens Services,5105685796,20.08.2014,Core Programmes,Training,60.00,CITY AND GUILDS
Revenue,Director of Childrens Services,5105683846,13.08.2014,Accreditation Centre,Training,78.00,CITY AND GUILDS
Revenue,Head of ASC & Community Wellbeing,5105672669,06.08.2014,Adelaide Resource Centre,Fixtures and Fittings,55.46,CITY ELECTRICAL FACTORS LTD
Revenue,Head of ASC & Community Wellbeing,5105682783,06.08.2014,Adelaide Resource Centre,Fixtures and Fittings,-55.46,CITY ELECTRICAL FACTORS LTD
Revenue,Head of ASC & Community Wellbeing,5105684590,13.08.2014,Gouldings Resource Centre,Fixtures and Fittings,143.69,CITY ELECTRICAL FACTORS LTD
Revenue,Head of Exchequer Services,5105683154,08.08.2014,Revenues & Benefits Operational Support,Professional Services,-572.00,CIVICA UK LTD
Revenue,Director of Childrens Services,5105684605,13.08.2014,Special Guardianship Order Costs,Support Children,132.69,REDACTED PERSONAL DATA
Revenue,Director of Childrens Services,5105682885,06.08.2014,Special Guardianship Order Costs,Support Children,132.69,REDACTED PERSONAL DATA
Revenue,Director of Childrens Services,5105685842,22.08.2014,Special Guardianship Order Costs,Support Children,132.69,REDACTED PERSONAL DATA
Revenue,Director of Childrens Services,5105686475,29.08.2014,Special Guardianship Order Costs,Support Children,132.69,REDACTED PERSONAL DATA
Revenue,Director of Childrens Services,5105683176,08.08.2014,Special Educational Needs Transport,Taxis - Contract Hire,705.00,CLARES CABS
Revenue,Director of Childrens Services,5105685489,20.08.2014,Cowes One School Pathfinder,Legal Fees - Other Parties,"1,700.00",CLARKE WILLMOTT LLP
Revenue,Head of ASC & Community Wellbeing,5105683674,13.08.2014,Elderly Mentally Ill Nursing Mainland,Charges from Independent Providers,"2,252.04",COLBURY CARE LTD
Revenue,Head of Economy & Tourism,5105681199,29.08.2014,Bembridge Library,Grants to External Bodies,"4,000.00",COMMUNITY ACTION ISLE OF WIGHT
Revenue,Head of Economy & Tourism,5105680589,01.08.2014,Brighstone Library,Grants to External Bodies,"2,000.00",COMMUNITY ACTION ISLE OF WIGHT
Revenue,Head of ASC & Community Wellbeing,5105685434,15.08.2014,Westminster House,Consumable Cleaning Materials,7.85,COMPLETE CHEMICALS
Revenue,Director of Childrens Services,5105682559,01.08.2014,Hearing Impaired Service,Schools Learn Res - Specialised Edu Equip,91.00,CONNEVANS LTD
Revenue,Head of Corp Gov & Monitoring Officer,5105684021,13.08.2014,Coroner,Transport of Clients,160.00,CO-OPERATIVE FUNERALCARE LTD
Revenue,Director of Childrens Services,5105686907,08.08.2014,Learning & Development Running Costs,Licences,102.92,COPYRIGHT LICENSING AGENCY LTD
Revenue,Head of ASC & Community Wellbeing,5105683241,13.08.2014,Elderly Frail Residential Care,Charges from Independent Providers,"1,622.60",CORNELIA HEIGHTS CARE HOME
Revenue,Head of ASC & Community Wellbeing,5105683241,13.08.2014,Elderly Frail Residential Care,Charges from Independent Providers,"1,998.08",CORNELIA HEIGHTS CARE HOME
Revenue,Head of ASC & Community Wellbeing,5105683241,13.08.2014,Elderly Frail Residential Care,Charges from Independent Providers,"1,998.08",CORNELIA HEIGHTS CARE HOME
Revenue,Head of ASC & Community Wellbeing,5105683241,13.08.2014,Elderly Frail Residential Care,Charges from Independent Providers,"1,998.08",CORNELIA HEIGHTS CARE HOME
Revenue,Head of ASC & Community Wellbeing,5105683241,13.08.2014,Elderly Frail Residential Care,Charges from Independent Providers,"1,622.60",CORNELIA HEIGHTS CARE HOME
Revenue,Head of ASC & Community Wellbeing,5105683241,13.08.2014,Elderly Frail Residential Care,Charges from Independent Providers,"1,622.60",CORNELIA HEIGHTS CARE HOME
Revenue,Head of ASC & Community Wellbeing,5105683241,13.08.2014,Elderly Frail Residential Care,Charges from Independent Providers,"1,998.08",CORNELIA HEIGHTS CARE HOME
Revenue,Head of ASC & Community Wellbeing,5105683241,13.08.2014,Elderly Frail Residential Care,Charges from Independent Providers,"1,622.60",CORNELIA HEIGHTS CARE HOME
Revenue,Head of ASC & Community Wellbeing,5105683241,13.08.2014,Elderly Frail Residential Care,Charges from Independent Providers,"1,622.60",CORNELIA HEIGHTS CARE HOME
Revenue,Head of ASC & Community Wellbeing,5105683241,13.08.2014,Elderly Frail Residential Care,Charges from Independent Providers,"1,622.60",CORNELIA HEIGHTS CARE HOME
Revenue,Head of ASC & Community Wellbeing,5105683241,13.08.2014,Elderly Mentally Ill Residential Care,Charges from Independent Providers,"1,699.88",CORNELIA HEIGHTS CARE HOME
Revenue,Head of ASC & Community Wellbeing,5105683241,13.08.2014,Elderly Mentally Ill Residential Care,Charges from Independent Providers,"1,699.88",CORNELIA HEIGHTS CARE HOME
Revenue,Head of ASC & Community Wellbeing,5105683241,13.08.2014,Elderly Mentally Ill Residential Care,Charges from Independent Providers,"1,699.88",CORNELIA HEIGHTS CARE HOME
Revenue,Head of ASC & Community Wellbeing,5105683241,13.08.2014,REDACTED PERSONAL DATA,Order Settlement to Bal Sht GL,"1,998.08",CORNELIA HEIGHTS CARE HOME
Revenue,Head of ASC & Community Wellbeing,5105683140,08.08.2014,Elderly Frail Residential Care,Charges from Independent Providers,789.49,CORNELIA MANOR
Revenue,Head of ASC & Community Wellbeing,5105683239,13.08.2014,Elderly Frail Residential Care,Charges from Independent Providers,"1,622.60",CORNELIA MANOR
Revenue,Head of ASC & Community Wellbeing,5105683239,13.08.2014,Elderly Frail Residential Care,Charges from Independent Providers,"1,622.60",CORNELIA MANOR
Revenue,Head of ASC & Community Wellbeing,5105683239,13.08.2014,Elderly Frail Residential Care,Charges from Independent Providers,"1,622.60",CORNELIA MANOR
Revenue,Head of ASC & Community Wellbeing,5105683239,13.08.2014,Elderly Frail Residential Care,Charges from Independent Providers,"1,622.60",CORNELIA MANOR
Revenue,Head of ASC & Community Wellbeing,5105683239,13.08.2014,Elderly Frail Residential Care,Charges from Independent Providers,"1,998.08",CORNELIA MANOR
Revenue,Head of ASC & Community Wellbeing,5105683239,13.08.2014,Elderly Frail Residential Care,Charges from Independent Providers,"1,998.08",CORNELIA MANOR
Revenue,Head of ASC & Community Wellbeing,5105683239,13.08.2014,Elderly Frail Residential Care,Charges from Independent Providers,"1,622.60",CORNELIA MANOR
Revenue,Head of ASC & Community Wellbeing,5105683239,13.08.2014,Elderly Frail Residential Care,Charges from Independent Providers,"1,622.60",CORNELIA MANOR
